﻿Document Date,Reference,Amount,Supplier Name,Cost Centre Description,Expense Head Description
01/04/2021,10007741,£655.88,Vip-System,Hackney Carriages,Printing
01/04/2021,10007753,"£40,230.00",Hart Voluntary Action,Leadership Team,Grants
01/04/2021,10007695,£655.74,Pegasus Building Services (Herriard) Ltd,Admin Bldgs - R & M,R & M - plant & equipment
01/04/2021,40001324,"£93,160.50",Blackwater ,Other Operating Expenditure,Precepts paid
01/04/2021,10007701,"£21,000.00",Centerprise International,IT Contract,Maintenance of equipment
01/04/2021,10007486,"£22,130.00",Virgin Media Business,IT Contract,Hire of equipment
01/04/2021,10007725,"£9,303.88",Virgin Media Business,IT Contract,Mobile phone costs
01/04/2021,10007533,"£1,355.74",Vodafone Limited,IT Contract,Mobile phone costs
01/04/2021,10007340,"£148,130.00",Citizens Advice Hart District Ltd,Leadership Team,Hart Cab
01/04/2021,10007341,"£10,000.00",Citizens Advice Hart District Ltd,Housing Needs Service,Homelessness Costs
01/04/2021,10007479,"£393,750.09",Serco Limited,Basingstoke Waste Contract,Fees and hired services
01/04/2021,10007455,£450.00,AC Line Markings,Highways Traffic Management,Sub-contracted work non-rechar
01/04/2021,10007481,"£6,300.00",MoJo FP,Corporate Finance,Consultants - projects
01/04/2021,10008011,"£1,957.50",Chelgate Limited,New Settlement,Consultants - projects
01/04/2021,10007474,£321.40,ADT Fire & Security PlC,Admin Bldgs - R & M,R & M - plant & equipment
01/04/2021,40001275,£500.00,SUNDRY SUPPLIER BACS,Covid19,Grants
01/04/2021,40001276,£500.00,SUNDRY SUPPLIER BACS,Covid19,Grants
01/04/2021,40001277,£500.00,SUNDRY SUPPLIER BACS,Covid19,Grants
01/04/2021,40001278,£500.00,SUNDRY SUPPLIER BACS,Covid19,Grants
01/04/2021,40001279,"£2,000.00",SUNDRY SUPPLIER BACS,Covid19,Grants
01/04/2021,40001280,"£2,000.00",SUNDRY SUPPLIER BACS,Covid19,Grants
01/04/2021,40001281,"£2,000.00",SUNDRY SUPPLIER BACS,Covid19,Grants
01/04/2021,40001282,"£2,000.00",SUNDRY SUPPLIER BACS,Covid19,Grants
01/04/2021,40001283,"£2,000.00",SUNDRY SUPPLIER BACS,Covid19,Grants
01/04/2021,40001284,"£2,000.00",SUNDRY SUPPLIER BACS,Covid19,Grants
01/04/2021,40001285,"£2,000.00",SUNDRY SUPPLIER BACS,Covid19,Grants
01/04/2021,40001286,"£2,000.00",SUNDRY SUPPLIER BACS,Covid19,Grants
01/04/2021,40001287,"£2,000.00",SUNDRY SUPPLIER BACS,Covid19,Grants
01/04/2021,40001288,"£2,000.00",SUNDRY SUPPLIER BACS,Covid19,Grants
01/04/2021,40001289,"£2,000.00",SUNDRY SUPPLIER BACS,Covid19,Grants
01/04/2021,40001290,"£2,000.00",SUNDRY SUPPLIER BACS,Covid19,Grants
01/04/2021,40001291,"£2,000.00",SUNDRY SUPPLIER BACS,Covid19,Grants
01/04/2021,40001292,"£2,000.00",SUNDRY SUPPLIER BACS,Covid19,Grants
01/04/2021,40001293,"£2,000.00",SUNDRY SUPPLIER BACS,Covid19,Grants
01/04/2021,40001294,"£2,000.00",SUNDRY SUPPLIER BACS,Covid19,Grants
01/04/2021,40001295,"£2,000.00",SUNDRY SUPPLIER BACS,Covid19,Grants
01/04/2021,40001296,"£2,000.00",SUNDRY SUPPLIER BACS,Covid19,Grants
01/04/2021,40001297,"£2,000.00",SUNDRY SUPPLIER BACS,Covid19,Grants
01/04/2021,40001298,"£2,000.00",SUNDRY SUPPLIER BACS,Covid19,Grants
01/04/2021,40001299,"£2,000.00",SUNDRY SUPPLIER BACS,Covid19,Grants
01/04/2021,40001300,"£2,000.00",SUNDRY SUPPLIER BACS,Covid19,Grants
01/04/2021,40001301,"£2,000.00",SUNDRY SUPPLIER BACS,Covid19,Grants
01/04/2021,40001302,"£2,000.00",SUNDRY SUPPLIER BACS,Covid19,Grants
01/04/2021,40001303,"£2,000.00",SUNDRY SUPPLIER BACS,Covid19,Grants
01/04/2021,40001304,"£2,000.00",SUNDRY SUPPLIER BACS,Covid19,Grants
01/04/2021,40001305,"£2,000.00",SUNDRY SUPPLIER BACS,Covid19,Grants
01/04/2021,40001306,"£2,000.00",SUNDRY SUPPLIER BACS,Covid19,Grants
01/04/2021,40001307,"£2,000.00",SUNDRY SUPPLIER BACS,Covid19,Grants
01/04/2021,40001308,"£2,000.00",SUNDRY SUPPLIER BACS,Covid19,Grants
01/04/2021,40001309,"£2,000.00",SUNDRY SUPPLIER BACS,Covid19,Grants
01/04/2021,40001310,"£2,000.00",SUNDRY SUPPLIER BACS,Covid19,Grants
01/04/2021,40001311,"£2,000.00",SUNDRY SUPPLIER BACS,Covid19,Grants
01/04/2021,40001312,"£2,000.00",SUNDRY SUPPLIER BACS,Covid19,Grants
01/04/2021,40001313,"£2,000.00",SUNDRY SUPPLIER BACS,Covid19,Grants
01/04/2021,40001314,"£2,000.00",SUNDRY SUPPLIER BACS,Covid19,Grants
01/04/2021,40001315,"£2,000.00",SUNDRY SUPPLIER BACS,Covid19,Grants
01/04/2021,40001316,"£4,600.00",SUNDRY SUPPLIER BACS,Covid19,Grants
01/04/2021,40001317,£801.00,SUNDRY SUPPLIER BACS,Covid19,Grants
01/04/2021,40001318,£801.00,SUNDRY SUPPLIER BACS,Covid19,Grants
01/04/2021,40001322,£801.00,SUNDRY SUPPLIER BACS,Covid19,Grants
01/04/2021,40001323,"£2,000.00",SUNDRY SUPPLIER BACS,Covid19,Grants
03/04/2021,10007628,"£1,671.25",Bowenhurst Kennels,Dog Warden,Kennelling fees
04/04/2021,10007716,£320.00,St Swithuns Parish Centre,Rechargeable Elections,Rental costs
05/04/2021,10007641,"£2,353.46",Castle Water Ltd - Hart District Council,Admin Bldgs - R & M,Water rates
05/04/2021,10007476,"£1,825.00",Home of HR Limited,HR Contract,Sub-contracted work non-rechar
06/04/2021,10007632,£540.30,Index Recruitment Limited,Waste Client Team,Agency staff
06/04/2021,40001349,"£225,000.00",Hook Parish Council,Other Operating Expenditure,Precepts paid
06/04/2021,40002273,"£225,000.00",Hook Parish Council,Other Operating Expenditure,Precepts paid
06/04/2021,40001356,"£250,772.00",Yateley Town Council,Other Operating Expenditure,Precepts paid
06/04/2021,40002275,"£250,772.00",Yateley Town Council,Other Operating Expenditure,Precepts paid
06/04/2021,10009092,"£6,507.91",BT Redcare,CCTV,Sub-contracted work non-rechar
06/04/2021,10007693,£285.00,Pegasus Building Services (Herriard) Ltd,Admin Bldgs - R & M,R & M - plant & equipment
06/04/2021,10007501,"£1,650.00",Liftech Systems (SE) Ltd,Disabled Facs - Mandatory,Capital grants other - Expend
06/04/2021,40001354,"£30,418.00",South Warnborough P C,Other Operating Expenditure,Precepts paid
06/04/2021,40001353,"£21,000.00",Rotherwick Parish Council,Other Operating Expenditure,Precepts paid
06/04/2021,40001347,"£106,149.50",Hartley Wintney Parish Council,Other Operating Expenditure,Precepts paid
06/04/2021,40002272,"£106,149.50",Hartley Wintney Parish Council,Other Operating Expenditure,Precepts paid
06/04/2021,40001346,"£5,200.00",Greywell Parish Council,Other Operating Expenditure,Precepts paid
06/04/2021,40001343,"£39,488.50",Eversley Parish Council,Other Operating Expenditure,Precepts paid
06/04/2021,40002270,"£39,488.50",Eversley Parish Council,Other Operating Expenditure,Precepts paid
06/04/2021,40002265,"£93,160.50",Blackwater ,Other Operating Expenditure,Precepts paid
06/04/2021,40001344,"£29,746.00",Ewshot Parish Council,Other Operating Expenditure,Precepts paid
06/04/2021,40001355,"£30,117.00",Winchfield Parish Council,Other Operating Expenditure,Precepts paid
06/04/2021,40001341,"£12,100.00",Dogmersfield Parish Council,Other Operating Expenditure,Precepts paid
06/04/2021,40001339,"£41,176.00",Crondall Parish Council,Other Operating Expenditure,Precepts paid
06/04/2021,40002267,"£41,176.00",Crondall Parish Council,Other Operating Expenditure,Precepts paid
06/04/2021,40001337,"£2,000.00",Bramshill Parish Council,Other Operating Expenditure,Precepts paid
06/04/2021,40001338,"£109,616.50",Church Crookham Parish Council,Other Operating Expenditure,Precepts paid
06/04/2021,40002266,"£109,616.50",Church Crookham Parish Council,Other Operating Expenditure,Precepts paid
06/04/2021,40001348,"£12,851.00",Heckfield Parish Council,Other Operating Expenditure,Precepts paid
06/04/2021,40001350,"£17,671.00",Long Sutton & Well P C,Other Operating Expenditure,Precepts paid
06/04/2021,40001352,"£95,171.42",Odiham Parish Council,Other Operating Expenditure,Precepts paid
06/04/2021,40002274,"£95,171.42",Odiham Parish Council,Other Operating Expenditure,Precepts paid
06/04/2021,40001345,"£544,897.00",Fleet Town Council,Other Operating Expenditure,Precepts paid
06/04/2021,40002271,"£544,897.00",Fleet Town Council,Other Operating Expenditure,Precepts paid
06/04/2021,40001340,"£68,601.50",Crookham Village Parish Council,Other Operating Expenditure,Precepts paid
06/04/2021,40002268,"£68,601.50",Crookham Village Parish Council,Other Operating Expenditure,Precepts paid
06/04/2021,40001342,"£71,300.00",Elvetham Heath Parish Council,Other Operating Expenditure,Precepts paid
06/04/2021,40002269,"£71,300.00",Elvetham Heath Parish Council,Other Operating Expenditure,Precepts paid
06/04/2021,40001351,"£12,000.00",Mattingley Parish Council,Other Operating Expenditure,Precepts paid
06/04/2021,10007493,"£1,900.00",ARCHITECTURAL Survey Services,Disabled Facs - Mandatory,Capital grants other - Expend
06/04/2021,40001325,£500.00,SUNDRY SUPPLIER BACS,Covid19,Grants
06/04/2021,40001328,"£2,000.00",SUNDRY SUPPLIER BACS,Covid19,Grants
06/04/2021,40001329,"£2,000.00",SUNDRY SUPPLIER BACS,Covid19,Grants
07/04/2021,10007490,£330.00,The Oyster Partnership,Tree Preservation Orders,Consultants - projects
07/04/2021,10007581,"£1,026.00",The Oyster Partnership,Planning Development,Consultation costs
07/04/2021,10007582,£380.00,The Oyster Partnership,Planning Development,Consultation costs
07/04/2021,30000937,"£3,000.00",Hart Voluntary Action,LateralFlowTestCentre,Purchase of equipment
07/04/2021,10007485,"£2,560.20",Eversley Parish Council,Churchyards,Grounds maintenance services
07/04/2021,10007772,"£1,744.12",Hampshire County  Council,Off Street Parking,Fees and hired services
07/04/2021,10007497,£323.33,Southern Counties Building Solutions Ltd,Disabled Facs - Mandatory,Capital grants other - Expend
07/04/2021,10007748,"£3,107.62",Vivid Resourcing Limited,Planning Development,Consultants - projects
07/04/2021,10007500,£440.00,G2 Recruitment Solutions,Covid19,Agency staff
07/04/2021,30000942,"£1,213.33",SUNDRY SUPPLIER BACS,Housing Needs Service,HB - Local Scheme Rent Rebates
08/04/2021,10007642,"£1,241.13",PHS Group Plc,Admin Bldgs - R & M,Laundry
08/04/2021,10007696,£320.64,Pegasus Building Services (Herriard) Ltd,Admin Bldgs - R & M,R & M - plant & equipment
08/04/2021,10007994,"£1,400.00",Vision 4 Youth,Community Safety ,Grants
08/04/2021,10010136,"£3,200.00",Nash Contract Services Ltd.,FleetPondGreenGridEng,Other professional services
08/04/2021,10007502,£300.00,Christine Graham Consultancy Ltd,Community Safety ,Employee training
08/04/2021,10007499,£500.00,Campden BRI (Chipping Campden) Limited,Env Health Commercial,Employee training
08/04/2021,40001330,£500.00,SUNDRY SUPPLIER BACS,Covid19,Grants
08/04/2021,40001331,£500.00,SUNDRY SUPPLIER BACS,Covid19,Grants
08/04/2021,40001332,"£2,000.00",SUNDRY SUPPLIER BACS,Covid19,Grants
08/04/2021,40001333,"£2,000.00",SUNDRY SUPPLIER BACS,Covid19,Grants
08/04/2021,40001335,"£2,000.00",SUNDRY SUPPLIER BACS,Covid19,Grants
08/04/2021,40001336,"£3,300.00",SUNDRY SUPPLIER BACS,Covid19,Grants
09/04/2021,10007560,"£9,419.25",Local Government Association,Support To Elected Bodies,Subscriptions
09/04/2021,10007700,"£4,889.99",Basingstoke & Deane B C,IT Contract,Hire of equipment
09/04/2021,30000948,"£1,092.00",Foster Properties Fleet Ltd,Housing Needs Service,B & BR allowance payments
09/04/2021,10008169,£300.00,Melanie Cant Training,Housing Needs Service,Employee training
12/04/2021,10007630,£531.30,Index Recruitment Limited,Waste Client Team,Agency staff
12/04/2021,10007559,£426.53,Npower,Admin Bldgs - R & M,Electricity
12/04/2021,10007690,"£1,274.78",Pegasus Building Services (Herriard) Ltd,Off Street Parking,Sub-contracted work non-rechar
12/04/2021,10007530,£470.00,Rotherwick Village Hall,Rechargeable Elections,Rental costs
12/04/2021,10007702,"£3,669.71",Total Gas And Power,Admin Bldgs - R & M,Gas
12/04/2021,10007524,£302.49,Protective Wear Supplies Ltd,Admin Bldgs - R & M,Clothing and uniforms
12/04/2021,30000938,£877.96,Redacted personal data,Housing Needs Service,HB - Local Scheme Rent Rebates
13/04/2021,10007585,"£4,779.58",Quadient UK Ltd,Print Room & Photocopying,Printing
13/04/2021,10007604,"£15,000.00",Hart Voluntary Action,Social Inclusion & Partnership,Grants
13/04/2021,30000943,£960.00,Foster Properties Fleet Ltd,Housing Needs Service,HB - Local Scheme Rent Rebates
13/04/2021,10007770,£678.15,Corporate Medical Services,HR Contract,Sub-contracted work non-rechar
13/04/2021,10007769,£467.25,SMS Environmental Limited,Admin Bldgs - R & M,R & M - plant & equipment
13/04/2021,10007548,"£4,659.20",Fleet Phoenix,Community Safety ,Grants
13/04/2021,10007554,£600.00,Town ,New Settlement,Employee training
13/04/2021,10007557,£730.60,Havant Borough Council,Off Street Parking,Sub-contracted work non-rechar
13/04/2021,10007528,"£1,800.00",Spirende Limited,Social Inclusion & Partnership,Employee training
13/04/2021,10007649,£523.56,Wildscapes Countryside Contractors,Land Repossessions,Sub-contracted work non-rechar
13/04/2021,40001357,"£3,300.00",SUNDRY SUPPLIER BACS,Covid19,Grants
13/04/2021,40001358,"£3,300.00",SUNDRY SUPPLIER BACS,Covid19,Grants
13/04/2021,40001359,"£1,000.00",SUNDRY SUPPLIER BACS,Covid19,Grants
13/04/2021,40001360,"£2,000.00",SUNDRY SUPPLIER BACS,Covid19,Grants
14/04/2021,10007566,£550.00,The Oyster Partnership,Tree Preservation Orders,Consultants - projects
14/04/2021,10007586,"£1,406.00",The Oyster Partnership,Planning Development,Consultation costs
14/04/2021,10007558,"£4,028.69",Npower,Admin Bldgs - R & M,Electricity
14/04/2021,10007691,£293.00,Pegasus Building Services (Herriard) Ltd,Admin Bldgs - R & M,R & M - plant & equipment
14/04/2021,10007549,"£1,299.76",Copyrightlicensing Agency Ltd,Corporate Communication,Licences
14/04/2021,10007553,"£1,925.00",Quality Leisure Management Ltd,Leisure Centres,Sub-contracted work non-rechar
14/04/2021,10007736,"£1,449.00",Vivid Resourcing Limited,Planning Development,Consultants - projects
14/04/2021,10007531,£580.00,1st Call Trees Ltd,Tree Preservation Orders,Grounds maintenance services
14/04/2021,10007536,"£11,101.01",Rev Solutions Limited,Corporate Finance,Consultants - projects
14/04/2021,10007538,£440.00,G2 Recruitment Solutions,Covid19,Agency staff
15/04/2021,10007892,£525.00,Solace,Corporate Finance,Corporate Mgmt training
15/04/2021,10007733,"£12,065.13",Oxford Web Applications,Corporate Communication,Software purchase and licences
15/04/2021,10007734,"£3,810.00",Oxford Web Applications,Corporate Communication,Software development
15/04/2021,10007572,"£54,177.08",Serco Limited,Basingstoke Waste Contract,Sub-contracted work non-rechar
15/04/2021,10007542,"£4,000.00",Vision 4 Youth,Community Safety ,Grants
15/04/2021,40001361,£801.00,SUNDRY SUPPLIER BACS,Covid19,Grants
15/04/2021,40001362,£801.00,SUNDRY SUPPLIER BACS,Covid19,Grants
15/04/2021,40001363,"£2,000.00",SUNDRY SUPPLIER BACS,Covid19,Grants
16/04/2021,10009062,£362.31,Chubb Fire & Security Limited,Admin Bldgs - R & M,Fire equipment & alarms
16/04/2021,10007878,£288.00,Hampshire Media Ltd,Planning Development,Advertising
16/04/2021,10007806,"£1,003.60",People Asset Management Ltd,HR Contract,Sub-contracted work non-rechar
17/04/2021,10007692,£504.00,Pegasus Building Services (Herriard) Ltd,Off Street Parking,Sub-contracted work non-rechar
18/04/2021,10007561,"£1,538.57",Redacted personal data,Dog Warden,Sub-contracted work non-rechar
19/04/2021,10007631,£666.37,Index Recruitment Limited,Waste Client Team,Agency staff
19/04/2021,10007584,£382.00,Quadient UK Ltd,Print Room & Photocopying,Printing
19/04/2021,10007607,"£10,368.00",Ernst & Young Llp,External Audit,Audit fees
19/04/2021,10007891,"£20,344.33",Quentin Hunt,Env Health Commercial,Legal services
19/04/2021,10007570,"£9,147.61",Brymor Special Works Ltd,FrogmoreInvestment,Fees and hired services
20/04/2021,10009061,£355.21,Chubb Fire & Security Limited,Admin Bldgs - R & M,Fire equipment & alarms
20/04/2021,10007871,"£6,051.00",Liftability Ltd,Disabled Facs - Mandatory,Capital grants other - Expend
20/04/2021,10007588,"£2,128.00",Computer Salvage Specialists,Basingstoke Waste Contract,Sub-contracted work non-rechar
20/04/2021,10007719,£850.00,Typecraft Ltd,Waste Education & Comms,Printing
20/04/2021,30000962,"£2,663.08",SUNDRY SUPPLIER BACS,Disabled Facs - Mandatory,Capital grants other - Expend
20/04/2021,40001364,"£1,000.00",SUNDRY SUPPLIER BACS,Covid19,Grants
20/04/2021,40001365,"£1,000.00",SUNDRY SUPPLIER BACS,Covid19,Grants
20/04/2021,40001366,"£1,000.00",SUNDRY SUPPLIER BACS,Covid19,Grants
20/04/2021,40001367,"£1,000.00",SUNDRY SUPPLIER BACS,Covid19,Grants
20/04/2021,40001368,"£1,000.00",SUNDRY SUPPLIER BACS,Covid19,Grants
20/04/2021,40001369,"£3,000.00",SUNDRY SUPPLIER BACS,Covid19,Grants
20/04/2021,40001370,"£1,000.00",SUNDRY SUPPLIER BACS,Covid19,Grants
20/04/2021,40001371,"£1,000.00",SUNDRY SUPPLIER BACS,Covid19,Grants
20/04/2021,40001372,"£1,000.00",SUNDRY SUPPLIER BACS,Covid19,Grants
20/04/2021,40001373,"£3,000.00",SUNDRY SUPPLIER BACS,Covid19,Grants
20/04/2021,40001374,"£1,000.00",SUNDRY SUPPLIER BACS,Covid19,Grants
20/04/2021,40001375,"£1,000.00",SUNDRY SUPPLIER BACS,Covid19,Grants
20/04/2021,40001376,"£1,000.00",SUNDRY SUPPLIER BACS,Covid19,Grants
20/04/2021,40001377,"£3,000.00",SUNDRY SUPPLIER BACS,Covid19,Grants
20/04/2021,40001378,"£3,000.00",SUNDRY SUPPLIER BACS,Covid19,Grants
20/04/2021,40001379,"£1,000.00",SUNDRY SUPPLIER BACS,Covid19,Grants
20/04/2021,40001380,"£1,000.00",SUNDRY SUPPLIER BACS,Covid19,Grants
20/04/2021,40001381,"£1,000.00",SUNDRY SUPPLIER BACS,Covid19,Grants
20/04/2021,40001382,"£3,000.00",SUNDRY SUPPLIER BACS,Covid19,Grants
20/04/2021,40001383,"£1,000.00",SUNDRY SUPPLIER BACS,Covid19,Grants
20/04/2021,40001384,"£1,000.00",SUNDRY SUPPLIER BACS,Covid19,Grants
20/04/2021,40001385,"£3,000.00",SUNDRY SUPPLIER BACS,Covid19,Grants
20/04/2021,40001386,"£1,000.00",SUNDRY SUPPLIER BACS,Covid19,Grants
20/04/2021,40001387,"£1,000.00",SUNDRY SUPPLIER BACS,Covid19,Grants
20/04/2021,40001388,"£3,000.00",SUNDRY SUPPLIER BACS,Covid19,Grants
20/04/2021,40001389,"£3,000.00",SUNDRY SUPPLIER BACS,Covid19,Grants
20/04/2021,40001390,"£1,000.00",SUNDRY SUPPLIER BACS,Covid19,Grants
20/04/2021,40001391,"£1,000.00",SUNDRY SUPPLIER BACS,Covid19,Grants
20/04/2021,40001392,"£1,000.00",SUNDRY SUPPLIER BACS,Covid19,Grants
20/04/2021,40001393,"£1,000.00",SUNDRY SUPPLIER BACS,Covid19,Grants
20/04/2021,40001394,"£1,000.00",SUNDRY SUPPLIER BACS,Covid19,Grants
20/04/2021,40001395,"£1,000.00",SUNDRY SUPPLIER BACS,Covid19,Grants
20/04/2021,40001396,"£1,000.00",SUNDRY SUPPLIER BACS,Covid19,Grants
20/04/2021,40001397,"£1,000.00",SUNDRY SUPPLIER BACS,Covid19,Grants
21/04/2021,10007583,£946.00,The Oyster Partnership,Tree Preservation Orders,Consultation costs
21/04/2021,10007587,"£1,417.70",The Oyster Partnership,Planning Development,Consultation costs
21/04/2021,10008050,£250.00,North Warnborough Village Hall,Rechargeable Elections,Rental costs
21/04/2021,10007594,"£1,454.00",District Councils Network,Leadership Team,Subscriptions
21/04/2021,10007657,"£3,060.00",FreestyleIT,IT Upgrade,Improvement works
21/04/2021,10007718,"£1,652.82",Vivid Resourcing Limited,Planning Development,Consultants - projects
21/04/2021,10007367,"£3,696.00",Urban Design Doctor Limited,Planning Development,Consultants - projects
22/04/2021,10007595,"£1,908.11",ARCHITECTURAL Survey Services,Disabled Facs - Mandatory,Capital grants other - Expend
22/04/2021,40001398,"£3,000.00",SUNDRY SUPPLIER BACS,Covid19,Grants
22/04/2021,40001399,"£1,000.00",SUNDRY SUPPLIER BACS,Covid19,Grants
22/04/2021,40001400,"£1,000.00",SUNDRY SUPPLIER BACS,Covid19,Grants
22/04/2021,40001401,"£1,000.00",SUNDRY SUPPLIER BACS,Covid19,Grants
22/04/2021,40001402,"£1,000.00",SUNDRY SUPPLIER BACS,Covid19,Grants
22/04/2021,40001403,"£3,000.00",SUNDRY SUPPLIER BACS,Covid19,Grants
22/04/2021,40001404,"£1,000.00",SUNDRY SUPPLIER BACS,Covid19,Grants
22/04/2021,40001405,"£1,000.00",SUNDRY SUPPLIER BACS,Covid19,Grants
22/04/2021,40001406,"£1,000.00",SUNDRY SUPPLIER BACS,Covid19,Grants
22/04/2021,40001407,"£1,000.00",SUNDRY SUPPLIER BACS,Covid19,Grants
22/04/2021,40001408,"£1,000.00",SUNDRY SUPPLIER BACS,Covid19,Grants
22/04/2021,40001409,"£1,000.00",SUNDRY SUPPLIER BACS,Covid19,Grants
22/04/2021,40001410,"£1,000.00",SUNDRY SUPPLIER BACS,Covid19,Grants
22/04/2021,40001411,"£1,000.00",SUNDRY SUPPLIER BACS,Covid19,Grants
22/04/2021,40001412,"£1,000.00",SUNDRY SUPPLIER BACS,Covid19,Grants
22/04/2021,40001413,"£1,000.00",SUNDRY SUPPLIER BACS,Covid19,Grants
22/04/2021,40001414,"£3,000.00",SUNDRY SUPPLIER BACS,Covid19,Grants
22/04/2021,40001415,"£3,000.00",SUNDRY SUPPLIER BACS,Covid19,Grants
22/04/2021,40001416,"£3,000.00",SUNDRY SUPPLIER BACS,Covid19,Grants
22/04/2021,40001417,"£3,000.00",SUNDRY SUPPLIER BACS,Covid19,Grants
22/04/2021,40001418,"£1,000.00",SUNDRY SUPPLIER BACS,Covid19,Grants
22/04/2021,40001419,"£1,000.00",SUNDRY SUPPLIER BACS,Covid19,Grants
22/04/2021,40001420,"£3,000.00",SUNDRY SUPPLIER BACS,Covid19,Grants
22/04/2021,40001421,"£1,000.00",SUNDRY SUPPLIER BACS,Covid19,Grants
22/04/2021,40001422,"£1,000.00",SUNDRY SUPPLIER BACS,Covid19,Grants
22/04/2021,40001423,"£3,000.00",SUNDRY SUPPLIER BACS,Covid19,Grants
22/04/2021,40001424,"£1,000.00",SUNDRY SUPPLIER BACS,Covid19,Grants
22/04/2021,40001425,"£1,000.00",SUNDRY SUPPLIER BACS,Covid19,Grants
22/04/2021,40001426,"£3,000.00",SUNDRY SUPPLIER BACS,Covid19,Grants
22/04/2021,40001427,"£3,000.00",SUNDRY SUPPLIER BACS,Covid19,Grants
22/04/2021,40001428,"£1,000.00",SUNDRY SUPPLIER BACS,Covid19,Grants
22/04/2021,40001429,"£3,000.00",SUNDRY SUPPLIER BACS,Covid19,Grants
23/04/2021,30000949,"£1,560.00",Foster Properties Fleet Ltd,Housing Needs Service,B & BR allowance payments
23/04/2021,10007707,£288.00,Hampshire Media Ltd,Planning Development,Advertising
23/04/2021,10007625,"£3,545.00",Adaptec Mobility Ltd,Disabled Facs - Mandatory,Capital grants other - Expend
23/04/2021,30000950,"£10,000.00",SUNDRY SUPPLIER BACS,Disabled Facs - Mandatory,Capital grants other - Expend
23/04/2021,30000967,"£9,750.00",SUNDRY SUPPLIER BACS,Legal Services,Fees and hired services
24/04/2021,10007624,"£1,068.00",Quadient UK Ltd,Print Room & Photocopying,Printing
24/04/2021,10007721,"£1,009.61",Nominet UK,IT Contract,Purchase of hardware
26/04/2021,10007629,£666.37,Index Recruitment Limited,Waste Client Team,Agency staff
26/04/2021,10007606,£800.00,Chartered Institute Of Env Health,Environmental Protection,Recruitment advertising
26/04/2021,10007609,£950.37,Pegasus Building Services (Herriard) Ltd,Rechargeable Elections,Election Expenses
26/04/2021,10007683,£574.00,Eversley Village Hall,Rechargeable Elections,Rental costs
26/04/2021,10007786,"£22,847.96",Royal Mail Group Ltd,Rechargeable Elections,Postage costs
26/04/2021,10007603,£350.00,Turning Point,HR Contract,Fees and hired services
26/04/2021,10007711,£933.60,Ability Hire Ltd,Covid19,Purchase of equipment
27/04/2021,10007610,£319.00,CMS Training Ltd,HR Contract,Corporate Mgmt training
27/04/2021,10007842,"£2,490.70",Bevan Brittan LLP,Commercialisation,Legal services
27/04/2021,10007626,£319.05,BJC Design (Southeast) Ltd,Disabled Facs - Mandatory,Capital grants other - Expend
27/04/2021,10007636,"£2,174.66",Contractor Umbrella Ltd,Environmental Protection,Sub-contracted work non-rechar
27/04/2021,40001430,"£1,000.00",SUNDRY SUPPLIER BACS,Covid19,Grants
27/04/2021,40001431,"£3,000.00",SUNDRY SUPPLIER BACS,Covid19,Grants
27/04/2021,40001432,"£1,000.00",SUNDRY SUPPLIER BACS,Covid19,Grants
27/04/2021,40001433,"£1,000.00",SUNDRY SUPPLIER BACS,Covid19,Grants
27/04/2021,40001434,"£1,000.00",SUNDRY SUPPLIER BACS,Covid19,Grants
27/04/2021,40001435,"£1,000.00",SUNDRY SUPPLIER BACS,Covid19,Grants
27/04/2021,40001436,"£1,000.00",SUNDRY SUPPLIER BACS,Covid19,Grants
27/04/2021,40001437,"£1,000.00",SUNDRY SUPPLIER BACS,Covid19,Grants
27/04/2021,40001438,"£1,000.00",SUNDRY SUPPLIER BACS,Covid19,Grants
27/04/2021,40001439,"£3,000.00",SUNDRY SUPPLIER BACS,Covid19,Grants
27/04/2021,40001440,"£3,000.00",SUNDRY SUPPLIER BACS,Covid19,Grants
27/04/2021,40001441,"£1,000.00",SUNDRY SUPPLIER BACS,Covid19,Grants
27/04/2021,40001442,"£1,000.00",SUNDRY SUPPLIER BACS,Covid19,Grants
27/04/2021,40001443,"£1,000.00",SUNDRY SUPPLIER BACS,Covid19,Grants
27/04/2021,40001444,"£3,000.00",SUNDRY SUPPLIER BACS,Covid19,Grants
27/04/2021,40001445,"£1,000.00",SUNDRY SUPPLIER BACS,Covid19,Grants
27/04/2021,40001446,"£1,000.00",SUNDRY SUPPLIER BACS,Covid19,Grants
27/04/2021,40001447,"£1,000.00",SUNDRY SUPPLIER BACS,Covid19,Grants
27/04/2021,40001448,"£1,000.00",SUNDRY SUPPLIER BACS,Covid19,Grants
27/04/2021,40001449,"£1,000.00",SUNDRY SUPPLIER BACS,Covid19,Grants
27/04/2021,40001450,"£1,000.00",SUNDRY SUPPLIER BACS,Covid19,Grants
27/04/2021,40001454,£801.00,SUNDRY SUPPLIER BACS,Covid19,Grants
27/04/2021,40001455,"£2,000.00",SUNDRY SUPPLIER BACS,Covid19,Grants
28/04/2021,10007647,"£1,417.25",The Oyster Partnership,Planning Development,Consultation costs
28/04/2021,10007784,£945.00,The Oyster Partnership,Planning Policy,Agency staff
28/04/2021,10007708,"£1,363.14",Vivid Resourcing Limited,Planning Development,Consultants - projects
28/04/2021,10007662,"£4,230.00",A and E Builders Limited,Disabled Facs - Mandatory,Capital grants other - Expend
28/04/2021,10007634,£650.00,NP Tree Management Ltd,Churchyards,Sub-contracted work non-rechar
29/04/2021,10007756,"£2,689.66",YBC Cleaning Services Ltd,Admin Bldgs - R & M,Contract cleaning
29/04/2021,10007846,£310.91,Sci Print Ltd,Rechargeable Elections,Printing
29/04/2021,10007937,"£103,980.42",Zurich Municipal,Corporate Finance,Insurance premiums
29/04/2021,30000957,"£1,000.00",Foster Properties Fleet Ltd,Housing Needs Service,HB - Local Scheme Rent Rebates
29/04/2021,10007633,£825.86,Software ONE UK Ltd,IT Contract,Software purchase and licences
29/04/2021,10008051,"£1,800.00",iHASCO LTD,Environment Promotion Strategy,Employee training
29/04/2021,30000959,"£15,047.36",SUNDRY SUPPLIER BACS,Disabled Facs - Mandatory,Capital grants other - Expend
29/04/2021,40001456,"£1,000.00",SUNDRY SUPPLIER BACS,Covid19,Grants
29/04/2021,40001457,"£1,000.00",SUNDRY SUPPLIER BACS,Covid19,Grants
29/04/2021,40001458,"£1,000.00",SUNDRY SUPPLIER BACS,Covid19,Grants
29/04/2021,40001459,"£3,000.00",SUNDRY SUPPLIER BACS,Covid19,Grants
29/04/2021,40001460,"£1,000.00",SUNDRY SUPPLIER BACS,Covid19,Grants
29/04/2021,40001461,"£1,000.00",SUNDRY SUPPLIER BACS,Covid19,Grants
29/04/2021,40001462,"£3,000.00",SUNDRY SUPPLIER BACS,Covid19,Grants
29/04/2021,40001463,"£1,000.00",SUNDRY SUPPLIER BACS,Covid19,Grants
29/04/2021,40001464,"£3,000.00",SUNDRY SUPPLIER BACS,Covid19,Grants
29/04/2021,40001465,"£1,000.00",SUNDRY SUPPLIER BACS,Covid19,Grants
29/04/2021,40001466,"£1,000.00",SUNDRY SUPPLIER BACS,Covid19,Grants
29/04/2021,40001467,"£3,000.00",SUNDRY SUPPLIER BACS,Covid19,Grants
29/04/2021,40001468,"£1,000.00",SUNDRY SUPPLIER BACS,Covid19,Grants
29/04/2021,40001469,"£1,000.00",SUNDRY SUPPLIER BACS,Covid19,Grants
29/04/2021,40001470,"£1,000.00",SUNDRY SUPPLIER BACS,Covid19,Grants
29/04/2021,40001471,"£1,000.00",SUNDRY SUPPLIER BACS,Covid19,Grants
29/04/2021,40001472,"£1,000.00",SUNDRY SUPPLIER BACS,Covid19,Grants
29/04/2021,40001473,"£1,000.00",SUNDRY SUPPLIER BACS,Covid19,Grants
29/04/2021,40001474,"£2,000.00",SUNDRY SUPPLIER BACS,Covid19,Grants
29/04/2021,40001475,"£2,000.00",SUNDRY SUPPLIER BACS,Covid19,Grants
30/04/2021,10007658,£666.37,Index Recruitment Limited,Waste Client Team,Agency staff
30/04/2021,10007675,£484.71,Signway Supplies (Datchet) Ltd,Highways Traffic Management,Purchase of equipment
30/04/2021,10007942,"£18,000.00",Vistar Construction Ltd,Disabled Facs - Mandatory,Capital grants other - Expend
30/04/2021,10008334,"£16,525.00",Vistar Construction Ltd,Disabled Facs - Mandatory,Capital grants other - Expend
30/04/2021,10007828,"£12,338.40",Sci Print Ltd,Rechargeable Elections,Election Expenses
30/04/2021,10007936,"£18,965.00",Sci Print Ltd,Rechargeable Elections,Printing
30/04/2021,10007797,£324.00,Blackwater ,Rechargeable Elections,Rental costs
30/04/2021,10007798,£296.00,Blackwater ,Rechargeable Elections,Rental costs
30/04/2021,10007908,£813.13,Chipside Ltd,Off Street Parking,Software purchase and licences
30/04/2021,10007850,£560.00,Elvetham Heath Parish Council,Rechargeable Elections,Rental costs
30/04/2021,10007714,"£1,607.71",Newbury  Community Resource Centre,Basingstoke Waste Contract,Sub-contracted work non-rechar
30/04/2021,10007975,£315.80,Hampshire Media Ltd,Planning Development,Advertising
30/04/2021,10007656,"£2,561.00",FreestyleIT,IT Contract,Purchase of hardware
30/04/2021,10007703,-£618.00,FreestyleIT,IT Contract,Purchase of hardware
30/04/2021,10007672,"£2,276.00",Warrens Office Limited,Admin Bldgs - R & M,Purchase of equipment
30/04/2021,10007659,"£3,250.00",Artelia UK,Edenbrook Apartments,Sub-contracted work non-rechar
30/04/2021,10007652,"£393,750.09",Serco Limited,Basingstoke Waste Contract,Fees and hired services
30/04/2021,10007663,"£1,219.86",BJC Design (Southeast) Ltd,Disabled Facs - Mandatory,Capital grants other - Expend
30/04/2021,10008102,"£1,169.99",Jade Security Services Ltd,Customer Services Contracts,Sub-contracted work non-rechar
30/04/2021,10007713,"£2,383.33",R J Harris Contracts Ltd,Basingstoke Waste Contract,Sub-contracted work non-rechar
30/04/2021,10007864,£625.00,Venture Security Management,Edenbrook Country Park,Sub-contracted work non-rechar
30/04/2021,10007865,£625.00,Venture Security Management,Bramshot Farm,Sub-contracted work non-rechar
30/04/2021,10008654,£500.00,Natural England,FleetPondGreenGridEng,Third Party Payments
30/04/2021,10007805,£808.76,Indeed Ireland Operations Ltd,HR Contract,Recruitment advertising
30/04/2021,10007660,£750.00,Optimum Technology Transfer Ltd,HR Contract,Corporate Mgmt training
30/04/2021,30000999,"£1,989.00",SUNDRY SUPPLIER BACS,Planning Development,Legal services
01/05/2021,10007857,£363.20,Darby Green ,Rechargeable Elections,Rental costs
03/05/2021,10007818,"£3,186.18",Royal Mail Group Ltd,Rechargeable Elections,Postage costs
04/05/2021,10007868,"£20,000.00",Hart Voluntary Action,Covid19,Grants
04/05/2021,10007859,"-£4,131.44",Everyone Active (SLM Ltd),Leisure Centres,Fees and hired services
04/05/2021,10007860,"£38,138.17",Everyone Active (SLM Ltd),Leisure Centres,Fees and hired services
04/05/2021,10007861,"£113,888.12",Everyone Active (SLM Ltd),Leisure Centres,Fees and hired services
04/05/2021,10007862,"£83,694.87",Everyone Active (SLM Ltd),Leisure Centres,Fees and hired services
04/05/2021,10007759,"£2,320.00",Chelgate Limited,New Settlement,Consultants - projects
04/05/2021,10007856,"£5,271.50",Troy Hayes Planning Limited,Planning Policy,Consultants - projects
04/05/2021,30001115,"£1,445.00",SUNDRY SUPPLIER BACS,Corporate Finance,Employee training
05/05/2021,10007791,"£1,554.00",The Oyster Partnership,Planning Policy,Agency staff
05/05/2021,10007808,"£1,414.55",The Oyster Partnership,Planning Development,Consultation costs
05/05/2021,10007809,£836.00,The Oyster Partnership,Tree Preservation Orders,Consultation costs
05/05/2021,30000960,£950.00,Hook Homes,Housing Needs Service,HB - Local Scheme Rent Rebates
05/05/2021,10007680,£718.00,Sapling Arboriculture Ltd,Tree Preservation Orders,Consultants - projects
05/05/2021,10007804,"£1,825.00",Home of HR Limited,HR Contract,Sub-contracted work non-rechar
05/05/2021,10007742,£495.00,Buckingham Futures,Env Health Commercial,Agency staff
05/05/2021,40001476,"£1,000.00",SUNDRY SUPPLIER BACS,Covid19,Grants
05/05/2021,40001477,"£1,000.00",SUNDRY SUPPLIER BACS,Covid19,Grants
05/05/2021,40001478,"£1,000.00",SUNDRY SUPPLIER BACS,Covid19,Grants
05/05/2021,40001479,"£3,000.00",SUNDRY SUPPLIER BACS,Covid19,Grants
05/05/2021,40001480,"£1,000.00",SUNDRY SUPPLIER BACS,Covid19,Grants
05/05/2021,40001481,"£1,000.00",SUNDRY SUPPLIER BACS,Covid19,Grants
05/05/2021,40001482,"£3,000.00",SUNDRY SUPPLIER BACS,Covid19,Grants
05/05/2021,40001483,"£1,000.00",SUNDRY SUPPLIER BACS,Covid19,Grants
05/05/2021,40001484,"£1,000.00",SUNDRY SUPPLIER BACS,Covid19,Grants
05/05/2021,40001485,"£1,000.00",SUNDRY SUPPLIER BACS,Covid19,Grants
05/05/2021,40001486,"£3,000.00",SUNDRY SUPPLIER BACS,Covid19,Grants
05/05/2021,40001487,"£3,000.00",SUNDRY SUPPLIER BACS,Covid19,Grants
05/05/2021,40001488,"£1,000.00",SUNDRY SUPPLIER BACS,Covid19,Grants
05/05/2021,40001489,"£1,000.00",SUNDRY SUPPLIER BACS,Covid19,Grants
05/05/2021,40001490,"£3,000.00",SUNDRY SUPPLIER BACS,Covid19,Grants
05/05/2021,40001491,"£3,000.00",SUNDRY SUPPLIER BACS,Covid19,Grants
05/05/2021,40001492,"£1,000.00",SUNDRY SUPPLIER BACS,Covid19,Grants
05/05/2021,40001493,"£3,000.00",SUNDRY SUPPLIER BACS,Covid19,Grants
05/05/2021,40001494,"£1,000.00",SUNDRY SUPPLIER BACS,Covid19,Grants
05/05/2021,40001495,"£3,000.00",SUNDRY SUPPLIER BACS,Covid19,Grants
05/05/2021,40001496,"£1,000.00",SUNDRY SUPPLIER BACS,Covid19,Grants
05/05/2021,40001497,"£3,000.00",SUNDRY SUPPLIER BACS,Covid19,Grants
06/05/2021,10007715,"£2,000.00",Tree Care Associates Ltd,Tree Preservation Orders,Consultants - projects
06/05/2021,10007752,"£2,065.00",PSTAX,Corporate Finance,Subscriptions
06/05/2021,10007822,£750.00,Civica UK Ltd,Legal Services,Consultants - projects
06/05/2021,10007726,£295.00,The Lismoyne Hotel,Rechargeable Elections,Rental costs
06/05/2021,10007764,"£1,018.90",ARCHITECTURAL Survey Services,Disabled Facs - Mandatory,Capital grants other - Expend
06/05/2021,30000974,£0.00,SUNDRY SUPPLIER BACS,Revenues & Benefits Contract,Bailiffs fees
06/05/2021,40001498,"£4,000.00",SUNDRY SUPPLIER BACS,Covid19,Grants
06/05/2021,40001499,"£1,000.00",SUNDRY SUPPLIER BACS,Covid19,Grants
06/05/2021,40001500,"£1,000.00",SUNDRY SUPPLIER BACS,Covid19,Grants
06/05/2021,40001501,"£3,000.00",SUNDRY SUPPLIER BACS,Covid19,Grants
06/05/2021,40001502,"£1,000.00",SUNDRY SUPPLIER BACS,Covid19,Grants
06/05/2021,40001503,"£1,000.00",SUNDRY SUPPLIER BACS,Covid19,Grants
06/05/2021,40001504,"£1,000.00",SUNDRY SUPPLIER BACS,Covid19,Grants
06/05/2021,40001505,"£1,000.00",SUNDRY SUPPLIER BACS,Covid19,Grants
06/05/2021,40001506,"£1,000.00",SUNDRY SUPPLIER BACS,Covid19,Grants
06/05/2021,40001507,"£1,000.00",SUNDRY SUPPLIER BACS,Covid19,Grants
06/05/2021,40001508,"£1,000.00",SUNDRY SUPPLIER BACS,Covid19,Grants
06/05/2021,40001509,"£1,000.00",SUNDRY SUPPLIER BACS,Covid19,Grants
06/05/2021,40001510,"£1,000.00",SUNDRY SUPPLIER BACS,Covid19,Grants
06/05/2021,40001511,"£1,000.00",SUNDRY SUPPLIER BACS,Covid19,Grants
06/05/2021,40001512,"£1,000.00",SUNDRY SUPPLIER BACS,Covid19,Grants
06/05/2021,40001513,"£1,000.00",SUNDRY SUPPLIER BACS,Covid19,Grants
06/05/2021,40001514,"£3,000.00",SUNDRY SUPPLIER BACS,Covid19,Grants
06/05/2021,40001515,"£1,000.00",SUNDRY SUPPLIER BACS,Covid19,Grants
06/05/2021,40001516,"£3,000.00",SUNDRY SUPPLIER BACS,Covid19,Grants
06/05/2021,40001517,"£1,000.00",SUNDRY SUPPLIER BACS,Covid19,Grants
07/05/2021,10007690,"£1,274.78",Pegasus Building Services (Herriard) Ltd,Balance Sheet,Error Suspense
07/05/2021,10007690,"£1,274.78",Pegasus Building Services (Herriard) Ltd,Balance Sheet,Error Suspense
07/05/2021,10007755,£588.00,The Victoria Hall Charity,Rechargeable Elections,Rental costs
07/05/2021,10007810,"£3,295.86",Liftability Ltd,Disabled Facs - Mandatory,Capital grants other - Expend
07/05/2021,10007777,£640.00,Crookham Village Parish Council,Rechargeable Elections,Rental costs
07/05/2021,10007781,£301.90,Hampshire Media Ltd,Planning Development,Advertising
07/05/2021,10007761,"£2,500.00",RH Environmental Ltd,Environmental Protection,Subscriptions
07/05/2021,30000958,£924.00,Planning Portal,Planning Development,Planning - application fees
07/05/2021,10007625,"£3,545.00",Adaptec Mobility Ltd,Balance Sheet,Error Suspense
07/05/2021,10007625,"£3,545.00",Adaptec Mobility Ltd,Balance Sheet,Error Suspense
08/05/2021,10008124,£530.43,Pegasus Building Services (Herriard) Ltd,Admin Bldgs - R & M,R & M - plant & equipment
08/05/2021,10007796,"£5,880.00",Incisiant Limited,Social Inclusion & Partnership,Grants
09/05/2021,10007760,"£6,012.40",Total Gas And Power,Admin Bldgs - R & M,Gas
09/05/2021,10007782,"£9,059.60",Rev Solutions Limited,Corporate Finance,Consultants - projects
09/05/2021,10007783,£673.85,Rev Solutions Limited,Corporate Finance,Consultants - projects
10/05/2021,10007803,£531.30,Index Recruitment Limited,Waste Client Team,Agency staff
10/05/2021,10007789,"£3,379.00",Hampshire County Council,Waste Client Team,Contributions to vol org
10/05/2021,10007867,"£9,268.75",Royal Mail Group Ltd,Rechargeable Elections,Postage costs
10/05/2021,10007911,"£2,238.60",Royal Mail Group Ltd,Rechargeable Elections,Postage costs
10/05/2021,10007768,£500.00,Martin Dobson Associates Ltd,Tree Preservation Orders,Consultants - projects
10/05/2021,10008202,"£39,947.00",WMP Contracting Limited T/A WM Longreach,Bramshot Farm,Sub-contracted work non-rechar
10/05/2021,10008203,"£8,640.00",WMP Contracting Limited T/A WM Longreach,Bramshot Farm,Sub-contracted work non-rechar
11/05/2021,10007795,"£4,600.00",Pegasus Building Services (Herriard) Ltd,Rechargeable Elections,Election Expenses
11/05/2021,10008128,£445.94,Pegasus Building Services (Herriard) Ltd,Off Street Parking,Sub-contracted work non-rechar
11/05/2021,10007779,£300.00,"Heckfield, Mattingley & Rotherwick PCC",Rechargeable Elections,Rental costs
11/05/2021,10007814,"£5,341.00",Redacted personal data,Disabled Facs - Mandatory,Capital grants other - Expend
11/05/2021,10007939,"£39,195.48",Khipu Networks Limited,IT Upgrade,Improvement works
11/05/2021,30000964,"£1,350.00",SUNDRY SUPPLIER BACS,Commercialisation,Fees and hired services
12/05/2021,10007875,"£1,554.00",The Oyster Partnership,Planning Policy,Agency staff
12/05/2021,10007876,£627.00,The Oyster Partnership,Tree Preservation Orders,Consultation costs
12/05/2021,10007919,"£1,406.00",The Oyster Partnership,Planning Development,Consultation costs
12/05/2021,10007837,"£2,344.46",Royal Mail Group Ltd,Corporate Communication,Postage costs
12/05/2021,10007838,"-£2,344.46",Royal Mail Group Ltd,Corporate Communication,Postage costs
12/05/2021,10007801,£487.46,Warrens Office Limited,Rechargeable Elections,Election Expenses
12/05/2021,10007847,"£2,700.00",Capita,Corporate Finance,Sub-contracted work non-rechar
12/05/2021,10007869,"£2,380.00",Pet Industry Federation,Env Health Commercial,Employee training
12/05/2021,10007802,"£6,373.00",Modern Democracy Ltd,Rechargeable Elections,Election Expenses
12/05/2021,10007819,"£1,100.00",G2 Recruitment Solutions,Covid19,Agency staff
12/05/2021,10007825,£540.00,Buckingham Futures,Env Health Commercial,Agency staff
12/05/2021,30000966,"£1,093.50",SUNDRY SUPPLIER BACS,Rechargeable Elections,Election Expenses
12/05/2021,40001518,"£1,000.00",SUNDRY SUPPLIER BACS,Covid19,Grants
12/05/2021,40001519,"£1,000.00",SUNDRY SUPPLIER BACS,Covid19,Grants
12/05/2021,40001520,"£1,000.00",SUNDRY SUPPLIER BACS,Covid19,Grants
12/05/2021,40001521,"£1,000.00",SUNDRY SUPPLIER BACS,Covid19,Grants
12/05/2021,40001522,"£1,000.00",SUNDRY SUPPLIER BACS,Covid19,Grants
12/05/2021,40001523,"£1,000.00",SUNDRY SUPPLIER BACS,Covid19,Grants
12/05/2021,40001524,"£1,000.00",SUNDRY SUPPLIER BACS,Covid19,Grants
12/05/2021,40001525,£500.00,SUNDRY SUPPLIER BACS,Covid19,Grants
12/05/2021,40001541,"£5,333.00",SUNDRY SUPPLIER BACS,Covid19,Grants
12/05/2021,40001542,"£3,000.00",SUNDRY SUPPLIER BACS,Covid19,Grants
13/05/2021,10007816,£325.00,Church Crookham Baptist Church,Rechargeable Elections,Rental costs
13/05/2021,10007888,"£4,055.00",Liftability Ltd,Disabled Facs - Mandatory,Capital grants other - Expend
13/05/2021,10007824,£390.00,Sound And Lighting Hire,Rechargeable Elections,Election Expenses
13/05/2021,10007815,£480.69,BJC Design (Southeast) Ltd,Disabled Facs - Mandatory,Capital grants other - Expend
13/05/2021,10007823,£480.00,1st Call Trees Ltd,Edenbrook Country Park,Sub-contracted work non-rechar
13/05/2021,40001526,"£3,000.00",SUNDRY SUPPLIER BACS,Covid19,Grants
13/05/2021,40001527,"£3,000.00",SUNDRY SUPPLIER BACS,Covid19,Grants
13/05/2021,40001528,"£1,000.00",SUNDRY SUPPLIER BACS,Covid19,Grants
13/05/2021,40001529,"£3,000.00",SUNDRY SUPPLIER BACS,Covid19,Grants
13/05/2021,40001530,"£1,000.00",SUNDRY SUPPLIER BACS,Covid19,Grants
13/05/2021,40001531,"£1,000.00",SUNDRY SUPPLIER BACS,Covid19,Grants
13/05/2021,40001532,"£3,000.00",SUNDRY SUPPLIER BACS,Covid19,Grants
13/05/2021,40001533,"£1,000.00",SUNDRY SUPPLIER BACS,Covid19,Grants
13/05/2021,40001534,"£1,000.00",SUNDRY SUPPLIER BACS,Covid19,Grants
13/05/2021,40001535,"£1,000.00",SUNDRY SUPPLIER BACS,Covid19,Grants
13/05/2021,40001536,"£1,000.00",SUNDRY SUPPLIER BACS,Covid19,Grants
13/05/2021,40001537,"£3,000.00",SUNDRY SUPPLIER BACS,Covid19,Grants
13/05/2021,40001538,"£1,000.00",SUNDRY SUPPLIER BACS,Covid19,Grants
13/05/2021,40001539,"£3,000.00",SUNDRY SUPPLIER BACS,Covid19,Grants
14/05/2021,10008900,£400.00,The Blue Lamp Trust,Environment Promotion Strategy,Employee training
14/05/2021,10007955,"£1,219.30",Hampshire Media Ltd,Off Street Parking,Purchase of equipment
14/05/2021,10007832,"£3,752.00",Healthmatic Ltd T/A h2evidence,Edenbrook Country Park,Sub-contracted work non-rechar
14/05/2021,10007833,£900.00,Healthmatic Ltd T/A h2evidence,Bramshot Farm,Sub-contracted work non-rechar
14/05/2021,10007834,"£1,800.00",Healthmatic Ltd T/A h2evidence,Environment Promotion Strategy,Sub-contracted work non-rechar
14/05/2021,10007826,"£3,348.00",Haymarket Business Media,Planning Development,Subscriptions
14/05/2021,10007848,£500.00,R.P Carpet & Flooring,Housing Needs Service,Homelessness Costs
14/05/2021,10008015,"£18,900.00",Home Connections Lettings Limited,Housing Needs Service,Software development
16/05/2021,10007903,£305.87,Siemens Financial Services Ltd,Admin Bldgs - R & M,R & M - plant & equipment
17/05/2021,10007839,£666.37,Index Recruitment Limited,Waste Client Team,Agency staff
17/05/2021,10007910,"£4,043.02",Royal Mail Group Ltd,Rechargeable Elections,Postage costs
17/05/2021,10009875,"£3,349.67",Royal Mail Group Ltd,Corporate Communication,Postage costs
17/05/2021,10007843,£467.25,SMS Environmental Limited,Admin Bldgs - R & M,R & M - plant & equipment
17/05/2021,10007840,£624.00,Fleet Town Council,Rechargeable Elections,Rental costs
17/05/2021,10007881,£832.20,Vail Williams LLP,Commercialisation,Fees and hired services
17/05/2021,10007938,"£39,947.00",WMP Contracting Limited T/A WM Longreach,Bramshot Farm,Sub-contracted work non-rechar
18/05/2021,10007885,"£3,498.21",Npower,Admin Bldgs - R & M,Electricity
18/05/2021,10007863,£535.48,Basingstoke & Deane B C,Waste Education & Comms,Printing
18/05/2021,30000968,£630.50,Foster Properties Fleet Ltd,Housing Needs Service,HB - Local Scheme Rent Rebates
18/05/2021,10007889,"£9,168.00",Purbeck Civil Engineering Ltd,Disabled Facs - Mandatory,Capital grants other - Expend
18/05/2021,10007849,£600.00,SureScreen Scientifics Ltd,Hartley Wintney Commons,Sub-contracted work non-rechar
18/05/2021,30000970,£399.00,SUNDRY SUPPLIER BACS,Housing Needs Service,HB - Local Scheme Rent Rebates
18/05/2021,40001543,"£1,000.00",SUNDRY SUPPLIER BACS,Covid19,Grants
18/05/2021,40001544,"£3,000.00",SUNDRY SUPPLIER BACS,Covid19,Grants
18/05/2021,40001545,"£1,000.00",SUNDRY SUPPLIER BACS,Covid19,Grants
18/05/2021,40001546,"£3,000.00",SUNDRY SUPPLIER BACS,Covid19,Grants
18/05/2021,40001547,"£1,000.00",SUNDRY SUPPLIER BACS,Covid19,Grants
18/05/2021,40001548,"£1,000.00",SUNDRY SUPPLIER BACS,Covid19,Grants
18/05/2021,40001549,"£1,000.00",SUNDRY SUPPLIER BACS,Covid19,Grants
18/05/2021,40001550,"£1,000.00",SUNDRY SUPPLIER BACS,Covid19,Grants
18/05/2021,40001551,"£1,000.00",SUNDRY SUPPLIER BACS,Covid19,Grants
18/05/2021,40001552,"£1,000.00",SUNDRY SUPPLIER BACS,Covid19,Grants
18/05/2021,40001553,"£1,000.00",SUNDRY SUPPLIER BACS,Covid19,Grants
18/05/2021,40001554,"£1,000.00",SUNDRY SUPPLIER BACS,Covid19,Grants
18/05/2021,40001555,"£1,000.00",SUNDRY SUPPLIER BACS,Covid19,Grants
18/05/2021,40001556,"£3,000.00",SUNDRY SUPPLIER BACS,Covid19,Grants
18/05/2021,40001557,"£3,000.00",SUNDRY SUPPLIER BACS,Covid19,Grants
18/05/2021,40001558,"£1,000.00",SUNDRY SUPPLIER BACS,Covid19,Grants
18/05/2021,40001559,"£1,000.00",SUNDRY SUPPLIER BACS,Covid19,Grants
18/05/2021,40001560,"£1,000.00",SUNDRY SUPPLIER BACS,Covid19,Grants
18/05/2021,40001561,"£1,000.00",SUNDRY SUPPLIER BACS,Covid19,Grants
18/05/2021,40001562,"£1,000.00",SUNDRY SUPPLIER BACS,Covid19,Grants
18/05/2021,40001563,"£3,000.00",SUNDRY SUPPLIER BACS,Covid19,Grants
18/05/2021,40001564,"£1,000.00",SUNDRY SUPPLIER BACS,Covid19,Grants
18/05/2021,40001565,"£1,000.00",SUNDRY SUPPLIER BACS,Covid19,Grants
18/05/2021,40001566,"£1,000.00",SUNDRY SUPPLIER BACS,Covid19,Grants
18/05/2021,40001567,"£1,000.00",SUNDRY SUPPLIER BACS,Covid19,Grants
18/05/2021,40001568,"£3,000.00",SUNDRY SUPPLIER BACS,Covid19,Grants
18/05/2021,40001569,"£1,000.00",SUNDRY SUPPLIER BACS,Covid19,Grants
18/05/2021,40001570,"£1,000.00",SUNDRY SUPPLIER BACS,Covid19,Grants
18/05/2021,40001571,"£1,000.00",SUNDRY SUPPLIER BACS,Covid19,Grants
18/05/2021,40001572,"£1,000.00",SUNDRY SUPPLIER BACS,Covid19,Grants
18/05/2021,40001573,"£1,000.00",SUNDRY SUPPLIER BACS,Covid19,Grants
18/05/2021,40001574,"£3,000.00",SUNDRY SUPPLIER BACS,Covid19,Grants
18/05/2021,40001575,"£2,000.00",SUNDRY SUPPLIER BACS,Covid19,Grants
18/05/2021,40001576,"£2,000.00",SUNDRY SUPPLIER BACS,Covid19,Grants
18/05/2021,40001592,"£2,000.00",SUNDRY SUPPLIER BACS,Covid19,Grants
19/05/2021,10007870,£500.00,Index Recruitment Limited,Waste Client Team,Agency staff
19/05/2021,10007933,"£1,554.00",The Oyster Partnership,Planning Policy,Agency staff
19/05/2021,10007934,"£1,422.20",The Oyster Partnership,Planning Development,Consultation costs
19/05/2021,10007935,£836.00,The Oyster Partnership,Tree Preservation Orders,Consultation costs
19/05/2021,10007795,"£4,600.00",Pegasus Building Services (Herriard) Ltd,Balance Sheet,Error Suspense
19/05/2021,10007795,"£4,600.00",Pegasus Building Services (Herriard) Ltd,Balance Sheet,Error Suspense
19/05/2021,30000996,"£5,075.00",Airport Lodge,Housing Needs Service,Wayleaves
19/05/2021,10007872,£660.00,G2 Recruitment Solutions,Covid19,Agency staff
19/05/2021,10007883,-£540.00,Buckingham Futures,Env Health Commercial,Agency staff
20/05/2021,10007887,£470.26,Hampshire County Council,Property Services,Sub-contracted work non-rechar
20/05/2021,10007918,£251.49,Chubb Fire & Security Limited,Admin Bldgs - R & M,Fire equipment & alarms
20/05/2021,10008085,"£2,329.98",Chubb Fire & Security Limited,Admin Bldgs - R & M,Fire equipment & alarms
20/05/2021,10007884,"£1,206.50",Association Of Electoral Administrators,Rechargeable Elections,Postage costs
20/05/2021,10007880,£445.00,Larac,Waste Client Team,Subscriptions
20/05/2021,10008095,"£4,538.00",Liftability Ltd,Disabled Facs - Mandatory,Capital grants other - Expend
20/05/2021,10008104,"£48,463.00",Everyone Active (SLM Ltd),Leisure Centres,Fees and hired services
20/05/2021,10007890,£825.12,ARCHITECTURAL Survey Services,Disabled Facs - Mandatory,Capital grants other - Expend
20/05/2021,30000973,£250.00,SUNDRY SUPPLIER BACS,Rechargeable Elections,Election Expenses
20/05/2021,40001577,"£3,000.00",SUNDRY SUPPLIER BACS,Covid19,Grants
20/05/2021,40001578,"£1,000.00",SUNDRY SUPPLIER BACS,Covid19,Grants
20/05/2021,40001579,"£1,000.00",SUNDRY SUPPLIER BACS,Covid19,Grants
20/05/2021,40001580,"£1,000.00",SUNDRY SUPPLIER BACS,Covid19,Grants
20/05/2021,40001581,"£1,000.00",SUNDRY SUPPLIER BACS,Covid19,Grants
20/05/2021,40001582,"£1,000.00",SUNDRY SUPPLIER BACS,Covid19,Grants
20/05/2021,40001583,"£1,000.00",SUNDRY SUPPLIER BACS,Covid19,Grants
20/05/2021,40001584,"£1,000.00",SUNDRY SUPPLIER BACS,Covid19,Grants
20/05/2021,40001585,"£1,000.00",SUNDRY SUPPLIER BACS,Covid19,Grants
20/05/2021,40001586,"£1,000.00",SUNDRY SUPPLIER BACS,Covid19,Grants
20/05/2021,40001587,"£1,000.00",SUNDRY SUPPLIER BACS,Covid19,Grants
20/05/2021,40001588,"£1,000.00",SUNDRY SUPPLIER BACS,Covid19,Grants
20/05/2021,40001589,"£3,000.00",SUNDRY SUPPLIER BACS,Covid19,Grants
20/05/2021,40001590,"£1,000.00",SUNDRY SUPPLIER BACS,Covid19,Grants
20/05/2021,40001591,"£1,000.00",SUNDRY SUPPLIER BACS,Covid19,Grants
20/05/2021,40001593,£500.00,SUNDRY SUPPLIER BACS,Covid19,Grants
21/05/2021,10008430,£790.00,Hampshire County Council,Corporate Finance,Fees and hired services
21/05/2021,10008129,£535.97,Pegasus Building Services (Herriard) Ltd,Admin Bldgs - R & M,R & M - plant & equipment
21/05/2021,10008101,"£41,884.75",Serco Limited,Basingstoke Waste Contract,Sub-contracted work non-rechar
21/05/2021,10008716,"£3,350.00",Handicare Accessibility Ltd,Disabled Facs - Mandatory,Capital grants other - Expend
21/05/2021,10007893,"£1,200.00",CIPD Enterprises Ltd,HR Contract,Corporate Mgmt training
22/05/2021,10007980,"£10,738.88",Southern Counties Building Solutions Ltd,Disabled Facs - Mandatory,Capital grants other - Expend
22/05/2021,10007983,"£6,242.86",Southern Counties Building Solutions Ltd,Disabled Facs - Mandatory,Capital grants other - Expend
22/05/2021,10007896,"£3,574.00",Green Leaves Countryside Contractors Ltd,Edenbrook Country Park,Sub-contracted work non-rechar
24/05/2021,10008062,"£75,782.87",Rushmoor Borough Council,Building Control - Fee Earning,Fees and hired services
24/05/2021,10008063,"£71,301.33",Rushmoor Borough Council,Building Control - Fee Earning,Fees and hired services
24/05/2021,30000979,"£2,500.00",Hart Voluntary Action,Balance Sheet,Chairman's Charity  (A)
24/05/2021,10008130,£390.00,Pegasus Building Services (Herriard) Ltd,Admin Bldgs - R & M,R & M - plant & equipment
24/05/2021,10007899,"£5,715.98",Bridges Lettings,Commercialisation,Fees and hired services
24/05/2021,10007900,"£7,144.97",Bridges Lettings,Commercialisation,Fees and hired services
24/05/2021,10007901,"£15,160.18",Bridges Lettings,Commercialisation,Fees and hired services
24/05/2021,10007898,£480.00,Fleet Town Council,Rechargeable Elections,Rental costs
24/05/2021,10007981,"£3,203.30",BJC Design (Southeast) Ltd,Disabled Facs - Mandatory,Capital grants other - Expend
24/05/2021,10007982,£642.46,BJC Design (Southeast) Ltd,Disabled Facs - Mandatory,Capital grants other - Expend
24/05/2021,30000976,£270.00,SUNDRY SUPPLIER BACS,Waste Client Team,Recovery of costs
24/05/2021,30000980,"£2,880.00",SUNDRY SUPPLIER BACS,Balance Sheet,Chairman's Charity  (A)
25/05/2021,10008185,"£2,830.97",Quadient UK Ltd,Print Room & Photocopying,Printing
25/05/2021,10007921,"£1,357.60",Prism Medical UK,Disabled Facs - Mandatory,Capital grants other - Expend
25/05/2021,10008248,"£1,260.00",Bevan Brittan LLP,Commercialisation,Legal services
25/05/2021,10007909,£290.00,NP Tree Management Ltd,Tree Preservation Orders,Grounds maintenance services
25/05/2021,10007916,"£16,292.78",Phoenix Software Limited,Admin Bldgs - R & M,Purchase of equipment
25/05/2021,10007917,"£7,524.01",Phoenix Software Limited,Admin Bldgs - R & M,Purchase of equipment
25/05/2021,10007915,"£9,952.61",James White Fencing and Gates Ltd,Fleet Pond,R & M - land and buildings
25/05/2021,10008056,"£5,438.33",Premm Design Limited,New Settlement,Consultants - projects
25/05/2021,10008074,£340.00,Premm Design Limited,New Settlement,Sub-contracted work non-rechar
25/05/2021,10008118,£700.00,Premm Design Limited,New Settlement,Consultants - projects
25/05/2021,40001594,"£3,000.00",SUNDRY SUPPLIER BACS,Covid19,Grants
25/05/2021,40001595,"£1,000.00",SUNDRY SUPPLIER BACS,Covid19,Grants
25/05/2021,40001596,"£1,000.00",SUNDRY SUPPLIER BACS,Covid19,Grants
25/05/2021,40001597,"£1,000.00",SUNDRY SUPPLIER BACS,Covid19,Grants
25/05/2021,40001598,"£1,000.00",SUNDRY SUPPLIER BACS,Covid19,Grants
25/05/2021,40001599,"£3,000.00",SUNDRY SUPPLIER BACS,Covid19,Grants
25/05/2021,40001600,"£1,000.00",SUNDRY SUPPLIER BACS,Covid19,Grants
25/05/2021,40001601,"£3,000.00",SUNDRY SUPPLIER BACS,Covid19,Grants
25/05/2021,40001602,"£3,000.00",SUNDRY SUPPLIER BACS,Covid19,Grants
25/05/2021,40001603,"£3,000.00",SUNDRY SUPPLIER BACS,Covid19,Grants
25/05/2021,40001604,"£1,000.00",SUNDRY SUPPLIER BACS,Covid19,Grants
25/05/2021,40001605,"£1,000.00",SUNDRY SUPPLIER BACS,Covid19,Grants
25/05/2021,40001606,"£1,000.00",SUNDRY SUPPLIER BACS,Covid19,Grants
25/05/2021,40001607,"£1,000.00",SUNDRY SUPPLIER BACS,Covid19,Grants
25/05/2021,40001608,"£3,000.00",SUNDRY SUPPLIER BACS,Covid19,Grants
25/05/2021,40001609,"£3,000.00",SUNDRY SUPPLIER BACS,Covid19,Grants
25/05/2021,40001610,"£1,000.00",SUNDRY SUPPLIER BACS,Covid19,Grants
25/05/2021,40001611,"£3,000.00",SUNDRY SUPPLIER BACS,Covid19,Grants
25/05/2021,40001612,"£1,000.00",SUNDRY SUPPLIER BACS,Covid19,Grants
25/05/2021,40001613,"£3,000.00",SUNDRY SUPPLIER BACS,Covid19,Grants
25/05/2021,40001614,"£1,000.00",SUNDRY SUPPLIER BACS,Covid19,Grants
25/05/2021,40001615,"£3,000.00",SUNDRY SUPPLIER BACS,Covid19,Grants
25/05/2021,40001616,"£1,000.00",SUNDRY SUPPLIER BACS,Covid19,Grants
25/05/2021,40001617,"£1,000.00",SUNDRY SUPPLIER BACS,Covid19,Grants
25/05/2021,40001618,"£1,000.00",SUNDRY SUPPLIER BACS,Covid19,Grants
25/05/2021,40001619,"£1,000.00",SUNDRY SUPPLIER BACS,Covid19,Grants
25/05/2021,40001620,"£1,000.00",SUNDRY SUPPLIER BACS,Covid19,Grants
25/05/2021,40001621,"£1,000.00",SUNDRY SUPPLIER BACS,Covid19,Grants
25/05/2021,40001622,"£3,000.00",SUNDRY SUPPLIER BACS,Covid19,Grants
25/05/2021,40001637,"£5,333.00",SUNDRY SUPPLIER BACS,Covid19,Grants
25/05/2021,40001638,"£8,000.00",SUNDRY SUPPLIER BACS,Covid19,Grants
25/05/2021,40001639,"£5,333.00",SUNDRY SUPPLIER BACS,Covid19,Grants
25/05/2021,40001640,"£5,333.00",SUNDRY SUPPLIER BACS,Covid19,Grants
26/05/2021,10007930,"£1,421.30",The Oyster Partnership,Planning Development,Consultation costs
26/05/2021,10007931,"£1,554.00",The Oyster Partnership,Planning Policy,Agency staff
26/05/2021,10007932,£546.48,The Oyster Partnership,Tree Preservation Orders,Consultation costs
26/05/2021,10007943,"£1,140.00",The Oyster Partnership,Environmental Protection,Agency staff
26/05/2021,10007944,"£1,244.50",The Oyster Partnership,Environmental Protection,Agency staff
26/05/2021,10007945,"£1,358.50",The Oyster Partnership,Environmental Protection,Agency staff
26/05/2021,10007946,"£1,254.00",The Oyster Partnership,Environmental Protection,Agency staff
26/05/2021,10007947,"£1,292.00",The Oyster Partnership,Environmental Protection,Agency staff
26/05/2021,10007948,"£1,225.50",The Oyster Partnership,Environmental Protection,Agency staff
26/05/2021,10007989,£895.56,Southern Counties Building Solutions Ltd,Disabled Facs - Mandatory,Capital grants other - Expend
26/05/2021,10007957,£708.48,ARCHITECTURAL Survey Services,Disabled Facs - Mandatory,Capital grants other - Expend
26/05/2021,10007956,"£7,872.00",Purbeck Civil Engineering Ltd,Disabled Facs - Mandatory,Capital grants other - Expend
26/05/2021,10007814,"£5,341.00",Redacted personal data,Balance Sheet,
26/05/2021,10007814,"£5,341.00",Redacted personal data,Balance Sheet,
26/05/2021,10007922,£660.00,G2 Recruitment Solutions,Covid19,Agency staff
26/05/2021,10007927,"£5,500.00",RPS Consulting Services Ltd,Planning Development,Consultants - projects
26/05/2021,10007941,£810.00,Buckingham Futures,Env Health Commercial,Agency staff
26/05/2021,10008082,"£1,593.00",BBX Media Ltd,Admin Bldgs - R & M,Audio visual equipment
26/05/2021,30001032,"£36,500.00",SUNDRY SUPPLIER BACS,Planning Development,Consultants - projects
27/05/2021,10008020,£841.32,YBC Cleaning Services Ltd,Admin Bldgs - R & M,Contract cleaning
27/05/2021,10007976,£255.00,Specsavers Corporate Eyecare,HR Contract,Medical fees
27/05/2021,10008070,"£86,181.34",Software ONE UK Ltd,IT Contract,Software purchase and licences
27/05/2021,10007992,£300.00,Capita,Commercialisation,Sub-contracted work non-rechar
27/05/2021,10007993,"£12,000.00",Capita,Commercialisation,Sub-contracted work non-rechar
27/05/2021,10007949,£665.20,Opus Business Systems Limited,IT Contract,Purchase of hardware
27/05/2021,10008067,"£3,948.00",Wokingham Borough Council,Internal Audit,Fees and hired services
27/05/2021,40001623,"£3,000.00",SUNDRY SUPPLIER BACS,Covid19,Grants
27/05/2021,40001624,"£3,000.00",SUNDRY SUPPLIER BACS,Covid19,Grants
27/05/2021,40001625,"£1,000.00",SUNDRY SUPPLIER BACS,Covid19,Grants
27/05/2021,40001626,"£1,000.00",SUNDRY SUPPLIER BACS,Covid19,Grants
27/05/2021,40001627,"£1,000.00",SUNDRY SUPPLIER BACS,Covid19,Grants
27/05/2021,40001628,"£1,000.00",SUNDRY SUPPLIER BACS,Covid19,Grants
27/05/2021,40001629,"£3,000.00",SUNDRY SUPPLIER BACS,Covid19,Grants
27/05/2021,40001630,"£1,000.00",SUNDRY SUPPLIER BACS,Covid19,Grants
27/05/2021,40001631,"£3,000.00",SUNDRY SUPPLIER BACS,Covid19,Grants
27/05/2021,40001632,"£3,000.00",SUNDRY SUPPLIER BACS,Covid19,Grants
27/05/2021,40001633,"£3,000.00",SUNDRY SUPPLIER BACS,Covid19,Grants
27/05/2021,40001634,"£3,000.00",SUNDRY SUPPLIER BACS,Covid19,Grants
27/05/2021,40001635,"£1,000.00",SUNDRY SUPPLIER BACS,Covid19,Grants
27/05/2021,40001636,"£1,000.00",SUNDRY SUPPLIER BACS,Covid19,Grants
27/05/2021,40001641,"£1,000.00",SUNDRY SUPPLIER BACS,Covid19,Grants
28/05/2021,10008013,"£2,908.37",YBC Cleaning Services Ltd,Admin Bldgs - R & M,Contract cleaning
28/05/2021,10007973,"£1,338.80",East Hampshire D C,Street Cleaning,Payments to other LA's
28/05/2021,10008123,£430.77,Pegasus Building Services (Herriard) Ltd,Admin Bldgs - R & M,R & M - plant & equipment
28/05/2021,10007990,£600.00,JDB Contractors & Son Ltd,Churchyards,Sub-contracted work non-rechar
28/05/2021,10008106,£946.47,DX Network Services Ltd,Print Room & Photocopying,Document Exchange Subs
28/05/2021,10008023,£722.65,Royal Mail Group Ltd,Register Of Electors,Postage costs
28/05/2021,10008372,£259.00,Apse,Churchyards,Employee training
28/05/2021,10007968,£260.20,Hampshire Media Ltd,Planning Development,Advertising
28/05/2021,10007964,"£3,250.00",Artelia UK,Edenbrook Apartments,Sub-contracted work non-rechar
28/05/2021,10008042,"£9,674.10",Bevan Brittan LLP,Commercialisation,Legal services
28/05/2021,10008090,"£2,154.50",Bevan Brittan LLP,Commercialisation,Legal services
28/05/2021,10007974,£803.77,Software ONE UK Ltd,IT Contract,Software purchase and licences
28/05/2021,10007963,"£6,703.86",MTI Technology Limited,IT Upgrade,Improvement works
28/05/2021,10007977,"£8,361.00",LDA Design Consulting Ltd,Planning Development,Consultants - projects
28/05/2021,10008092,"£18,001.00",LDA Design Consulting Ltd,Planning Development,Consultants - projects
28/05/2021,10008032,"£12,220.83",Stellar Property Solutions LTD,Disabled Facs - Mandatory,Capital grants other - Expend
28/05/2021,10008747,"£1,166.67",Freetime Leisure Watersports Ltd,Environment Promotion Strategy,Employee training
28/05/2021,40001642,"£3,000.00",SUNDRY SUPPLIER BACS,Covid19,Grants
28/05/2021,40001643,"£1,000.00",SUNDRY SUPPLIER BACS,Covid19,Grants
28/05/2021,40001644,"£3,000.00",SUNDRY SUPPLIER BACS,Covid19,Grants
28/05/2021,40001645,"£1,000.00",SUNDRY SUPPLIER BACS,Covid19,Grants
30/05/2021,10007995,"£2,606.79",Trinity Mirror Publishing Ltd(Reach Plc),Corporate Communication,Printing
31/05/2021,10008043,£376.00,Yateley Town Council,Rechargeable Elections,Rental costs
31/05/2021,10008044,£313.33,Yateley Town Council,Rechargeable Elections,Rental costs
31/05/2021,10008045,£689.33,Yateley Town Council,Rechargeable Elections,Rental costs
31/05/2021,10008046,-£689.33,Yateley Town Council,Rechargeable Elections,Rental costs
31/05/2021,10008036,£430.00,B&M Fencing Ltd,Environment Promotion Strategy,Purchase of equipment
31/05/2021,10008157,£949.48,Chipside Ltd,Off Street Parking,Software purchase and licences
31/05/2021,10008547,"£5,341.20",Savills UK Ltd,Planning Development,Consultants - projects
31/05/2021,10007991,"£1,660.00",Johns Associates Ltd,FleetPondGreenGridEng,Third Party Payments
31/05/2021,10008008,"£1,414.01",Newbury  Community Resource Centre,Waste Contract,Sub-contracted work non-rechar
31/05/2021,10008065,£300.00,Magpie Recycling,Basingstoke Waste Contract,Sub-contracted work non-rechar
31/05/2021,10007958,-£255.00,SDK Environmental Ltd,Env Health Commercial,Pest Control Contracts Income
31/05/2021,10007960,"£2,665.28",SDK Environmental Ltd,Dog Warden,Sub-contracted work non-rechar
31/05/2021,10008057,"£3,780.00",Haymarket Business Media,Planning Policy,Recruitment advertising
31/05/2021,10008188,"£1,465.10",Sharpe Pritchard LLP,Waste Client Team,Legal services
31/05/2021,10008087,"£1,178.57",Jade Security Services Ltd,Customer Services Contracts,Sub-contracted work non-rechar
31/05/2021,10008749,£625.00,Venture Security Management,Edenbrook Country Park,Sub-contracted work non-rechar
31/05/2021,10007959,"£1,577.11",MTI Technology Limited,IT Upgrade,Improvement works
31/05/2021,10008024,"£1,556.00",Scofell Commercial landscapes,Small SANG Sites,Sub-contracted work non-rechar
31/05/2021,10008079,"£1,556.00",Scofell Commercial landscapes,Bramshot Farm,Sub-contracted work non-rechar
31/05/2021,10008080,"-£1,556.00",Scofell Commercial landscapes,Small SANG Sites,Sub-contracted work non-rechar
31/05/2021,10008173,"£8,550.00",31ten Consulting Limited,Commercialisation,Consultants - projects
31/05/2021,10008014,£934.13,Indeed Ireland Operations Ltd,HR Contract,Recruitment advertising
31/05/2021,10008081,"£20,135.50",Sequoia Arboricultural Services Limited,Hazeley Heath Grazing Project ,Sub-contracted work non-rechar
31/05/2021,10007979,"£1,500.00",Optimum Technology Transfer Ltd,HR Contract,Corporate Mgmt training
01/06/2021,10008083,£313.59,Vip-System,Hackney Carriages,Purchase of equipment
01/06/2021,10007965,"£1,497.46",Sci Print Ltd,Register Of Electors,Postage costs
01/06/2021,30000982,"£1,560.00",Foster Properties Fleet Ltd,Housing Needs Service,Wayleaves
01/06/2021,10008924,£880.00,Knight Land Management Ltd,Odiham Common,Sub-contracted work non-rechar
01/06/2021,10008077,"£403,375.09",Serco Limited,Basingstoke Waste Contract,Fees and hired services
01/06/2021,10008352,"£1,522.50",Chelgate Limited,New Settlement,Consultants - projects
01/06/2021,10007966,"£3,000.00",Green Leaves Countryside Contractors Ltd,Edenbrook Country Park,Sub-contracted work non-rechar
02/06/2021,10007996,"£1,406.00",The Oyster Partnership,Planning Development,Consultation costs
02/06/2021,10007997,"£1,554.00",The Oyster Partnership,Planning Policy,Agency staff
02/06/2021,10007998,£773.52,The Oyster Partnership,Tree Preservation Orders,Consultation costs
02/06/2021,10008035,"£3,193.74",Royal Mail Group Ltd,Corporate Communication,Postage costs
02/06/2021,10007978,£660.00,G2 Recruitment Solutions,Covid19,Agency staff
02/06/2021,10008005,"£1,080.00",Buckingham Futures,Env Health Commercial,Agency staff
02/06/2021,30000985,"£1,070.00",SUNDRY SUPPLIER BACS,Housing Needs Service,HB - Local Scheme Rent Rebates
03/06/2021,10008010,£460.00,Big Van 2 U,Housing Needs Service,Fees and hired services
03/06/2021,30000984,"£50,800.00",SUNDRY SUPPLIER BACS,Bramshot Farm,Developers Contributions
06/06/2021,10008178,"£6,405.09",Southern Counties Building Solutions Ltd,Disabled Facs - Mandatory,Capital grants other - Expend
07/06/2021,30000986,"£30,569.50",Hampshire County Council,Balance Sheet,Developer Conts - Highways
07/06/2021,10007962,"£14,010.00",Wildscapes Countryside Contractors,Edenbrook Country Park,Sub-contracted work non-rechar
07/06/2021,40001646,"£3,000.00",SUNDRY SUPPLIER BACS,Covid19,Grants
07/06/2021,40001647,"£1,000.00",SUNDRY SUPPLIER BACS,Covid19,Grants
08/06/2021,10008034,"£10,000.00",Hart Voluntary Action,Covid19,Grants
08/06/2021,10008049,£529.19,Signway Supplies (Datchet) Ltd,Off Street Parking,Notice boards
08/06/2021,10008031,£475.00,CMS Training Ltd,HR Contract,Corporate Mgmt training
08/06/2021,10008072,"£6,090.00",SPC Bathrooms Ltd,Disabled Facs - Mandatory,Capital grants other - Expend
08/06/2021,10008283,"£3,000.00",Barker-Mills Conservation,Planning Development,Consultants - projects
08/06/2021,10008089,£625.00,Apple Retail UK Limited,IT Contract,Purchase of hardware
08/06/2021,10008055,"£17,773.19",Flowbird Smart City UK,Off Street Parking,Ticket machines
08/06/2021,40001648,£500.00,SUNDRY SUPPLIER BACS,Covid19,Grants
08/06/2021,40001649,£500.00,SUNDRY SUPPLIER BACS,Covid19,Grants
09/06/2021,10008093,"£1,242.36",The Oyster Partnership,Planning Policy,Agency staff
09/06/2021,10008110,"£1,406.00",The Oyster Partnership,Planning Development,Consultation costs
09/06/2021,10008052,"£2,500.00",Ernst & Young Llp,External Audit,Audit fees
09/06/2021,10009807,"£1,631.29",Total Gas And Power,Admin Bldgs - R & M,Gas
09/06/2021,10008053,"£1,485.00",Vivid Resourcing Limited,Planning Development,Consultation costs
09/06/2021,10008114,£990.00,Mallard Consultancy Ltd,Environmental Protection,Subscriptions
09/06/2021,10008069,"£1,080.00",Buckingham Futures,Env Health Commercial,Agency staff
09/06/2021,40001650,"£3,000.00",SUNDRY SUPPLIER BACS,Covid19,Grants
09/06/2021,40001651,"£5,333.00",SUNDRY SUPPLIER BACS,Covid19,Grants
10/06/2021,10008060,"£1,200.00",Tree Care Associates Ltd,Tree Preservation Orders,Consultation costs
10/06/2021,10008078,"£1,115.00",Kim Driver Training Ltd,Environment Promotion Strategy,Employee training
11/06/2021,30000989,£950.00,Hook Homes,Housing Needs Service,HB - Local Scheme Rent Rebates
11/06/2021,10008073,£548.10,BJC Design (Southeast) Ltd,Disabled Facs - Mandatory,Capital grants other - Expend
13/06/2021,10008199,"£1,248.50",Phase 3 Consulting Limited,Rechargeable Elections,Election Expenses
14/06/2021,10008086,£467.25,SMS Environmental Limited,Admin Bldgs - R & M,R & M - plant & equipment
14/06/2021,10008103,"£4,612.00",Flowbird Smart City UK,Off Street Parking,Ticket machines
14/06/2021,40001655,"£3,000.00",SUNDRY SUPPLIER BACS,Covid19,Grants
14/06/2021,40001656,"£3,000.00",SUNDRY SUPPLIER BACS,Covid19,Grants
14/06/2021,40001657,"£1,000.00",SUNDRY SUPPLIER BACS,Covid19,Grants
15/06/2021,10008094,£625.84,Signway Supplies (Datchet) Ltd,Street Furniture,Sub-contracted work non-rechar
15/06/2021,10008091,"£4,893.75",Bridges Lettings,Commercialisation,Fees and hired services
15/06/2021,30000993,£671.67,SUNDRY SUPPLIER BACS,Private Sector Renewal,Capital grants other - Expend
15/06/2021,40001652,£500.00,SUNDRY SUPPLIER BACS,Covid19,Grants
15/06/2021,40001653,£500.00,SUNDRY SUPPLIER BACS,Covid19,Grants
16/06/2021,10008154,"£1,554.00",The Oyster Partnership,Planning Policy,Agency staff
16/06/2021,10008155,£385.00,The Oyster Partnership,Tree Preservation Orders,Consultation costs
16/06/2021,10008156,"£1,423.55",The Oyster Partnership,Planning Development,Consultation costs
16/06/2021,10008111,£570.00,Osborne Richardson Limited,Environmental Protection,Agency staff
16/06/2021,10008135,"£2,400.00",Capita,Commercialisation,Sub-contracted work non-rechar
16/06/2021,10008131,"£249,680.00",Mendip District Council,5 Council Contract - Capita,Fees and hired services
16/06/2021,10008112,"£2,450.00",NP Tree Management Ltd,Tree Preservation Orders,Grounds maintenance services
16/06/2021,10008107,£880.00,G2 Recruitment Solutions,Covid19,Agency staff
17/06/2021,10008141,"£46,316.00",Havant Borough Council,5 Council Contract - Capita,Payments to South -Client Team
17/06/2021,10008113,"£10,601.24",Fleet BID Company,Balance Sheet,Fleet Business Improvement Dis
17/06/2021,10008121,"£4,800.00",Francis Taylor Building,Planning Development,Consultants - projects
17/06/2021,10008360,£350.00,Healthscreen UK,HR Contract,Sub-contracted work non-rechar
18/06/2021,10008148,£315.80,Hampshire Media Ltd,Planning Development,Advertising
20/06/2021,10008160,"£25,059.13",Serco Limited,Basingstoke Waste Contract,Sub-contracted work non-rechar
20/06/2021,10008133,"£2,600.00",POS Enterprises Ltd,Support To Elected Bodies,Conference expenses
21/06/2021,10008167,"£1,908.00",Redacted personal data,Disabled Facs - Mandatory,Capital grants other - Expend
21/06/2021,10008142,"£9,059.60",Rev Solutions Limited,Corporate Finance,Consultants - projects
22/06/2021,10008815,"£20,405.24",Hampshire County Council,Emergency Planning,Contributions to vol org
22/06/2021,10008842,"£3,034.00",Hampshire County Council,Local Land Charges,Fees and hired services
22/06/2021,10008843,"£3,760.00",Hampshire County Council,Local Land Charges,Fees and hired services
22/06/2021,10008153,£450.00,Solace,Housing Needs Service,Employee training
22/06/2021,10008150,"£122,522.00",Everyone Active (SLM Ltd),Leisure Centres,Fees and hired services
22/06/2021,10008151,"£45,807.90",Blencowe Scaffolding Ltd,Commercialisation,Fees and hired services
22/06/2021,10008152,"£2,787.00",Blencowe Scaffolding Ltd,Commercialisation,Fees and hired services
22/06/2021,40001658,£500.00,SUNDRY SUPPLIER BACS,Covid19,Grants
22/06/2021,40001659,£500.00,SUNDRY SUPPLIER BACS,Covid19,Grants
22/06/2021,40001660,£500.00,SUNDRY SUPPLIER BACS,Covid19,Grants
22/06/2021,40001661,£500.00,SUNDRY SUPPLIER BACS,Covid19,Grants
22/06/2021,40001662,£500.00,SUNDRY SUPPLIER BACS,Covid19,Grants
23/06/2021,10008213,"£1,554.00",The Oyster Partnership,Planning Policy,Agency staff
23/06/2021,10008214,£359.48,The Oyster Partnership,Tree Preservation Orders,Consultation costs
23/06/2021,10008215,"£1,415.45",The Oyster Partnership,Planning Development,Consultation costs
23/06/2021,10008161,"£1,025.00",Colyer Repropoint Ltd,Print Room & Photocopying,Photocopying
23/06/2021,10008176,"£1,140.00",Osborne Richardson Limited,Environmental Protection,Agency staff
23/06/2021,10008252,"£2,497.50",Artelia UK,Leisure Centres,Fees and hired services
23/06/2021,10008162,"£2,970.00",Vivid Resourcing Limited,Planning Development,Consultation costs
23/06/2021,10008163,£660.00,G2 Recruitment Solutions,Covid19,Agency staff
23/06/2021,40001663,"£3,000.00",SUNDRY SUPPLIER BACS,Covid19,Grants
24/06/2021,10008184,"£2,869.66",Quadient UK Ltd,Print Room & Photocopying,Printing
24/06/2021,30001001,"£1,560.00",Foster Properties Fleet Ltd,Housing Needs Service,B & BR allowance payments
24/06/2021,10008166,£475.00,CMS Training Ltd,HR Contract,Corporate Mgmt training
24/06/2021,10008251,"£4,258.00",Bentley Mobility Services,Disabled Facs - Mandatory,Capital grants other - Expend
24/06/2021,10008179,"£4,442.87",Southern Counties Building Solutions Ltd,Disabled Facs - Mandatory,Capital grants other - Expend
24/06/2021,10008171,"£63,789.00",Fleet BID Company,Balance Sheet,Fleet Business Improvement Dis
24/06/2021,10008182,£290.61,Flowbird Smart City UK,Off Street Parking,Ticket machines
25/06/2021,10008177,"£3,096.99",Signway Supplies (Datchet) Ltd,Highways Traffic Management,Sub-contracted work non-rechar
25/06/2021,10008196,£274.10,Hampshire Media Ltd,Planning Development,Advertising
25/06/2021,10008448,£291.00,Kinetic Signs Ltd,New Settlement,Consultants - projects
25/06/2021,10008180,£976.32,BJC Design (Southeast) Ltd,Disabled Facs - Mandatory,Capital grants other - Expend
25/06/2021,10008201,"£39,947.00",WMP Contracting Limited T/A WM Longreach,Bramshot Farm,Sub-contracted work non-rechar
28/06/2021,10008235,"£2,768.64",YBC Cleaning Services Ltd,Admin Bldgs - R & M,Contract cleaning
28/06/2021,10008190,"£2,100.00",Complete Audio Visual Equipment Ltd,Admin Bldgs - R & M,Audio visual equipment
28/06/2021,10008186,£827.34,Software ONE UK Ltd,IT Contract,Software purchase and licences
28/06/2021,40001664,£500.00,SUNDRY SUPPLIER BACS,Covid19,Grants
28/06/2021,40001665,£500.00,SUNDRY SUPPLIER BACS,Covid19,Grants
28/06/2021,40001666,"£1,000.00",SUNDRY SUPPLIER BACS,Covid19,Grants
28/06/2021,40001667,"£1,000.00",SUNDRY SUPPLIER BACS,Covid19,Grants
28/06/2021,40001668,"£1,000.00",SUNDRY SUPPLIER BACS,Covid19,Grants
29/06/2021,10008192,"£2,513.17",Elmdale Maintenance Ltd,Print Room & Photocopying,Photocopying
29/06/2021,10008239,"£28,100.00",Hart Voluntary Action,Covid19,Grants
29/06/2021,10008191,£500.00,Pegasus Building Services (Herriard) Ltd,Admin Bldgs - R & M,R & M - plant & equipment
29/06/2021,10008198,£437.50,Association Of Electoral Administrators,Hart Election Costs,Employee training
30/06/2021,10008212,£306.34,Elmdale Maintenance Ltd,Print Room & Photocopying,Photocopying
30/06/2021,10008245,"£1,554.00",The Oyster Partnership,Planning Policy,Agency staff
30/06/2021,10008246,£359.48,The Oyster Partnership,Tree Preservation Orders,Consultation costs
30/06/2021,10008211,"£1,668.40",East Hampshire D C,Street Cleaning,Payments to other LA's
30/06/2021,10008337,"£1,006.79",Chipside Ltd,On Street Parking,Software purchase and licences
30/06/2021,10008219,"£2,166.67",SDK Environmental Ltd,Dog Warden,Sub-contracted work non-rechar
30/06/2021,10008210,£810.00,Artelia UK,Leisure Centres,Fees and hired services
30/06/2021,10008220,"£3,250.00",Artelia UK,Edenbrook Apartments,Sub-contracted work non-rechar
30/06/2021,10008294,"£1,925.00",Haymarket Business Media,Planning Development,Recruitment advertising
30/06/2021,10008209,"£1,485.00",Vivid Resourcing Limited,Planning Development,Consultation costs
30/06/2021,10008350,"£1,204.48",Jade Security Services Ltd,Customer Services Contracts,Sub-contracted work non-rechar
30/06/2021,10008264,"£9,087.00",A and E Builders Limited,Disabled Facs - Mandatory,Capital grants other - Expend
30/06/2021,10008200,£290.00,NP Tree Management Ltd,Tree Preservation Orders,Grounds maintenance services
30/06/2021,10008748,£625.00,Venture Security Management,Edenbrook Country Park,Sub-contracted work non-rechar
30/06/2021,10009198,£625.00,Venture Security Management,Edenbrook Country Park,Sub-contracted work non-rechar
30/06/2021,10008230,"£1,420.00",Scofell Commercial landscapes,Bramshot Farm,Sub-contracted work non-rechar
30/06/2021,10008576,"£21,167.00",LDA Design Consulting Ltd,Planning Development,Consultants - projects
30/06/2021,10008464,£747.08,Indeed Ireland Operations Ltd,HR Contract,Recruitment advertising
30/06/2021,10008216,"£3,000.00",Optimum Technology Transfer Ltd,Support To Elected Bodies,Employee training
30/06/2021,40001669,£500.00,SUNDRY SUPPLIER BACS,Covid19,Grants
30/06/2021,40001670,£500.00,SUNDRY SUPPLIER BACS,Covid19,Grants
30/06/2021,40001671,£500.00,SUNDRY SUPPLIER BACS,Covid19,Grants
30/06/2021,40001672,£500.00,SUNDRY SUPPLIER BACS,Covid19,Grants
01/07/2021,10008329,£250.00,Planning Officers Society,Planning Development,Subscriptions
01/07/2021,10008332,£991.97,Sci Print Ltd,Register Of Electors,Postage costs
01/07/2021,10008354,"£8,306.08",Virgin Media Business,IT Contract,Mobile phone costs
01/07/2021,10008223,"£1,650.00",Redacted personal data,Hartley Wintney Commons,Sub-contracted work non-rechar
01/07/2021,10008508,"-£9,625.00",Serco Limited,Basingstoke Waste Contract,Sub-contracted work non-rechar
01/07/2021,10008282,"£4,527.50",Chelgate Limited,New Settlement,Consultants - projects
01/07/2021,10008229,£782.52,ADT Fire & Security PlC,Admin Bldgs - R & M,R & M - plant & equipment
01/07/2021,10008606,"£2,025.00",Redacted personal data,IT Contract,Consultation costs
01/07/2021,30001010,£728.00,SUNDRY SUPPLIER BACS,Housing Needs Service,Fees for services
02/07/2021,10008247,"£4,750.00",Link Asset Services,Corporate Finance,Brokers fees
02/07/2021,10008254,"£6,666.66",Southern Domestic Abuse Service,Domestic Abuse,Grants
02/07/2021,10008167,"£1,908.00",Redacted personal data,Balance Sheet,
02/07/2021,10008167,"£1,908.00",Redacted personal data,Balance Sheet,
02/07/2021,30001007,"£1,200.00",SUNDRY SUPPLIER BACS,Neighbourhood Planning,Consultants - projects
03/07/2021,10008231,"£1,600.00",Tree Care Associates Ltd,Tree Preservation Orders,Consultation costs
03/07/2021,10008250,"£3,704.02",Npower,Admin Bldgs - R & M,Electricity
03/07/2021,10008240,£576.00,The Risk Busters Ltd,Env Health Commercial,Agency staff
04/07/2021,10008277,£250.00,Pegasus Building Services (Herriard) Ltd,Admin Bldgs - R & M,R & M - plant & equipment
04/07/2021,10008280,£647.00,Pegasus Building Services (Herriard) Ltd,Admin Bldgs - R & M,R & M - plant & equipment
05/07/2021,10009093,"£6,507.91",BT Redcare,CCTV,Sub-contracted work non-rechar
05/07/2021,10008234,£350.00,NP Tree Management Ltd,Tree Preservation Orders,Grounds maintenance services
05/07/2021,10008244,"£4,000.00",Housing Learning & Improvement Network,Planning Policy,Consultants - projects
05/07/2021,40001673,£500.00,SUNDRY SUPPLIER BACS,Covid19,Grants
05/07/2021,40001674,£500.00,SUNDRY SUPPLIER BACS,Covid19,Grants
05/07/2021,40001675,£500.00,SUNDRY SUPPLIER BACS,Covid19,Grants
05/07/2021,40001676,"£3,000.00",SUNDRY SUPPLIER BACS,Covid19,Grants
05/07/2021,40001677,"£3,000.00",SUNDRY SUPPLIER BACS,Covid19,Grants
06/07/2021,30001009,"£92,785.64",Hampshire County Council,Balance Sheet,Developer Cons - County SAMM
06/07/2021,30001012,£500.00,Foster Properties Fleet Ltd,Housing Needs Service,Rent deposit payments
07/07/2021,10008262,"£3,995.32",Southampton City Council,Property Services,Consultation costs
07/07/2021,10008272,£945.00,The Oyster Partnership,Planning Policy,Agency staff
07/07/2021,10008287,£264.00,The Oyster Partnership,Tree Preservation Orders,Consultation costs
07/07/2021,10008325,£330.00,The Oyster Partnership,Tree Preservation Orders,Consultation costs
07/07/2021,10008289,£311.12,Signway Supplies (Datchet) Ltd,Street Furniture,Purchase of equipment
07/07/2021,10008296,"£3,805.00",Liftech Systems (SE) Ltd,Disabled Facs - Mandatory,Capital grants other - Expend
07/07/2021,10008302,"£1,140.00",Osborne Richardson Limited,Environmental Protection,Agency staff
07/07/2021,10008303,"£1,140.00",Osborne Richardson Limited,Environmental Protection,Agency staff
07/07/2021,10008468,£475.00,CMS Training Ltd,HR Contract,Corporate Mgmt training
07/07/2021,10008284,"£9,280.00",Fleet Town Council,Covid19,Room & office rents
07/07/2021,10008286,"£3,750.00",Penna Plc,Commercialisation,Agency staff
07/07/2021,10009868,"£1,260.00",Hampshire County  Council,On Street Parking,Sub-contracted work non-rechar
07/07/2021,10008267,"£1,435.50",Vivid Resourcing Limited,Planning Development,Consultation costs
07/07/2021,10008295,"£1,814.40",BJC Design (Southeast) Ltd,Disabled Facs - Mandatory,Capital grants other - Expend
07/07/2021,10008266,"£1,320.00",G2 Recruitment Solutions,Covid19,Agency staff
07/07/2021,40001678,£500.00,SUNDRY SUPPLIER BACS,Covid19,Grants
08/07/2021,10008301,"£3,190.00",NP Tree Management Ltd,Tree Preservation Orders,Grounds maintenance services
08/07/2021,10008298,"£3,720.00",1st Call Trees Ltd,Tree Preservation Orders,Grounds maintenance services
08/07/2021,10008299,"£4,080.00",1st Call Trees Ltd,Tree Preservation Orders,Grounds maintenance services
08/07/2021,10008300,£440.00,1st Call Trees Ltd,Tree Preservation Orders,Grounds maintenance services
08/07/2021,10008349,£780.00,Alpha Parking,On Street Parking,Employee training
09/07/2021,10008317,"£1,285.22",PHS Group Plc,Admin Bldgs - R & M,Laundry
09/07/2021,10008274,£375.00,Crondall Village Hall Management Com,Rechargeable Elections,Rental costs
09/07/2021,30001011,£756.67,Redacted personal data,Housing Needs Service,Homelessness Costs
09/07/2021,10008340,£560.00,AON UK Ltd,Corporate Finance,Insurance premiums
09/07/2021,10008333,"£2,287.25",ARCHITECTURAL Survey Services,Disabled Facs - Mandatory,Capital grants other - Expend
09/07/2021,10008357,"£2,200.00",ARCHITECTURAL Survey Services,Disabled Facs - Mandatory,Capital grants other - Expend
09/07/2021,10008445,"£3,975.60",Ideagen Gael Ltd,IT Contract,Software purchase and licences
11/07/2021,10008278,"£9,684.60",Rev Solutions Limited,Corporate Finance,Consultants - projects
12/07/2021,10008276,£467.25,SMS Environmental Limited,Admin Bldgs - R & M,R & M - plant & equipment
12/07/2021,40001679,"£1,500.00",SUNDRY SUPPLIER BACS,Covid19,Grants
12/07/2021,40001680,"£1,500.00",SUNDRY SUPPLIER BACS,Covid19,Grants
12/07/2021,40001681,"£1,500.00",SUNDRY SUPPLIER BACS,Covid19,Grants
12/07/2021,40001682,"£1,500.00",SUNDRY SUPPLIER BACS,Covid19,Grants
12/07/2021,40001683,"£1,500.00",SUNDRY SUPPLIER BACS,Covid19,Grants
12/07/2021,40001684,"£1,500.00",SUNDRY SUPPLIER BACS,Covid19,Grants
12/07/2021,40001685,"£1,500.00",SUNDRY SUPPLIER BACS,Covid19,Grants
12/07/2021,40001686,"£1,500.00",SUNDRY SUPPLIER BACS,Covid19,Grants
12/07/2021,40001687,"£1,500.00",SUNDRY SUPPLIER BACS,Covid19,Grants
12/07/2021,40001688,"£1,500.00",SUNDRY SUPPLIER BACS,Covid19,Grants
12/07/2021,40001689,"£1,500.00",SUNDRY SUPPLIER BACS,Covid19,Grants
12/07/2021,40001690,"£1,500.00",SUNDRY SUPPLIER BACS,Covid19,Grants
12/07/2021,40001691,"£1,500.00",SUNDRY SUPPLIER BACS,Covid19,Grants
12/07/2021,40001692,"£1,500.00",SUNDRY SUPPLIER BACS,Covid19,Grants
12/07/2021,40001693,"£1,500.00",SUNDRY SUPPLIER BACS,Covid19,Grants
12/07/2021,40001694,"£1,500.00",SUNDRY SUPPLIER BACS,Covid19,Grants
12/07/2021,40001695,"£1,500.00",SUNDRY SUPPLIER BACS,Covid19,Grants
12/07/2021,40001696,"£1,500.00",SUNDRY SUPPLIER BACS,Covid19,Grants
12/07/2021,40001697,"£1,500.00",SUNDRY SUPPLIER BACS,Covid19,Grants
12/07/2021,40001698,"£1,500.00",SUNDRY SUPPLIER BACS,Covid19,Grants
12/07/2021,40001699,"£1,500.00",SUNDRY SUPPLIER BACS,Covid19,Grants
12/07/2021,40001700,"£1,500.00",SUNDRY SUPPLIER BACS,Covid19,Grants
12/07/2021,40001701,"£1,500.00",SUNDRY SUPPLIER BACS,Covid19,Grants
12/07/2021,40001702,"£1,500.00",SUNDRY SUPPLIER BACS,Covid19,Grants
12/07/2021,40001703,"£1,500.00",SUNDRY SUPPLIER BACS,Covid19,Grants
12/07/2021,40001704,"£1,500.00",SUNDRY SUPPLIER BACS,Covid19,Grants
12/07/2021,40001705,"£1,500.00",SUNDRY SUPPLIER BACS,Covid19,Grants
12/07/2021,40001706,"£1,500.00",SUNDRY SUPPLIER BACS,Covid19,Grants
12/07/2021,40001707,"£1,500.00",SUNDRY SUPPLIER BACS,Covid19,Grants
12/07/2021,40001708,"£1,500.00",SUNDRY SUPPLIER BACS,Covid19,Grants
12/07/2021,40001709,"£1,500.00",SUNDRY SUPPLIER BACS,Covid19,Grants
12/07/2021,40001710,"£1,500.00",SUNDRY SUPPLIER BACS,Covid19,Grants
12/07/2021,40001711,"£1,500.00",SUNDRY SUPPLIER BACS,Covid19,Grants
12/07/2021,40001712,"£1,500.00",SUNDRY SUPPLIER BACS,Covid19,Grants
12/07/2021,40001713,"£1,500.00",SUNDRY SUPPLIER BACS,Covid19,Grants
12/07/2021,40001714,"£1,500.00",SUNDRY SUPPLIER BACS,Covid19,Grants
12/07/2021,40001715,"£1,500.00",SUNDRY SUPPLIER BACS,Covid19,Grants
12/07/2021,40001716,"£1,500.00",SUNDRY SUPPLIER BACS,Covid19,Grants
12/07/2021,40001717,"£1,500.00",SUNDRY SUPPLIER BACS,Covid19,Grants
12/07/2021,40001718,"£1,500.00",SUNDRY SUPPLIER BACS,Covid19,Grants
12/07/2021,40001719,"£1,500.00",SUNDRY SUPPLIER BACS,Covid19,Grants
12/07/2021,40001720,"£1,500.00",SUNDRY SUPPLIER BACS,Covid19,Grants
12/07/2021,40001721,"£1,500.00",SUNDRY SUPPLIER BACS,Covid19,Grants
12/07/2021,40001722,"£1,500.00",SUNDRY SUPPLIER BACS,Covid19,Grants
12/07/2021,40001723,"£1,500.00",SUNDRY SUPPLIER BACS,Covid19,Grants
12/07/2021,40001724,"£1,500.00",SUNDRY SUPPLIER BACS,Covid19,Grants
12/07/2021,40001725,"£1,500.00",SUNDRY SUPPLIER BACS,Covid19,Grants
12/07/2021,40001726,"£1,500.00",SUNDRY SUPPLIER BACS,Covid19,Grants
12/07/2021,40001727,"£1,500.00",SUNDRY SUPPLIER BACS,Covid19,Grants
12/07/2021,40001728,"£1,500.00",SUNDRY SUPPLIER BACS,Covid19,Grants
12/07/2021,40001729,"£1,500.00",SUNDRY SUPPLIER BACS,Covid19,Grants
12/07/2021,40001730,"£1,500.00",SUNDRY SUPPLIER BACS,Covid19,Grants
12/07/2021,40001731,"£1,500.00",SUNDRY SUPPLIER BACS,Covid19,Grants
12/07/2021,40001732,"£1,500.00",SUNDRY SUPPLIER BACS,Covid19,Grants
12/07/2021,40001733,"£1,500.00",SUNDRY SUPPLIER BACS,Covid19,Grants
12/07/2021,40001734,"£1,500.00",SUNDRY SUPPLIER BACS,Covid19,Grants
12/07/2021,40001735,"£1,500.00",SUNDRY SUPPLIER BACS,Covid19,Grants
12/07/2021,40001736,"£1,500.00",SUNDRY SUPPLIER BACS,Covid19,Grants
12/07/2021,40001737,"£1,500.00",SUNDRY SUPPLIER BACS,Covid19,Grants
12/07/2021,40001738,"£1,500.00",SUNDRY SUPPLIER BACS,Covid19,Grants
12/07/2021,40001739,"£1,500.00",SUNDRY SUPPLIER BACS,Covid19,Grants
12/07/2021,40001740,"£1,500.00",SUNDRY SUPPLIER BACS,Covid19,Grants
12/07/2021,40001741,"£1,500.00",SUNDRY SUPPLIER BACS,Covid19,Grants
12/07/2021,40001742,"£1,500.00",SUNDRY SUPPLIER BACS,Covid19,Grants
12/07/2021,40001743,"£1,500.00",SUNDRY SUPPLIER BACS,Covid19,Grants
12/07/2021,40001744,"£1,500.00",SUNDRY SUPPLIER BACS,Covid19,Grants
12/07/2021,40001745,"£1,500.00",SUNDRY SUPPLIER BACS,Covid19,Grants
12/07/2021,40001746,"£1,500.00",SUNDRY SUPPLIER BACS,Covid19,Grants
12/07/2021,40001747,"£1,500.00",SUNDRY SUPPLIER BACS,Covid19,Grants
12/07/2021,40001748,"£1,500.00",SUNDRY SUPPLIER BACS,Covid19,Grants
12/07/2021,40001749,"£1,500.00",SUNDRY SUPPLIER BACS,Covid19,Grants
12/07/2021,40001750,"£1,500.00",SUNDRY SUPPLIER BACS,Covid19,Grants
12/07/2021,40001751,"£1,500.00",SUNDRY SUPPLIER BACS,Covid19,Grants
12/07/2021,40001752,"£1,500.00",SUNDRY SUPPLIER BACS,Covid19,Grants
12/07/2021,40001753,"£1,500.00",SUNDRY SUPPLIER BACS,Covid19,Grants
12/07/2021,40001754,"£1,500.00",SUNDRY SUPPLIER BACS,Covid19,Grants
12/07/2021,40001755,"£1,500.00",SUNDRY SUPPLIER BACS,Covid19,Grants
12/07/2021,40001756,"£1,500.00",SUNDRY SUPPLIER BACS,Covid19,Grants
12/07/2021,40001757,"£1,500.00",SUNDRY SUPPLIER BACS,Covid19,Grants
12/07/2021,40001758,"£1,500.00",SUNDRY SUPPLIER BACS,Covid19,Grants
12/07/2021,40001759,"£1,500.00",SUNDRY SUPPLIER BACS,Covid19,Grants
12/07/2021,40001760,"£1,500.00",SUNDRY SUPPLIER BACS,Covid19,Grants
12/07/2021,40001761,"£1,500.00",SUNDRY SUPPLIER BACS,Covid19,Grants
12/07/2021,40001762,"£1,500.00",SUNDRY SUPPLIER BACS,Covid19,Grants
12/07/2021,40001763,"£1,500.00",SUNDRY SUPPLIER BACS,Covid19,Grants
12/07/2021,40001764,"£1,500.00",SUNDRY SUPPLIER BACS,Covid19,Grants
12/07/2021,40001765,"£1,500.00",SUNDRY SUPPLIER BACS,Covid19,Grants
12/07/2021,40001766,"£1,500.00",SUNDRY SUPPLIER BACS,Covid19,Grants
12/07/2021,40001767,"£1,500.00",SUNDRY SUPPLIER BACS,Covid19,Grants
12/07/2021,40001768,"£1,500.00",SUNDRY SUPPLIER BACS,Covid19,Grants
12/07/2021,40001769,"£1,500.00",SUNDRY SUPPLIER BACS,Covid19,Grants
12/07/2021,40001770,"£1,500.00",SUNDRY SUPPLIER BACS,Covid19,Grants
12/07/2021,40001771,"£1,500.00",SUNDRY SUPPLIER BACS,Covid19,Grants
12/07/2021,40001772,"£1,500.00",SUNDRY SUPPLIER BACS,Covid19,Grants
12/07/2021,40001773,"£1,500.00",SUNDRY SUPPLIER BACS,Covid19,Grants
12/07/2021,40001774,"£1,500.00",SUNDRY SUPPLIER BACS,Covid19,Grants
12/07/2021,40001775,"£1,500.00",SUNDRY SUPPLIER BACS,Covid19,Grants
12/07/2021,40001776,"£1,500.00",SUNDRY SUPPLIER BACS,Covid19,Grants
12/07/2021,40001777,"£1,500.00",SUNDRY SUPPLIER BACS,Covid19,Grants
12/07/2021,40001778,"£1,500.00",SUNDRY SUPPLIER BACS,Covid19,Grants
12/07/2021,40001779,"£1,500.00",SUNDRY SUPPLIER BACS,Covid19,Grants
12/07/2021,40001780,"£1,500.00",SUNDRY SUPPLIER BACS,Covid19,Grants
12/07/2021,40001781,"£1,500.00",SUNDRY SUPPLIER BACS,Covid19,Grants
12/07/2021,40001782,"£1,500.00",SUNDRY SUPPLIER BACS,Covid19,Grants
12/07/2021,40001783,"£1,500.00",SUNDRY SUPPLIER BACS,Covid19,Grants
12/07/2021,40001784,"£1,500.00",SUNDRY SUPPLIER BACS,Covid19,Grants
12/07/2021,40001785,"£1,500.00",SUNDRY SUPPLIER BACS,Covid19,Grants
12/07/2021,40001786,"£1,500.00",SUNDRY SUPPLIER BACS,Covid19,Grants
12/07/2021,40001787,"£1,500.00",SUNDRY SUPPLIER BACS,Covid19,Grants
12/07/2021,40001788,"£1,500.00",SUNDRY SUPPLIER BACS,Covid19,Grants
12/07/2021,40001789,"£1,500.00",SUNDRY SUPPLIER BACS,Covid19,Grants
12/07/2021,40001790,"£1,500.00",SUNDRY SUPPLIER BACS,Covid19,Grants
12/07/2021,40001791,"£1,500.00",SUNDRY SUPPLIER BACS,Covid19,Grants
12/07/2021,40001792,"£1,500.00",SUNDRY SUPPLIER BACS,Covid19,Grants
12/07/2021,40001793,"£1,500.00",SUNDRY SUPPLIER BACS,Covid19,Grants
12/07/2021,40001794,"£1,500.00",SUNDRY SUPPLIER BACS,Covid19,Grants
12/07/2021,40001795,"£1,500.00",SUNDRY SUPPLIER BACS,Covid19,Grants
12/07/2021,40001796,"£1,500.00",SUNDRY SUPPLIER BACS,Covid19,Grants
12/07/2021,40001797,"£1,500.00",SUNDRY SUPPLIER BACS,Covid19,Grants
12/07/2021,40001798,"£1,500.00",SUNDRY SUPPLIER BACS,Covid19,Grants
12/07/2021,40001799,"£1,500.00",SUNDRY SUPPLIER BACS,Covid19,Grants
12/07/2021,40001800,"£1,500.00",SUNDRY SUPPLIER BACS,Covid19,Grants
12/07/2021,40001801,"£1,500.00",SUNDRY SUPPLIER BACS,Covid19,Grants
12/07/2021,40001802,"£1,500.00",SUNDRY SUPPLIER BACS,Covid19,Grants
12/07/2021,40001803,"£1,500.00",SUNDRY SUPPLIER BACS,Covid19,Grants
12/07/2021,40001804,"£1,500.00",SUNDRY SUPPLIER BACS,Covid19,Grants
12/07/2021,40001805,"£1,500.00",SUNDRY SUPPLIER BACS,Covid19,Grants
12/07/2021,40001806,"£1,500.00",SUNDRY SUPPLIER BACS,Covid19,Grants
12/07/2021,40001807,"£1,500.00",SUNDRY SUPPLIER BACS,Covid19,Grants
12/07/2021,40001808,"£1,500.00",SUNDRY SUPPLIER BACS,Covid19,Grants
12/07/2021,40001809,"£1,500.00",SUNDRY SUPPLIER BACS,Covid19,Grants
12/07/2021,40001810,"£1,500.00",SUNDRY SUPPLIER BACS,Covid19,Grants
12/07/2021,40001811,"£1,500.00",SUNDRY SUPPLIER BACS,Covid19,Grants
12/07/2021,40001812,"£1,500.00",SUNDRY SUPPLIER BACS,Covid19,Grants
12/07/2021,40001813,"£1,500.00",SUNDRY SUPPLIER BACS,Covid19,Grants
12/07/2021,40001814,"£1,500.00",SUNDRY SUPPLIER BACS,Covid19,Grants
12/07/2021,40001815,"£1,500.00",SUNDRY SUPPLIER BACS,Covid19,Grants
12/07/2021,40001816,"£1,500.00",SUNDRY SUPPLIER BACS,Covid19,Grants
12/07/2021,40001817,"£1,500.00",SUNDRY SUPPLIER BACS,Covid19,Grants
12/07/2021,40001818,"£1,500.00",SUNDRY SUPPLIER BACS,Covid19,Grants
12/07/2021,40001819,"£1,500.00",SUNDRY SUPPLIER BACS,Covid19,Grants
12/07/2021,40001820,"£1,500.00",SUNDRY SUPPLIER BACS,Covid19,Grants
12/07/2021,40001821,"£1,500.00",SUNDRY SUPPLIER BACS,Covid19,Grants
12/07/2021,40001822,"£1,500.00",SUNDRY SUPPLIER BACS,Covid19,Grants
12/07/2021,40001823,"£1,500.00",SUNDRY SUPPLIER BACS,Covid19,Grants
12/07/2021,40001824,"£1,500.00",SUNDRY SUPPLIER BACS,Covid19,Grants
12/07/2021,40001825,"£1,500.00",SUNDRY SUPPLIER BACS,Covid19,Grants
12/07/2021,40001826,"£1,500.00",SUNDRY SUPPLIER BACS,Covid19,Grants
12/07/2021,40001827,"£1,500.00",SUNDRY SUPPLIER BACS,Covid19,Grants
12/07/2021,40001828,"£1,500.00",SUNDRY SUPPLIER BACS,Covid19,Grants
12/07/2021,40001829,"£1,500.00",SUNDRY SUPPLIER BACS,Covid19,Grants
12/07/2021,40001830,"£1,500.00",SUNDRY SUPPLIER BACS,Covid19,Grants
12/07/2021,40001831,"£1,500.00",SUNDRY SUPPLIER BACS,Covid19,Grants
12/07/2021,40001832,"£1,500.00",SUNDRY SUPPLIER BACS,Covid19,Grants
12/07/2021,40001833,"£1,500.00",SUNDRY SUPPLIER BACS,Covid19,Grants
12/07/2021,40001834,"£1,500.00",SUNDRY SUPPLIER BACS,Covid19,Grants
12/07/2021,40001835,"£1,500.00",SUNDRY SUPPLIER BACS,Covid19,Grants
12/07/2021,40001836,"£1,500.00",SUNDRY SUPPLIER BACS,Covid19,Grants
12/07/2021,40001837,"£1,500.00",SUNDRY SUPPLIER BACS,Covid19,Grants
12/07/2021,40001838,"£1,500.00",SUNDRY SUPPLIER BACS,Covid19,Grants
12/07/2021,40001839,"£1,500.00",SUNDRY SUPPLIER BACS,Covid19,Grants
12/07/2021,40001840,"£1,500.00",SUNDRY SUPPLIER BACS,Covid19,Grants
12/07/2021,40001841,"£1,500.00",SUNDRY SUPPLIER BACS,Covid19,Grants
12/07/2021,40001842,"£1,500.00",SUNDRY SUPPLIER BACS,Covid19,Grants
12/07/2021,40001843,"£1,500.00",SUNDRY SUPPLIER BACS,Covid19,Grants
12/07/2021,40001844,"£1,500.00",SUNDRY SUPPLIER BACS,Covid19,Grants
12/07/2021,40001845,"£1,500.00",SUNDRY SUPPLIER BACS,Covid19,Grants
12/07/2021,40001846,"£1,500.00",SUNDRY SUPPLIER BACS,Covid19,Grants
12/07/2021,40001847,"£1,500.00",SUNDRY SUPPLIER BACS,Covid19,Grants
12/07/2021,40001848,"£1,500.00",SUNDRY SUPPLIER BACS,Covid19,Grants
12/07/2021,40001849,"£1,500.00",SUNDRY SUPPLIER BACS,Covid19,Grants
12/07/2021,40001850,"£1,500.00",SUNDRY SUPPLIER BACS,Covid19,Grants
12/07/2021,40001851,"£1,500.00",SUNDRY SUPPLIER BACS,Covid19,Grants
12/07/2021,40001852,"£1,500.00",SUNDRY SUPPLIER BACS,Covid19,Grants
12/07/2021,40001853,"£1,500.00",SUNDRY SUPPLIER BACS,Covid19,Grants
12/07/2021,40001854,"£1,500.00",SUNDRY SUPPLIER BACS,Covid19,Grants
12/07/2021,40001855,"£1,500.00",SUNDRY SUPPLIER BACS,Covid19,Grants
12/07/2021,40001856,"£1,500.00",SUNDRY SUPPLIER BACS,Covid19,Grants
12/07/2021,40001857,"£1,500.00",SUNDRY SUPPLIER BACS,Covid19,Grants
12/07/2021,40001858,"£1,500.00",SUNDRY SUPPLIER BACS,Covid19,Grants
12/07/2021,40001859,"£1,500.00",SUNDRY SUPPLIER BACS,Covid19,Grants
12/07/2021,40001860,"£1,500.00",SUNDRY SUPPLIER BACS,Covid19,Grants
12/07/2021,40001861,"£1,500.00",SUNDRY SUPPLIER BACS,Covid19,Grants
12/07/2021,40001862,"£1,500.00",SUNDRY SUPPLIER BACS,Covid19,Grants
12/07/2021,40001863,"£1,500.00",SUNDRY SUPPLIER BACS,Covid19,Grants
12/07/2021,40001864,"£1,500.00",SUNDRY SUPPLIER BACS,Covid19,Grants
12/07/2021,40001865,"£1,500.00",SUNDRY SUPPLIER BACS,Covid19,Grants
12/07/2021,40001866,"£1,500.00",SUNDRY SUPPLIER BACS,Covid19,Grants
12/07/2021,40001867,"£1,500.00",SUNDRY SUPPLIER BACS,Covid19,Grants
12/07/2021,40001868,"£1,500.00",SUNDRY SUPPLIER BACS,Covid19,Grants
12/07/2021,40001869,"£1,500.00",SUNDRY SUPPLIER BACS,Covid19,Grants
12/07/2021,40001870,"£1,500.00",SUNDRY SUPPLIER BACS,Covid19,Grants
12/07/2021,40001871,"£1,500.00",SUNDRY SUPPLIER BACS,Covid19,Grants
12/07/2021,40001872,"£1,500.00",SUNDRY SUPPLIER BACS,Covid19,Grants
12/07/2021,40001873,"£1,500.00",SUNDRY SUPPLIER BACS,Covid19,Grants
12/07/2021,40001874,"£1,500.00",SUNDRY SUPPLIER BACS,Covid19,Grants
12/07/2021,40001875,"£1,500.00",SUNDRY SUPPLIER BACS,Covid19,Grants
12/07/2021,40001876,"£1,500.00",SUNDRY SUPPLIER BACS,Covid19,Grants
12/07/2021,40001877,"£1,500.00",SUNDRY SUPPLIER BACS,Covid19,Grants
12/07/2021,40001878,£500.00,SUNDRY SUPPLIER BACS,Covid19,Grants
12/07/2021,40001879,"£1,500.00",SUNDRY SUPPLIER BACS,Covid19,Grants
12/07/2021,40001880,£500.00,SUNDRY SUPPLIER BACS,Covid19,Grants
12/07/2021,40001881,£500.00,SUNDRY SUPPLIER BACS,Covid19,Grants
12/07/2021,40001882,£500.00,SUNDRY SUPPLIER BACS,Covid19,Grants
12/07/2021,40001883,£500.00,SUNDRY SUPPLIER BACS,Covid19,Grants
12/07/2021,40001884,£500.00,SUNDRY SUPPLIER BACS,Covid19,Grants
12/07/2021,40001885,£500.00,SUNDRY SUPPLIER BACS,Covid19,Grants
12/07/2021,40001886,£500.00,SUNDRY SUPPLIER BACS,Covid19,Grants
12/07/2021,40001887,£500.00,SUNDRY SUPPLIER BACS,Covid19,Grants
12/07/2021,40001888,£500.00,SUNDRY SUPPLIER BACS,Covid19,Grants
12/07/2021,40001889,£500.00,SUNDRY SUPPLIER BACS,Covid19,Grants
12/07/2021,40001890,£500.00,SUNDRY SUPPLIER BACS,Covid19,Grants
12/07/2021,40001891,£500.00,SUNDRY SUPPLIER BACS,Covid19,Grants
12/07/2021,40001892,£500.00,SUNDRY SUPPLIER BACS,Covid19,Grants
12/07/2021,40001893,"£1,500.00",SUNDRY SUPPLIER BACS,Covid19,Grants
12/07/2021,40001894,£500.00,SUNDRY SUPPLIER BACS,Covid19,Grants
12/07/2021,40001895,"£1,500.00",SUNDRY SUPPLIER BACS,Covid19,Grants
12/07/2021,40001896,£500.00,SUNDRY SUPPLIER BACS,Covid19,Grants
12/07/2021,40001897,£500.00,SUNDRY SUPPLIER BACS,Covid19,Grants
12/07/2021,40001898,"£1,500.00",SUNDRY SUPPLIER BACS,Covid19,Grants
12/07/2021,40001899,£500.00,SUNDRY SUPPLIER BACS,Covid19,Grants
12/07/2021,40001900,£500.00,SUNDRY SUPPLIER BACS,Covid19,Grants
12/07/2021,40001901,£500.00,SUNDRY SUPPLIER BACS,Covid19,Grants
12/07/2021,40001902,£500.00,SUNDRY SUPPLIER BACS,Covid19,Grants
12/07/2021,40001903,"£1,500.00",SUNDRY SUPPLIER BACS,Covid19,Grants
12/07/2021,40001904,"£1,500.00",SUNDRY SUPPLIER BACS,Covid19,Grants
12/07/2021,40001905,£500.00,SUNDRY SUPPLIER BACS,Covid19,Grants
12/07/2021,40001906,"£1,500.00",SUNDRY SUPPLIER BACS,Covid19,Grants
12/07/2021,40001907,"£1,500.00",SUNDRY SUPPLIER BACS,Covid19,Grants
12/07/2021,40001908,£500.00,SUNDRY SUPPLIER BACS,Covid19,Grants
12/07/2021,40001909,"£1,500.00",SUNDRY SUPPLIER BACS,Covid19,Grants
12/07/2021,40001910,£500.00,SUNDRY SUPPLIER BACS,Covid19,Grants
12/07/2021,40001911,£500.00,SUNDRY SUPPLIER BACS,Covid19,Grants
12/07/2021,40001912,"£1,500.00",SUNDRY SUPPLIER BACS,Covid19,Grants
12/07/2021,40001913,£500.00,SUNDRY SUPPLIER BACS,Covid19,Grants
12/07/2021,40001914,£500.00,SUNDRY SUPPLIER BACS,Covid19,Grants
12/07/2021,40001915,£500.00,SUNDRY SUPPLIER BACS,Covid19,Grants
12/07/2021,40001916,"£1,500.00",SUNDRY SUPPLIER BACS,Covid19,Grants
12/07/2021,40001917,"£1,500.00",SUNDRY SUPPLIER BACS,Covid19,Grants
12/07/2021,40001918,£500.00,SUNDRY SUPPLIER BACS,Covid19,Grants
12/07/2021,40001919,£500.00,SUNDRY SUPPLIER BACS,Covid19,Grants
12/07/2021,40001920,£500.00,SUNDRY SUPPLIER BACS,Covid19,Grants
12/07/2021,40001921,"£1,500.00",SUNDRY SUPPLIER BACS,Covid19,Grants
12/07/2021,40001922,£500.00,SUNDRY SUPPLIER BACS,Covid19,Grants
12/07/2021,40001923,£500.00,SUNDRY SUPPLIER BACS,Covid19,Grants
12/07/2021,40001924,£500.00,SUNDRY SUPPLIER BACS,Covid19,Grants
12/07/2021,40001925,£500.00,SUNDRY SUPPLIER BACS,Covid19,Grants
12/07/2021,40001926,£500.00,SUNDRY SUPPLIER BACS,Covid19,Grants
12/07/2021,40001927,£500.00,SUNDRY SUPPLIER BACS,Covid19,Grants
12/07/2021,40001928,£500.00,SUNDRY SUPPLIER BACS,Covid19,Grants
12/07/2021,40001929,"£1,500.00",SUNDRY SUPPLIER BACS,Covid19,Grants
12/07/2021,40001930,£500.00,SUNDRY SUPPLIER BACS,Covid19,Grants
12/07/2021,40001931,£500.00,SUNDRY SUPPLIER BACS,Covid19,Grants
12/07/2021,40001932,£500.00,SUNDRY SUPPLIER BACS,Covid19,Grants
12/07/2021,40001933,"£1,500.00",SUNDRY SUPPLIER BACS,Covid19,Grants
12/07/2021,40001934,£500.00,SUNDRY SUPPLIER BACS,Covid19,Grants
12/07/2021,40001935,£500.00,SUNDRY SUPPLIER BACS,Covid19,Grants
12/07/2021,40001936,"£1,500.00",SUNDRY SUPPLIER BACS,Covid19,Grants
12/07/2021,40001937,£500.00,SUNDRY SUPPLIER BACS,Covid19,Grants
12/07/2021,40001938,£500.00,SUNDRY SUPPLIER BACS,Covid19,Grants
12/07/2021,40001939,£500.00,SUNDRY SUPPLIER BACS,Covid19,Grants
12/07/2021,40001940,"£1,500.00",SUNDRY SUPPLIER BACS,Covid19,Grants
12/07/2021,40001941,£500.00,SUNDRY SUPPLIER BACS,Covid19,Grants
12/07/2021,40001942,£500.00,SUNDRY SUPPLIER BACS,Covid19,Grants
12/07/2021,40001943,"£1,500.00",SUNDRY SUPPLIER BACS,Covid19,Grants
12/07/2021,40001944,£500.00,SUNDRY SUPPLIER BACS,Covid19,Grants
12/07/2021,40001945,£500.00,SUNDRY SUPPLIER BACS,Covid19,Grants
12/07/2021,40001946,£500.00,SUNDRY SUPPLIER BACS,Covid19,Grants
12/07/2021,40001947,"£1,500.00",SUNDRY SUPPLIER BACS,Covid19,Grants
12/07/2021,40001948,"£1,500.00",SUNDRY SUPPLIER BACS,Covid19,Grants
12/07/2021,40001949,"£1,500.00",SUNDRY SUPPLIER BACS,Covid19,Grants
12/07/2021,40001950,"£1,500.00",SUNDRY SUPPLIER BACS,Covid19,Grants
12/07/2021,40001951,"£1,500.00",SUNDRY SUPPLIER BACS,Covid19,Grants
12/07/2021,40001952,"£1,500.00",SUNDRY SUPPLIER BACS,Covid19,Grants
12/07/2021,40001953,"£1,500.00",SUNDRY SUPPLIER BACS,Covid19,Grants
12/07/2021,40001954,"£1,500.00",SUNDRY SUPPLIER BACS,Covid19,Grants
12/07/2021,40001955,"£1,500.00",SUNDRY SUPPLIER BACS,Covid19,Grants
12/07/2021,40001956,"£1,500.00",SUNDRY SUPPLIER BACS,Covid19,Grants
12/07/2021,40001957,"£1,500.00",SUNDRY SUPPLIER BACS,Covid19,Grants
12/07/2021,40001958,"£1,500.00",SUNDRY SUPPLIER BACS,Covid19,Grants
12/07/2021,40001959,"£1,500.00",SUNDRY SUPPLIER BACS,Covid19,Grants
12/07/2021,40001960,"£1,500.00",SUNDRY SUPPLIER BACS,Covid19,Grants
12/07/2021,40001961,"£1,500.00",SUNDRY SUPPLIER BACS,Covid19,Grants
12/07/2021,40001962,"£1,500.00",SUNDRY SUPPLIER BACS,Covid19,Grants
12/07/2021,40001963,"£1,500.00",SUNDRY SUPPLIER BACS,Covid19,Grants
12/07/2021,40001964,"£1,500.00",SUNDRY SUPPLIER BACS,Covid19,Grants
12/07/2021,40001965,"£1,500.00",SUNDRY SUPPLIER BACS,Covid19,Grants
12/07/2021,40001966,"£1,500.00",SUNDRY SUPPLIER BACS,Covid19,Grants
12/07/2021,40001967,"£1,500.00",SUNDRY SUPPLIER BACS,Covid19,Grants
12/07/2021,40001968,"£1,500.00",SUNDRY SUPPLIER BACS,Covid19,Grants
12/07/2021,40001969,"£1,500.00",SUNDRY SUPPLIER BACS,Covid19,Grants
12/07/2021,40001970,"£1,500.00",SUNDRY SUPPLIER BACS,Covid19,Grants
12/07/2021,40001971,"£1,500.00",SUNDRY SUPPLIER BACS,Covid19,Grants
12/07/2021,40001972,"£1,500.00",SUNDRY SUPPLIER BACS,Covid19,Grants
12/07/2021,40001973,"£1,500.00",SUNDRY SUPPLIER BACS,Covid19,Grants
12/07/2021,40001974,"£1,500.00",SUNDRY SUPPLIER BACS,Covid19,Grants
12/07/2021,40001975,"£1,500.00",SUNDRY SUPPLIER BACS,Covid19,Grants
12/07/2021,40001976,"£1,500.00",SUNDRY SUPPLIER BACS,Covid19,Grants
12/07/2021,40001977,"£1,500.00",SUNDRY SUPPLIER BACS,Covid19,Grants
12/07/2021,40001978,"£1,500.00",SUNDRY SUPPLIER BACS,Covid19,Grants
12/07/2021,40001979,"£1,500.00",SUNDRY SUPPLIER BACS,Covid19,Grants
12/07/2021,40001980,"£1,500.00",SUNDRY SUPPLIER BACS,Covid19,Grants
12/07/2021,40001981,"£1,500.00",SUNDRY SUPPLIER BACS,Covid19,Grants
12/07/2021,40001982,"£1,500.00",SUNDRY SUPPLIER BACS,Covid19,Grants
12/07/2021,40001983,"£1,500.00",SUNDRY SUPPLIER BACS,Covid19,Grants
12/07/2021,40001984,"£1,500.00",SUNDRY SUPPLIER BACS,Covid19,Grants
12/07/2021,40001985,"£1,500.00",SUNDRY SUPPLIER BACS,Covid19,Grants
12/07/2021,40001986,"£1,500.00",SUNDRY SUPPLIER BACS,Covid19,Grants
12/07/2021,40001987,£500.00,SUNDRY SUPPLIER BACS,Covid19,Grants
12/07/2021,40001988,£500.00,SUNDRY SUPPLIER BACS,Covid19,Grants
12/07/2021,40001989,£500.00,SUNDRY SUPPLIER BACS,Covid19,Grants
12/07/2021,40001993,"£1,500.00",SUNDRY SUPPLIER BACS,Covid19,Grants
12/07/2021,40001994,£500.00,SUNDRY SUPPLIER BACS,Covid19,Grants
12/07/2021,40001995,£500.00,SUNDRY SUPPLIER BACS,Covid19,Grants
12/07/2021,40001996,£500.00,SUNDRY SUPPLIER BACS,Covid19,Grants
12/07/2021,40001997,£500.00,SUNDRY SUPPLIER BACS,Covid19,Grants
12/07/2021,40002174,"£1,500.00",SUNDRY SUPPLIER BACS,Covid19,Grants
13/07/2021,10008475,£354.39,Npower,Admin Bldgs - R & M,Electricity
13/07/2021,10008270,£750.00,JDB Contractors & Son Ltd,Tree Preservation Orders,Grounds maintenance services
13/07/2021,10008271,£250.00,Solace,Leadership Team,Professional subscriptions
13/07/2021,30001013,£924.00,SUNDRY SUPPLIER BACS,Planning Development,Planning - application fees
13/07/2021,30001023,£750.00,SUNDRY SUPPLIER BACS,Housing Needs Service,Homelessness Costs
14/07/2021,10008323,"£1,406.00",The Oyster Partnership,Planning Development,Consultation costs
14/07/2021,10008324,"£1,406.00",The Oyster Partnership,Planning Development,Consultation costs
14/07/2021,10008326,"£1,406.00",The Oyster Partnership,Planning Development,Consultation costs
14/07/2021,10008331,"£1,140.00",Osborne Richardson Limited,Environmental Protection,Agency staff
14/07/2021,10008348,"£4,774.00",Bevan Brittan LLP,Commercialisation,Legal services
14/07/2021,10008626,£325.80,Bevan Brittan LLP,Leisure Centres,Fees and hired services
14/07/2021,10008330,"£3,000.00",AC Line Markings,Highways Traffic Management,Sub-contracted work non-rechar
14/07/2021,10008291,"£1,700.00",Francis Taylor Building,Planning Development,Consultants - projects
14/07/2021,10008320,£338.56,Flowbird Smart City UK,Off Street Parking,Ticket machines
14/07/2021,10008304,£660.00,G2 Recruitment Solutions,Covid19,Agency staff
14/07/2021,30001034,"£24,800.00",SUNDRY SUPPLIER BACS,Covid19,Grants
14/07/2021,40001998,"£1,500.00",SUNDRY SUPPLIER BACS,Covid19,Grants
14/07/2021,40002016,£500.00,SUNDRY SUPPLIER BACS,Covid19,Grants
15/07/2021,10008356,"£3,505.83",Npower,Admin Bldgs - R & M,Electricity
15/07/2021,40001999,"£1,500.00",SUNDRY SUPPLIER BACS,Covid19,Grants
16/07/2021,10008315,£900.00,BCA Landbased Training,Environment Promotion Strategy,Employee training
16/07/2021,10008362,£725.00,Cooper & Withycombe Ltd,Commercialisation,Sub-contracted work non-rechar
16/07/2021,10008363,£550.00,Cooper & Withycombe Ltd,Commercialisation,Sub-contracted work non-rechar
16/07/2021,10008636,"£1,009.61",Nominet UK,IT Contract,Purchase of hardware
16/07/2021,10008311,"-£10,000.00",Khipu Networks Limited,IT Upgrade,Improvement works
16/07/2021,10008319,£595.00,Talking Menopause Ltd,Health and Wellbeing,Fees and hired services
16/07/2021,40002000,"£1,500.00",SUNDRY SUPPLIER BACS,Covid19,Grants
17/07/2021,40002001,"£1,500.00",SUNDRY SUPPLIER BACS,Covid19,Grants
18/07/2021,10008336,"£11,925.00",Southern Counties Building Solutions Ltd,Disabled Facs - Mandatory,Capital grants other - Expend
18/07/2021,40002002,"£8,000.00",SUNDRY SUPPLIER BACS,Covid19,Grants
19/07/2021,30001019,£720.00,Foster Properties Fleet Ltd,Housing Needs Service,Rent deposit payments
19/07/2021,10008392,"£14,626.40",Simon Hutchings Building And Maintenance,Disabled Facs - Mandatory,Capital grants other - Expend
19/07/2021,30001018,"£1,000.00",Redacted personal data,Housing Needs Service,HB - Local Scheme Rent Rebates
19/07/2021,10008316,"£1,970.00",NP Tree Management Ltd,Tree Preservation Orders,Grounds maintenance services
19/07/2021,10008343,"£19,980.00",Flowbird Smart City UK,On Street Parking,Ticket machines
19/07/2021,40002003,"£1,500.00",SUNDRY SUPPLIER BACS,Covid19,Grants
20/07/2021,10008375,£302.40,Pegasus Building Services (Herriard) Ltd,Admin Bldgs - R & M,R & M - plant & equipment
20/07/2021,10008342,£406.90,VIVID Housing Limited,Housing Needs Service,HB - Local Scheme Rent Rebates
20/07/2021,10008424,"£2,915.50",Bevan Brittan LLP,Commercialisation,Legal services
20/07/2021,30001021,£320.00,SUNDRY SUPPLIER BACS,Housing Needs Service,Homelessness Costs
20/07/2021,30001024,£950.00,SUNDRY SUPPLIER BACS,Housing Needs Service,HB - Local Scheme Rent Rebates
20/07/2021,40002004,"£1,500.00",SUNDRY SUPPLIER BACS,Covid19,Grants
20/07/2021,40002015,£500.00,SUNDRY SUPPLIER BACS,Covid19,Grants
20/07/2021,40002017,"£1,500.00",SUNDRY SUPPLIER BACS,Covid19,Grants
20/07/2021,40002018,"£1,500.00",SUNDRY SUPPLIER BACS,Covid19,Grants
20/07/2021,40002019,£500.00,SUNDRY SUPPLIER BACS,Covid19,Grants
21/07/2021,10008366,£921.50,The Oyster Partnership,Planning Development,Consultation costs
21/07/2021,10008367,£366.52,The Oyster Partnership,Tree Preservation Orders,Consultation costs
21/07/2021,10008361,"£1,140.00",Osborne Richardson Limited,Environmental Protection,Agency staff
21/07/2021,10008489,"£9,500.00",Civica UK Ltd,Housing Needs Service,Homelessness Costs
21/07/2021,30001026,£500.00,Prudential,Balance Sheet,Payroll Ded & Pay Partners EEs
21/07/2021,10008355,"£2,970.00",Vivid Resourcing Limited,Planning Development,Consultation costs
21/07/2021,10008358,£660.00,G2 Recruitment Solutions,Covid19,Agency staff
21/07/2021,10008364,£540.00,Buckingham Futures,Env Health Commercial,Agency staff
21/07/2021,10008351,£500.00,SUNDRY SUPPLIER BACS,Covid19,Grants
21/07/2021,30001025,"£1,580.00",SUNDRY SUPPLIER BACS,Housing Needs Service,HB - Local Scheme Rent Rebates
21/07/2021,30001029,£297.50,SUNDRY SUPPLIER BACS,Fleet Pond,Sub-contracted work non-rechar
21/07/2021,40002005,"£1,500.00",SUNDRY SUPPLIER BACS,Covid19,Grants
21/07/2021,40002020,"£1,500.00",SUNDRY SUPPLIER BACS,Covid19,Grants
21/07/2021,40002021,"£1,500.00",SUNDRY SUPPLIER BACS,Covid19,Grants
21/07/2021,40002022,"£1,500.00",SUNDRY SUPPLIER BACS,Covid19,Grants
21/07/2021,40002023,"£1,500.00",SUNDRY SUPPLIER BACS,Covid19,Grants
21/07/2021,40002024,"£1,500.00",SUNDRY SUPPLIER BACS,Covid19,Grants
21/07/2021,40002025,"£1,500.00",SUNDRY SUPPLIER BACS,Covid19,Grants
21/07/2021,40002026,"£1,500.00",SUNDRY SUPPLIER BACS,Covid19,Grants
21/07/2021,40002027,"£1,500.00",SUNDRY SUPPLIER BACS,Covid19,Grants
21/07/2021,40002028,£500.00,SUNDRY SUPPLIER BACS,Covid19,Grants
21/07/2021,40002029,£500.00,SUNDRY SUPPLIER BACS,Covid19,Grants
21/07/2021,40002030,£500.00,SUNDRY SUPPLIER BACS,Covid19,Grants
21/07/2021,40002031,£500.00,SUNDRY SUPPLIER BACS,Covid19,Grants
21/07/2021,40002032,£500.00,SUNDRY SUPPLIER BACS,Covid19,Grants
21/07/2021,40002033,£500.00,SUNDRY SUPPLIER BACS,Covid19,Grants
21/07/2021,40002034,£500.00,SUNDRY SUPPLIER BACS,Covid19,Grants
21/07/2021,40002035,£500.00,SUNDRY SUPPLIER BACS,Covid19,Grants
21/07/2021,40002036,£500.00,SUNDRY SUPPLIER BACS,Covid19,Grants
21/07/2021,40002037,£500.00,SUNDRY SUPPLIER BACS,Covid19,Grants
21/07/2021,40002038,£500.00,SUNDRY SUPPLIER BACS,Covid19,Grants
21/07/2021,40002039,£500.00,SUNDRY SUPPLIER BACS,Covid19,Grants
21/07/2021,40002040,£500.00,SUNDRY SUPPLIER BACS,Covid19,Grants
21/07/2021,40002041,£500.00,SUNDRY SUPPLIER BACS,Covid19,Grants
21/07/2021,40002042,£500.00,SUNDRY SUPPLIER BACS,Covid19,Grants
21/07/2021,40002043,£500.00,SUNDRY SUPPLIER BACS,Covid19,Grants
21/07/2021,40002044,£500.00,SUNDRY SUPPLIER BACS,Covid19,Grants
21/07/2021,40002045,£500.00,SUNDRY SUPPLIER BACS,Covid19,Grants
21/07/2021,40002046,£500.00,SUNDRY SUPPLIER BACS,Covid19,Grants
21/07/2021,40002047,£500.00,SUNDRY SUPPLIER BACS,Covid19,Grants
21/07/2021,40002048,£500.00,SUNDRY SUPPLIER BACS,Covid19,Grants
21/07/2021,40002049,£500.00,SUNDRY SUPPLIER BACS,Covid19,Grants
21/07/2021,40002050,£500.00,SUNDRY SUPPLIER BACS,Covid19,Grants
21/07/2021,40002051,£500.00,SUNDRY SUPPLIER BACS,Covid19,Grants
21/07/2021,40002052,£500.00,SUNDRY SUPPLIER BACS,Covid19,Grants
21/07/2021,40002053,£500.00,SUNDRY SUPPLIER BACS,Covid19,Grants
21/07/2021,40002054,£500.00,SUNDRY SUPPLIER BACS,Covid19,Grants
21/07/2021,40002055,£500.00,SUNDRY SUPPLIER BACS,Covid19,Grants
21/07/2021,40002056,£500.00,SUNDRY SUPPLIER BACS,Covid19,Grants
21/07/2021,40002057,£500.00,SUNDRY SUPPLIER BACS,Covid19,Grants
21/07/2021,40002058,£500.00,SUNDRY SUPPLIER BACS,Covid19,Grants
21/07/2021,40002059,£500.00,SUNDRY SUPPLIER BACS,Covid19,Grants
21/07/2021,40002060,£500.00,SUNDRY SUPPLIER BACS,Covid19,Grants
21/07/2021,40002066,"£1,500.00",SUNDRY SUPPLIER BACS,Covid19,Grants
21/07/2021,40002067,£500.00,SUNDRY SUPPLIER BACS,Covid19,Grants
22/07/2021,10008365,"£3,840.00",Haymarket Business Media,Planning Development,Subscriptions
22/07/2021,30001028,£327.49,SUNDRY SUPPLIER BACS,Housing Needs Service,Fees for services
22/07/2021,40002006,"£1,500.00",SUNDRY SUPPLIER BACS,Covid19,Grants
22/07/2021,40002061,£500.00,SUNDRY SUPPLIER BACS,Covid19,Grants
22/07/2021,40002062,£500.00,SUNDRY SUPPLIER BACS,Covid19,Grants
22/07/2021,40002063,£500.00,SUNDRY SUPPLIER BACS,Covid19,Grants
22/07/2021,40002064,£500.00,SUNDRY SUPPLIER BACS,Covid19,Grants
22/07/2021,40002065,£500.00,SUNDRY SUPPLIER BACS,Covid19,Grants
23/07/2021,10008376,"£1,825.15",Quadient UK Ltd,Print Room & Photocopying,Printing
23/07/2021,10008369,"£32,413.08",Basingstoke & Deane B C,Licences,Payments to other LA's
23/07/2021,10008417,£311.00,Pegasus Building Services (Herriard) Ltd,Admin Bldgs - R & M,R & M - plant & equipment
23/07/2021,10008382,£357.50,Hampshire Media Ltd,Planning Development,Advertising
23/07/2021,10008509,"£26,179.17",Serco Limited,Basingstoke Waste Contract,Sub-contracted work non-rechar
23/07/2021,10008388,"£15,000.00",A and E Builders Limited,Disabled Facs - Mandatory,Capital grants other - Expend
23/07/2021,10008399,£500.00,A Plus Clean,Hartley Wintney Commons,Sub-contracted work non-rechar
23/07/2021,40002007,"£1,500.00",SUNDRY SUPPLIER BACS,Covid19,Grants
24/07/2021,40002008,"£1,500.00",SUNDRY SUPPLIER BACS,Covid19,Grants
25/07/2021,10008377,"£1,048.00",Quadient UK Ltd,Print Room & Photocopying,Printing
25/07/2021,40002009,£500.00,SUNDRY SUPPLIER BACS,Covid19,Grants
26/07/2021,30001075,£750.00,SUNDRY SUPPLIER BACS,Leadership Team,Subscriptions
26/07/2021,40002010,"£1,500.00",SUNDRY SUPPLIER BACS,Covid19,Grants
26/07/2021,40002068,"£1,500.00",SUNDRY SUPPLIER BACS,Covid19,Grants
26/07/2021,40002069,£500.00,SUNDRY SUPPLIER BACS,Covid19,Grants
26/07/2021,40002070,£500.00,SUNDRY SUPPLIER BACS,Covid19,Grants
26/07/2021,40002071,£500.00,SUNDRY SUPPLIER BACS,Covid19,Grants
26/07/2021,40002072,£500.00,SUNDRY SUPPLIER BACS,Covid19,Grants
26/07/2021,40002073,£500.00,SUNDRY SUPPLIER BACS,Covid19,Grants
26/07/2021,40002074,£500.00,SUNDRY SUPPLIER BACS,Covid19,Grants
26/07/2021,40002075,£500.00,SUNDRY SUPPLIER BACS,Covid19,Grants
26/07/2021,40002076,"£1,500.00",SUNDRY SUPPLIER BACS,Covid19,Grants
26/07/2021,40002077,£500.00,SUNDRY SUPPLIER BACS,Covid19,Grants
26/07/2021,40002078,£500.00,SUNDRY SUPPLIER BACS,Covid19,Grants
26/07/2021,40002079,£500.00,SUNDRY SUPPLIER BACS,Covid19,Grants
26/07/2021,40002080,£500.00,SUNDRY SUPPLIER BACS,Covid19,Grants
26/07/2021,40002081,£500.00,SUNDRY SUPPLIER BACS,Covid19,Grants
26/07/2021,40002082,£500.00,SUNDRY SUPPLIER BACS,Covid19,Grants
27/07/2021,10008380,"£74,740.30",Basingstoke & Deane B C,Legal Services,Fees and hired services
27/07/2021,10008740,"£2,073.00",East Hampshire D C,Street Cleaning,Payments to other LA's
27/07/2021,10008379,£807.20,Software ONE UK Ltd,IT Contract,Software purchase and licences
27/07/2021,10008389,"£2,167.83",BJC Design (Southeast) Ltd,Disabled Facs - Mandatory,Capital grants other - Expend
27/07/2021,10008390,"£2,690.00",A and E Builders Limited,Disabled Facs - Mandatory,Capital grants other - Expend
27/07/2021,40002011,"£1,500.00",SUNDRY SUPPLIER BACS,Covid19,Grants
27/07/2021,40002083,£500.00,SUNDRY SUPPLIER BACS,Covid19,Grants
27/07/2021,40002115,"£1,500.00",SUNDRY SUPPLIER BACS,Covid19,Grants
27/07/2021,40002116,"£1,500.00",SUNDRY SUPPLIER BACS,Covid19,Grants
27/07/2021,40002117,"£1,500.00",SUNDRY SUPPLIER BACS,Covid19,Grants
27/07/2021,40002118,"£1,500.00",SUNDRY SUPPLIER BACS,Covid19,Grants
27/07/2021,40002119,"£1,500.00",SUNDRY SUPPLIER BACS,Covid19,Grants
27/07/2021,40002120,"£1,500.00",SUNDRY SUPPLIER BACS,Covid19,Grants
27/07/2021,40002121,"£1,500.00",SUNDRY SUPPLIER BACS,Covid19,Grants
27/07/2021,40002122,"£1,500.00",SUNDRY SUPPLIER BACS,Covid19,Grants
27/07/2021,40002123,"£1,500.00",SUNDRY SUPPLIER BACS,Covid19,Grants
27/07/2021,40002124,"£1,500.00",SUNDRY SUPPLIER BACS,Covid19,Grants
27/07/2021,40002125,"£1,500.00",SUNDRY SUPPLIER BACS,Covid19,Grants
27/07/2021,40002126,"£1,500.00",SUNDRY SUPPLIER BACS,Covid19,Grants
27/07/2021,40002127,"£1,500.00",SUNDRY SUPPLIER BACS,Covid19,Grants
27/07/2021,40002128,"£1,500.00",SUNDRY SUPPLIER BACS,Covid19,Grants
27/07/2021,40002129,"£1,500.00",SUNDRY SUPPLIER BACS,Covid19,Grants
27/07/2021,40002130,"£1,500.00",SUNDRY SUPPLIER BACS,Covid19,Grants
27/07/2021,40002131,"£1,500.00",SUNDRY SUPPLIER BACS,Covid19,Grants
27/07/2021,40002132,"£1,500.00",SUNDRY SUPPLIER BACS,Covid19,Grants
27/07/2021,40002133,"£1,500.00",SUNDRY SUPPLIER BACS,Covid19,Grants
27/07/2021,40002134,"£1,500.00",SUNDRY SUPPLIER BACS,Covid19,Grants
27/07/2021,40002135,"£1,500.00",SUNDRY SUPPLIER BACS,Covid19,Grants
27/07/2021,40002136,"£1,500.00",SUNDRY SUPPLIER BACS,Covid19,Grants
27/07/2021,40002137,"£9,500.00",SUNDRY SUPPLIER BACS,Covid19,Grants
27/07/2021,40002138,"£9,500.00",SUNDRY SUPPLIER BACS,Covid19,Grants
27/07/2021,40002139,"£9,500.00",SUNDRY SUPPLIER BACS,Covid19,Grants
27/07/2021,40002140,"£9,500.00",SUNDRY SUPPLIER BACS,Covid19,Grants
27/07/2021,40002141,"£1,500.00",SUNDRY SUPPLIER BACS,Covid19,Grants
27/07/2021,40002142,£500.00,SUNDRY SUPPLIER BACS,Covid19,Grants
27/07/2021,40002143,£500.00,SUNDRY SUPPLIER BACS,Covid19,Grants
27/07/2021,40002144,£500.00,SUNDRY SUPPLIER BACS,Covid19,Grants
27/07/2021,40002145,"£1,500.00",SUNDRY SUPPLIER BACS,Covid19,Grants
27/07/2021,40002146,£500.00,SUNDRY SUPPLIER BACS,Covid19,Grants
27/07/2021,40002147,£500.00,SUNDRY SUPPLIER BACS,Covid19,Grants
27/07/2021,40002148,£500.00,SUNDRY SUPPLIER BACS,Covid19,Grants
27/07/2021,40002149,"£1,500.00",SUNDRY SUPPLIER BACS,Covid19,Grants
27/07/2021,40002150,"£1,500.00",SUNDRY SUPPLIER BACS,Covid19,Grants
27/07/2021,40002151,£500.00,SUNDRY SUPPLIER BACS,Covid19,Grants
27/07/2021,40002152,"£1,500.00",SUNDRY SUPPLIER BACS,Covid19,Grants
27/07/2021,40002153,£500.00,SUNDRY SUPPLIER BACS,Covid19,Grants
27/07/2021,40002154,"£1,500.00",SUNDRY SUPPLIER BACS,Covid19,Grants
27/07/2021,40002155,£500.00,SUNDRY SUPPLIER BACS,Covid19,Grants
27/07/2021,40002156,"£1,500.00",SUNDRY SUPPLIER BACS,Covid19,Grants
27/07/2021,40002157,£500.00,SUNDRY SUPPLIER BACS,Covid19,Grants
27/07/2021,40002158,£500.00,SUNDRY SUPPLIER BACS,Covid19,Grants
27/07/2021,40002159,£500.00,SUNDRY SUPPLIER BACS,Covid19,Grants
27/07/2021,40002160,£500.00,SUNDRY SUPPLIER BACS,Covid19,Grants
27/07/2021,40002161,£500.00,SUNDRY SUPPLIER BACS,Covid19,Grants
27/07/2021,40002162,£500.00,SUNDRY SUPPLIER BACS,Covid19,Grants
27/07/2021,40002163,£500.00,SUNDRY SUPPLIER BACS,Covid19,Grants
27/07/2021,40002164,"£1,500.00",SUNDRY SUPPLIER BACS,Covid19,Grants
27/07/2021,40002165,£500.00,SUNDRY SUPPLIER BACS,Covid19,Grants
27/07/2021,40002172,"£1,500.00",SUNDRY SUPPLIER BACS,Covid19,Grants
28/07/2021,10008447,£720.00,The Oyster Partnership,Planning Policy,Agency staff
28/07/2021,10008385,£635.16,Basingstoke & Deane B C,Waste Education & Comms,Printing
28/07/2021,10008391,£255.51,Basingstoke & Deane B C,Waste Education & Comms,Printing
28/07/2021,10008542,"£3,533.76",Civica UK Ltd,Housing Needs Service,Software purchase and licences
28/07/2021,10008435,£335.00,Bentley Mobility Services,Disabled Facs - Mandatory,Capital grants other - Expend
28/07/2021,10008709,"£2,128.00",Computer Salvage Specialists,Basingstoke Waste Contract,Sub-contracted work non-rechar
28/07/2021,10008710,"£2,520.00",Computer Salvage Specialists,Basingstoke Waste Contract,Sub-contracted work non-rechar
28/07/2021,10008711,"£2,016.00",Computer Salvage Specialists,Basingstoke Waste Contract,Sub-contracted work non-rechar
28/07/2021,10008500,£390.00,Shelter,Housing Needs Service,Employee training
28/07/2021,40002012,£500.00,SUNDRY SUPPLIER BACS,Covid19,Grants
28/07/2021,40002166,£500.00,SUNDRY SUPPLIER BACS,Covid19,Grants
28/07/2021,40002167,£500.00,SUNDRY SUPPLIER BACS,Covid19,Grants
28/07/2021,40002168,£500.00,SUNDRY SUPPLIER BACS,Covid19,Grants
28/07/2021,40002169,£500.00,SUNDRY SUPPLIER BACS,Covid19,Grants
28/07/2021,40002170,£500.00,SUNDRY SUPPLIER BACS,Covid19,Grants
28/07/2021,40002171,£500.00,SUNDRY SUPPLIER BACS,Covid19,Grants
28/07/2021,40002173,£500.00,SUNDRY SUPPLIER BACS,Covid19,Grants
29/07/2021,10008480,"£1,192.09",Lister Wilder Ltd,Hartley Wintney Commons,Sub-contracted work non-rechar
29/07/2021,10008395,£539.06,Signway Supplies (Datchet) Ltd,Highways Traffic Management,Sub-contracted work non-rechar
29/07/2021,10008396,"£3,050.00",JDB Contractors & Son Ltd,Fleet Pond,Sub-contracted work non-rechar
29/07/2021,30001040,£585.00,Foster Properties Fleet Ltd,Housing Needs Service,HB - Local Scheme Rent Rebates
29/07/2021,40002013,£500.00,SUNDRY SUPPLIER BACS,Covid19,Grants
30/07/2021,10008452,"£2,768.64",YBC Cleaning Services Ltd,Admin Bldgs - R & M,Contract cleaning
30/07/2021,10008450,£450.00,Redacted personal data,Tree Preservation Orders,Grounds maintenance services
30/07/2021,10008466,"£1,125.00",Redacted personal data,Hartley Wintney Commons,Sub-contracted work non-rechar
30/07/2021,10008497,£334.82,Pegasus Building Services (Herriard) Ltd,Admin Bldgs - R & M,R & M - plant & equipment
30/07/2021,10008458,£595.00,Quality Leisure Management Ltd,Leisure Centres,Sub-contracted work non-rechar
30/07/2021,10008459,£595.00,Quality Leisure Management Ltd,Leisure Centres,Sub-contracted work non-rechar
30/07/2021,10008532,"£15,096.11",Sci Print Ltd,Register Of Electors,Postage costs
30/07/2021,10008412,"£1,875.00",Penna Plc,Leadership Team,Recruitment advertising
30/07/2021,10008405,"£1,130.00",Complete Audio Visual Equipment Ltd,Admin Bldgs - R & M,Audio visual equipment
30/07/2021,10008423,£260.20,Hampshire Media Ltd,Planning Development,Advertising
30/07/2021,10008439,£832.50,Artelia UK,Leisure Centres,Fees and hired services
30/07/2021,10008411,"£1,929.50",Bevan Brittan LLP,Commercialisation,Legal services
30/07/2021,10008629,"£1,186.90",Bevan Brittan LLP,Commercialisation,Legal services
30/07/2021,10008504,£350.00,NP Tree Management Ltd,Tree Preservation Orders,Grounds maintenance services
30/07/2021,10008971,"£6,826.00",LDA Design Consulting Ltd,Planning Development,Consultants - projects
30/07/2021,10008403,£629.60,Hunt Forest Group,Environment Promotion Strategy,Vehicle servicing and maint.
30/07/2021,40002014,£500.00,SUNDRY SUPPLIER BACS,Covid19,Grants
31/07/2021,10008406,"£1,600.00",Tree Care Associates Ltd,Tree Preservation Orders,Consultation costs
31/07/2021,10008407,£800.00,Tree Care Associates Ltd,Tree Preservation Orders,Consultation costs
31/07/2021,10008484,"£1,092.33",Chipside Ltd,On Street Parking,Software purchase and licences
31/07/2021,10008428,"£9,712.00",Fleet Town Council,Covid19,Room & office rents
31/07/2021,10008533,"£1,277.94",Jade Security Services Ltd,Customer Services Contracts,Sub-contracted work non-rechar
31/07/2021,10008429,"£1,760.00",Scofell Commercial landscapes,Bramshot Farm,Sub-contracted work non-rechar
01/08/2021,10008579,"£2,393.79",Virgin Media Business,IT Contract,Mobile phone costs
01/08/2021,10008408,"£2,166.67",SDK Environmental Ltd,Dog Warden,Sub-contracted work non-rechar
02/08/2021,10008415,£476.08,Siemens Financial Services Ltd,Admin Bldgs - R & M,R & M - plant & equipment
02/08/2021,10009499,£590.87,Corporate Medical Services,HR Contract,Sub-contracted work non-rechar
02/08/2021,10008444,£500.00,AC Line Markings,Highways Traffic Management,Sub-contracted work non-rechar
03/08/2021,10008420,£475.43,Basingstoke & Deane B C,Waste Education & Comms,Printing
03/08/2021,30001038,£738.00,South Warnborough P C,S106 Leisure Parish,Payments to other LA's
03/08/2021,10008426,"£1,464.00",Penna Plc,Corporate Finance,Consultants - projects
03/08/2021,10008449,"£2,400.00",Capita,Commercialisation,Sub-contracted work non-rechar
03/08/2021,10008441,"£1,200.00",CIPD Enterprises Ltd,HR Contract,Corporate Mgmt training
03/08/2021,40002175,£500.00,SUNDRY SUPPLIER BACS,Covid19,Grants
03/08/2021,40002176,£500.00,SUNDRY SUPPLIER BACS,Covid19,Grants
03/08/2021,40002177,£500.00,SUNDRY SUPPLIER BACS,Covid19,Grants
04/08/2021,10008476,"£1,665.00",The Oyster Partnership,Planning Policy,Agency staff
04/08/2021,10008432,"£1,140.00",Osborne Richardson Limited,Environmental Protection,Agency staff
04/08/2021,10008433,"£1,140.00",Osborne Richardson Limited,Environmental Protection,Agency staff
04/08/2021,10008595,"£7,574.00",Civica UK Ltd,Register Of Electors,Software purchase and licences
04/08/2021,10008443,"£13,075.00",Southern Counties Building Solutions Ltd,Disabled Facs - Mandatory,Capital grants other - Expend
04/08/2021,10008434,"£1,485.00",Vivid Resourcing Limited,Planning Development,Consultation costs
04/08/2021,30001039,£800.00,Redacted personal data,Housing Needs Service,HB - Local Scheme Rent Rebates
04/08/2021,30001049,£872.00,SUNDRY SUPPLIER BACS,Housing Needs Service,HB - Local Scheme Rent Rebates
05/08/2021,10008841,"£4,076.24",Hampshire County Council,Property Services,Sub-contracted work non-rechar
05/08/2021,10008745,£642.00,Acumen Waste Services Ltd,Fleet Pond,R & M - land and buildings
05/08/2021,10008746,£840.00,Acumen Waste Services Ltd,Fleet Pond,R & M - land and buildings
05/08/2021,10008791,"£3,090.00",LMS Design,Planning Development,Consultation costs
05/08/2021,10008453,"£4,800.00",1st Call Trees Ltd,Tree Preservation Orders,Grounds maintenance services
05/08/2021,30001041,"£2,298.75",SUNDRY SUPPLIER BACS,HR Contract,Fees and hired services
05/08/2021,40002186,£500.00,SUNDRY SUPPLIER BACS,Covid19,Grants
05/08/2021,40002187,£500.00,SUNDRY SUPPLIER BACS,Covid19,Grants
05/08/2021,40002188,£500.00,SUNDRY SUPPLIER BACS,Covid19,Grants
05/08/2021,40002189,£500.00,SUNDRY SUPPLIER BACS,Covid19,Grants
05/08/2021,40002190,£500.00,SUNDRY SUPPLIER BACS,Covid19,Grants
06/08/2021,10008457,"£90,926.89",Rushmoor Borough Council,Building Control - Fee Earning,Fees and hired services
06/08/2021,40002191,£500.00,SUNDRY SUPPLIER BACS,Covid19,Grants
06/08/2021,40002192,£500.00,SUNDRY SUPPLIER BACS,Covid19,Grants
06/08/2021,40002193,£500.00,SUNDRY SUPPLIER BACS,Covid19,Grants
06/08/2021,40002194,£500.00,SUNDRY SUPPLIER BACS,Covid19,Grants
06/08/2021,40002195,£500.00,SUNDRY SUPPLIER BACS,Covid19,Grants
06/08/2021,40002196,£500.00,SUNDRY SUPPLIER BACS,Covid19,Grants
06/08/2021,40002197,£500.00,SUNDRY SUPPLIER BACS,Covid19,Grants
06/08/2021,40002198,£500.00,SUNDRY SUPPLIER BACS,Covid19,Grants
06/08/2021,40002199,£500.00,SUNDRY SUPPLIER BACS,Covid19,Grants
06/08/2021,40002200,£500.00,SUNDRY SUPPLIER BACS,Covid19,Grants
06/08/2021,40002201,£500.00,SUNDRY SUPPLIER BACS,Covid19,Grants
06/08/2021,40002202,£500.00,SUNDRY SUPPLIER BACS,Covid19,Grants
06/08/2021,40002206,£500.00,SUNDRY SUPPLIER BACS,Covid19,Grants
08/08/2021,10008503,"£11,132.20",Rev Solutions Limited,Corporate Finance,Consultants - projects
09/08/2021,10008465,"£1,466.70",Quadient UK Ltd,Print Room & Photocopying,Printing
09/08/2021,10008592,"-£1,778.76",Royal Mail Group Ltd,Rechargeable Elections,Postage costs
09/08/2021,10008460,"£1,630.00",Hunt Forest Group,Environment Promotion Strategy,Vehicle servicing and maint.
09/08/2021,10008462,"£1,180.61",Hunt Forest Group,Environment Promotion Strategy,Vehicle servicing and maint.
10/08/2021,10008473,£620.00,JDB Contractors & Son Ltd,Edenbrook Country Park,Sub-contracted work non-rechar
10/08/2021,10008474,£320.00,JDB Contractors & Son Ltd,Tree Preservation Orders,Grounds maintenance services
10/08/2021,10008492,£386.00,Fleet PCC,Rechargeable Elections,Rental costs
10/08/2021,10008467,"£6,750.00",Resilience Voyage Ltd,Community Safety ,Grants
11/08/2021,10008485,"£1,665.00",The Oyster Partnership,Planning Policy,Agency staff
11/08/2021,10008506,£420.00,Pegasus Building Services (Herriard) Ltd,Off Street Parking,Sub-contracted work non-rechar
11/08/2021,10008520,"£1,140.00",Osborne Richardson Limited,Environmental Protection,Agency staff
11/08/2021,10008493,"£3,750.00",Penna Plc,Commercialisation,Agency staff
11/08/2021,10008658,"£6,307.00",Wildscapes Countryside Contractors,Grounds Mtn Contract,Sub-contracted work non-rechar
11/08/2021,10008669,£990.00,G2 Recruitment Solutions,Planning Development,Consultation costs
11/08/2021,30001059,"£1,250.00",SUNDRY SUPPLIER BACS,Tree Preservation Orders,Consultants - projects
11/08/2021,40002203,£500.00,SUNDRY SUPPLIER BACS,Covid19,Grants
11/08/2021,40002204,£500.00,SUNDRY SUPPLIER BACS,Covid19,Grants
11/08/2021,40002205,£500.00,SUNDRY SUPPLIER BACS,Covid19,Grants
12/08/2021,10008511,"£2,625.00",Amb Tree Services,Tree Preservation Orders,Grounds maintenance services
12/08/2021,10008512,£467.25,SMS Environmental Limited,Admin Bldgs - R & M,R & M - plant & equipment
12/08/2021,10008510,"£1,260.00",Trustmarque Solutions Ltd,IT Contract,Consultation costs
12/08/2021,10008507,£267.00,Bevan Brittan LLP,CentenaryHouse,Other professional services
12/08/2021,10008501,"£2,916.50",Aquascience Ltd,Bramshot Farm,Sub-contracted work non-rechar
12/08/2021,10008502,"£2,015.20",Aquascience Ltd,Bramshot Farm,Sub-contracted work non-rechar
12/08/2021,40002207,£500.00,SUNDRY SUPPLIER BACS,Covid19,Grants
12/08/2021,40002208,£500.00,SUNDRY SUPPLIER BACS,Covid19,Grants
12/08/2021,40002209,£500.00,SUNDRY SUPPLIER BACS,Covid19,Grants
12/08/2021,40002210,£500.00,SUNDRY SUPPLIER BACS,Covid19,Grants
12/08/2021,40002211,£500.00,SUNDRY SUPPLIER BACS,Covid19,Grants
12/08/2021,40002212,£500.00,SUNDRY SUPPLIER BACS,Covid19,Grants
12/08/2021,40002213,£500.00,SUNDRY SUPPLIER BACS,Covid19,Grants
12/08/2021,40002214,£500.00,SUNDRY SUPPLIER BACS,Covid19,Grants
12/08/2021,40002215,£500.00,SUNDRY SUPPLIER BACS,Covid19,Grants
12/08/2021,40002216,£500.00,SUNDRY SUPPLIER BACS,Covid19,Grants
12/08/2021,40002217,£500.00,SUNDRY SUPPLIER BACS,Covid19,Grants
12/08/2021,40002218,£500.00,SUNDRY SUPPLIER BACS,Covid19,Grants
12/08/2021,40002219,£500.00,SUNDRY SUPPLIER BACS,Covid19,Grants
13/08/2021,10008514,"£4,000.00",Vistar Construction Ltd,Disabled Facs - Mandatory,Capital grants other - Expend
13/08/2021,30001050,"£1,560.00",Foster Properties Fleet Ltd,Housing Needs Service,B & BR allowance payments
13/08/2021,10008593,"£16,726.00",A and E Builders Limited,Disabled Facs - Mandatory,Capital grants other - Expend
13/08/2021,10008515,£790.00,Kim Driver Training Ltd,Environment Promotion Strategy,Employee training
13/08/2021,30001052,"£2,970.00",SUNDRY SUPPLIER BACS,Housing Needs Service,Homelessness Costs
13/08/2021,30001053,"£1,187.37",SUNDRY SUPPLIER BACS,Housing Needs Service,Homelessness Costs
14/08/2021,10008522,£300.00,Acorn Rural Training,Environment Promotion Strategy,Employee training
14/08/2021,10008523,£875.00,Acorn Rural Training,Environment Promotion Strategy,Employee training
15/08/2021,10008797,£360.00,Wildscapes Countryside Contractors,Environment Promotion Strategy,Sub-contracted work non-rechar
16/08/2021,10008526,£574.68,Siemens Financial Services Ltd,Admin Bldgs - R & M,R & M - plant & equipment
16/08/2021,10008525,"£1,517.78",Veolia Es (Uk) Ltd,Allotments at Edenbrook,Improvement works
16/08/2021,10008560,£798.70,Zip Heaters (UK) Limited,Admin Bldgs - R & M,R & M - plant & equipment
16/08/2021,10008594,"£1,505.34",BJC Design (Southeast) Ltd,Disabled Facs - Mandatory,Capital grants other - Expend
16/08/2021,40002220,£500.00,SUNDRY SUPPLIER BACS,Covid19,Grants
16/08/2021,40002221,£500.00,SUNDRY SUPPLIER BACS,Covid19,Grants
16/08/2021,40002222,£500.00,SUNDRY SUPPLIER BACS,Covid19,Grants
16/08/2021,40002223,£500.00,SUNDRY SUPPLIER BACS,Covid19,Grants
16/08/2021,40002224,£500.00,SUNDRY SUPPLIER BACS,Covid19,Grants
16/08/2021,40002225,£500.00,SUNDRY SUPPLIER BACS,Covid19,Grants
16/08/2021,40002226,£500.00,SUNDRY SUPPLIER BACS,Covid19,Grants
16/08/2021,40002227,£500.00,SUNDRY SUPPLIER BACS,Covid19,Grants
16/08/2021,40002228,£500.00,SUNDRY SUPPLIER BACS,Covid19,Grants
16/08/2021,40002229,£500.00,SUNDRY SUPPLIER BACS,Covid19,Grants
16/08/2021,40002230,£500.00,SUNDRY SUPPLIER BACS,Covid19,Grants
16/08/2021,40002231,£500.00,SUNDRY SUPPLIER BACS,Covid19,Grants
16/08/2021,40002232,£500.00,SUNDRY SUPPLIER BACS,Covid19,Grants
16/08/2021,40002233,£500.00,SUNDRY SUPPLIER BACS,Covid19,Grants
16/08/2021,40002234,£500.00,SUNDRY SUPPLIER BACS,Covid19,Grants
16/08/2021,40002235,£500.00,SUNDRY SUPPLIER BACS,Covid19,Grants
16/08/2021,40002236,£500.00,SUNDRY SUPPLIER BACS,Covid19,Grants
17/08/2021,30001055,£324.84,Redacted personal data,Housing Needs Service,HB - Local Scheme Rent Rebates
18/08/2021,10008541,"£1,665.00",The Oyster Partnership,Planning Policy,Agency staff
18/08/2021,10008539,"£1,140.00",Osborne Richardson Limited,Environmental Protection,Agency staff
18/08/2021,10008535,"£1,025.00",Redacted personal data,Environment Promotion Strategy,Purchase of equipment
18/08/2021,10008530,£440.00,Warrens Office Limited,Admin Bldgs - R & M,Purchase of equipment
18/08/2021,10008546,£560.00,A and E Builders Limited,Disabled Facs - Mandatory,Capital grants other - Expend
18/08/2021,10008570,£260.00,NP Tree Management Ltd,Tree Preservation Orders,Grounds maintenance services
18/08/2021,10008712,"£12,000.00",Francis Taylor Building,Planning Development,Tech consult - Legal advice
18/08/2021,10008769,"£3,500.00",Francis Taylor Building,Neighbourhood Planning,Consultants - projects
18/08/2021,10008544,"£1,221.00",G2 Recruitment Solutions,Planning Development,Consultation costs
18/08/2021,30001058,£775.00,SUNDRY SUPPLIER BACS,Housing Needs Service,HB - Local Scheme Rent Rebates
19/08/2021,10008553,£315.00,Signway Supplies (Datchet) Ltd,Environmental Protection,Legal services
19/08/2021,10008554,£311.39,Signway Supplies (Datchet) Ltd,Off Street Parking,Notice boards
19/08/2021,30001057,£936.00,Planning Portal,Planning Development,Planning - application fees
19/08/2021,10008564,"£4,488.16",SMW Tree Consultancy,Odiham Common,Sub-contracted work non-rechar
19/08/2021,30001062,£256.00,SUNDRY SUPPLIER BACS,Housing Needs Service,HB - Local Scheme Rent Rebates
20/08/2021,10008552,"£170,775.00",Basingstoke & Deane B C,Street Cleaning,Fees and hired services
20/08/2021,10008556,"£123,875.00",Basingstoke & Deane B C,Grounds Mtn Contract,Fees and hired services
20/08/2021,10008567,£510.40,Hampshire Media Ltd,Planning Development,Advertising
20/08/2021,10008587,£264.00,Oakwood OH Consultancy Ltd,Hackney Carriages,Fees and hired services
20/08/2021,10008550,£415.25,Ashley Services,Small SANG Sites,Purchase of equipment
23/08/2021,10008557,"£2,286.89",Veolia Es (Uk) Ltd,Allotments at Edenbrook,Improvement works
23/08/2021,10008892,£412.50,East Hampshire D C,New Settlement,Consultants - projects
23/08/2021,30001064,"£1,560.00",Foster Properties Fleet Ltd,Housing Needs Service,Rent deposit payments
23/08/2021,30001066,"£1,250.00",Redacted personal data,Housing Needs Service,Rent deposit payments
23/08/2021,10008577,"£7,774.23",Southern Counties Building Solutions Ltd,Disabled Facs - Mandatory,Capital grants other - Expend
23/08/2021,30001063,£950.00,SUNDRY SUPPLIER BACS,Housing Needs Service,Rent deposit payments
23/08/2021,30001065,£495.00,SUNDRY SUPPLIER BACS,Housing Needs Service,Homelessness Costs
23/08/2021,30001076,"£1,250.00",SUNDRY SUPPLIER BACS,Housing Needs Service,Rent deposit payments
23/08/2021,40002237,£500.00,SUNDRY SUPPLIER BACS,Covid19,Grants
23/08/2021,40002238,£500.00,SUNDRY SUPPLIER BACS,Covid19,Grants
24/08/2021,10008852,"£3,161.80",East Hampshire D C,Street Cleaning,Payments to other LA's
24/08/2021,10008572,"£2,572.00",Bentley Mobility Services,Disabled Facs - Mandatory,Capital grants other - Expend
24/08/2021,10008569,"£5,490.48",Trustmarque Solutions Ltd,IT Contract,Consultation costs
24/08/2021,10008561,"£96,695.00",Everyone Active (SLM Ltd),Leisure Centres,Fees and hired services
24/08/2021,10008604,"£5,600.00",Adaptec Mobility Ltd,Disabled Facs - Mandatory,Capital grants other - Expend
24/08/2021,10008844,"£1,120.00",Adaptec Mobility Ltd,Disabled Facs - Mandatory,Capital grants other - Expend
24/08/2021,10008563,"£38,980.40",SLC Southern Landscape & Construction Lt,Allotments at Edenbrook,Improvement works
24/08/2021,10008571,"£3,200.00",Wildtrack Photography,Environment Promotion Strategy,Publicity
25/08/2021,10008581,"£1,665.00",The Oyster Partnership,Planning Policy,Agency staff
25/08/2021,10008701,"£1,400.00",Chipside Ltd,Off Street Parking,Software purchase and licences
25/08/2021,10008703,"£1,303.54",Chipside Ltd,Off Street Parking,Software purchase and licences
25/08/2021,10008928,£394.50,Centerprise International,IT Contract,Software purchase and licences
25/08/2021,30001071,"£1,040.00",Redacted personal data,Housing Needs Service,HB - Local Scheme Rent Rebates
25/08/2021,10008659,£430.00,Wildscapes Countryside Contractors,Hartley Wintney Commons,Sub-contracted work non-rechar
25/08/2021,10008755,"£1,221.00",G2 Recruitment Solutions,Planning Development,Consultation costs
25/08/2021,10008585,"£1,115.45",Buckingham Futures,Env Health Commercial,Agency staff
25/08/2021,30001070,£475.00,SUNDRY SUPPLIER BACS,Housing Needs Service,Homelessness Costs
25/08/2021,40002250,£500.00,SUNDRY SUPPLIER BACS,Covid19,Grants
25/08/2021,40002251,£500.00,SUNDRY SUPPLIER BACS,Covid19,Grants
25/08/2021,40002252,£500.00,SUNDRY SUPPLIER BACS,Covid19,Grants
25/08/2021,40002253,£500.00,SUNDRY SUPPLIER BACS,Covid19,Grants
25/08/2021,40002255,£500.00,SUNDRY SUPPLIER BACS,Covid19,Grants
25/08/2021,40002256,£500.00,SUNDRY SUPPLIER BACS,Covid19,Grants
25/08/2021,40002257,£500.00,SUNDRY SUPPLIER BACS,Covid19,Grants
25/08/2021,40002258,£500.00,SUNDRY SUPPLIER BACS,Covid19,Grants
25/08/2021,40002259,£500.00,SUNDRY SUPPLIER BACS,Covid19,Grants
25/08/2021,40002260,£500.00,SUNDRY SUPPLIER BACS,Covid19,Grants
26/08/2021,10008674,"£19,546.55",Simon Hutchings Building And Maintenance,Disabled Facs - Mandatory,Capital grants other - Expend
26/08/2021,10008584,"£1,400.00",K.Smith Field Services,Small SANG Sites,Sub-contracted work non-rechar
26/08/2021,10008972,£553.00, Hutcheon Examination Services Limited,Environment Promotion Strategy,Vehicle servicing and maint.
27/08/2021,10009167,"£2,768.64",YBC Cleaning Services Ltd,Admin Bldgs - R & M,Contract cleaning
27/08/2021,10008615,£900.00,Idox Software Limited,Business Support Staff,Software purchase and licences
27/08/2021,10008596,£288.00,Hampshire Media Ltd,Planning Development,Advertising
27/08/2021,10008622,"£176,005.00",South Oxfordshire District Council,5 Council Contract - Capita,Payments to South -Capita
27/08/2021,10008623,"£202,074.00",South Oxfordshire District Council,5 Council Contract - Capita,Payments to South -Capita
27/08/2021,10008624,"£193,365.00",South Oxfordshire District Council,5 Council Contract - Capita,Payments to South -Capita
27/08/2021,10008931,"£183,369.00",South Oxfordshire District Council,5 Council Contract - Capita,Payments to South -Capita
27/08/2021,10008586,"£5,175.03",Thomason Partnership Ltd,Leisure Centres,Fees and hired services
31/08/2021,10008700,£950.42,Chipside Ltd,Off Street Parking,Software purchase and licences
31/08/2021,10008597,"£6,634.61",Bridges Lettings,Commercialisation,Fees and hired services
31/08/2021,10008598,"£5,307.69",Bridges Lettings,Commercialisation,Fees and hired services
31/08/2021,10008603,"£4,875.00",Johns Associates Ltd,FleetPondGreenGridEng,Third Party Payments
31/08/2021,10008625,"£1,693.44",Prism Medical UK,Disabled Facs - Mandatory,Capital grants other - Expend
31/08/2021,10008590,"£2,166.67",SDK Environmental Ltd,Dog Warden,Sub-contracted work non-rechar
31/08/2021,10008607,"£1,260.00",Artelia UK,Edenbrook Apartments,Sub-contracted work non-rechar
31/08/2021,10008633,£765.00,Artelia UK,Leisure Centres,Fees and hired services
31/08/2021,10008612,"£1,950.00",Haymarket Business Media,Planning Development,Recruitment advertising
31/08/2021,10008591,£834.01,Software ONE UK Ltd,IT Contract,Software purchase and licences
31/08/2021,40002308,"£1,275.28",Jade Security Services Ltd,Customer Services Contracts,Sub-contracted work non-rechar
31/08/2021,10008677,"£1,760.00",Scofell Commercial landscapes,Bramshot Farm,Sub-contracted work non-rechar
31/08/2021,10008610,"£6,101.00",Redacted personal data,Disabled Facs - Mandatory,Capital grants other - Expend
31/08/2021,10008666,"£3,135.50",i-Transport LLP,Planning Policy,Consultants - projects
31/08/2021,10008609,"£12,754.30",Khipu Networks Limited,IT Upgrade,Improvement works
31/08/2021,10008599,£312.61,Hunt Forest Group,Environment Promotion Strategy,Vehicle servicing and maint.
01/09/2021,10008661,"£1,710.00",The Oyster Partnership,Planning Policy,Agency staff
01/09/2021,10008618,"£1,195.00",Chartered Institute Of Env Health,Environmental Protection,Employee training
01/09/2021,10008631,"£1,140.00",Osborne Richardson Limited,Environmental Protection,Agency staff
01/09/2021,10008632,"£1,102.00",Osborne Richardson Limited,Environmental Protection,Agency staff
01/09/2021,10008602,£875.00,Amb Tree Services,Tree Preservation Orders,Grounds maintenance services
01/09/2021,10008723,"£5,142.00",Virgin Media Business,IT Contract,Mobile phone costs
01/09/2021,10008608,"£10,000.00",Southern Counties Building Solutions Ltd,Disabled Facs - Mandatory,Capital grants other - Expend
01/09/2021,10008617,"£2,660.00",LMS Design,Planning Development,Consultation costs
01/09/2021,10008616,"£1,423.13",Vivid Resourcing Limited,Planning Development,Consultation costs
01/09/2021,10008605,£504.00,BJC Design (Southeast) Ltd,Disabled Facs - Mandatory,Capital grants other - Expend
01/09/2021,10008611,£549.09,BJC Design (Southeast) Ltd,Disabled Facs - Mandatory,Capital grants other - Expend
01/09/2021,10008758,"£1,221.00",G2 Recruitment Solutions,Planning Development,Consultation costs
01/09/2021,10008628,"£1,085.40",Buckingham Futures,Env Health Commercial,Agency staff
01/09/2021,40002264,£500.00,SUNDRY SUPPLIER BACS,Covid19,Grants
02/09/2021,10008630,"£2,700.00",Community Action Hampshire,Strategic Housing Services,Consultants - projects
02/09/2021,10008635,"£7,076.00",Penna Plc,Corporate Finance,Consultants - projects
02/09/2021,10008627,"£8,254.33",Havant Borough Council,FleetPondGreenGridEng,Other professional services
03/09/2021,10008634,£477.48,Basingstoke & Deane B C,Waste Education & Comms,Printing
03/09/2021,10008642,£832.20,Vail Williams LLP,Commercialisation,Fees and hired services
03/09/2021,10008715,£349.00,Redacted personal data,Corporate Finance,Agency staff
06/09/2021,10008639,"£48,795.02",Rushmoor Borough Council,CCTV,Fees and hired services
06/09/2021,10008647,"£3,058.69",Signway Supplies (Datchet) Ltd,Highways Traffic Management,Sub-contracted work non-rechar
06/09/2021,10010043,"£2,098.00",East Hampshire D C,Street Cleaning,Payments to other LA's
06/09/2021,10008638,"£1,200.00",Ricardo -Aea Ltd,Environmental Protection,Air monitoring equipment
06/09/2021,10008649,£579.25,Land Skills Training and Assessments Ltd,Bramshot Farm,Employee training
07/09/2021,10008652,"£1,209.65",Pegasus Building Services (Herriard) Ltd,Admin Bldgs - R & M,R & M - plant & equipment
07/09/2021,10008688,"£1,579.00",Bentley Mobility Services,Disabled Facs - Mandatory,Capital grants other - Expend
07/09/2021,10008650,"£10,666.00",The YOU Trust,Domestic Abuse,Grants
07/09/2021,10008651,"£43,166.00",The YOU Trust,Domestic Abuse,Grants
07/09/2021,40002276,£500.00,SUNDRY SUPPLIER BACS,Covid19,Grants
07/09/2021,40002277,£500.00,SUNDRY SUPPLIER BACS,Covid19,Grants
07/09/2021,40002278,£500.00,SUNDRY SUPPLIER BACS,Covid19,Grants
07/09/2021,40002279,£500.00,SUNDRY SUPPLIER BACS,Covid19,Grants
07/09/2021,40002280,£500.00,SUNDRY SUPPLIER BACS,Covid19,Grants
07/09/2021,40002281,£500.00,SUNDRY SUPPLIER BACS,Covid19,Grants
07/09/2021,40002282,£500.00,SUNDRY SUPPLIER BACS,Covid19,Grants
07/09/2021,40002283,£500.00,SUNDRY SUPPLIER BACS,Covid19,Grants
07/09/2021,40002284,£500.00,SUNDRY SUPPLIER BACS,Covid19,Grants
07/09/2021,40002285,£500.00,SUNDRY SUPPLIER BACS,Covid19,Grants
08/09/2021,10008660,"£1,417.50",The Oyster Partnership,Planning Policy,Agency staff
08/09/2021,10008667,£935.00,FreestyleIT,IT Contract,Maintenance of equipment
08/09/2021,10008672,"£3,711.25",Rocon Contractors Ltd,Disabled Facs - Mandatory,Capital grants other - Expend
08/09/2021,10008656,£990.00,Vivid Resourcing Limited,Planning Development,Consultation costs
08/09/2021,10008657,"£1,432.50",1st Call Trees Ltd,Tree Preservation Orders,Consultants - projects
08/09/2021,10008756,£981.75,G2 Recruitment Solutions,Planning Development,Consultation costs
08/09/2021,10008882,"£1,086.75",Buckingham Futures,Env Health Commercial,Agency staff
08/09/2021,30001078,£380.60,SUNDRY SUPPLIER BACS,Disabled Facs - Mandatory,Capital grants other - Expend
08/09/2021,40002286,£500.00,SUNDRY SUPPLIER BACS,Covid19,Grants
08/09/2021,40002287,£500.00,SUNDRY SUPPLIER BACS,Covid19,Grants
08/09/2021,40002288,£500.00,SUNDRY SUPPLIER BACS,Covid19,Grants
08/09/2021,40002289,£500.00,SUNDRY SUPPLIER BACS,Covid19,Grants
08/09/2021,40002290,£500.00,SUNDRY SUPPLIER BACS,Covid19,Grants
08/09/2021,40002291,£500.00,SUNDRY SUPPLIER BACS,Covid19,Grants
08/09/2021,40002292,£500.00,SUNDRY SUPPLIER BACS,Covid19,Grants
08/09/2021,40002293,£500.00,SUNDRY SUPPLIER BACS,Covid19,Grants
09/09/2021,10009154,"£3,000.00",Zurich Municipal,Corporate Finance,Insurance premiums
09/09/2021,10008673,£333.99,BJC Design (Southeast) Ltd,Disabled Facs - Mandatory,Capital grants other - Expend
09/09/2021,10008684,£770.00,Carbon Footprint Ltd,Climate Change,Software purchase and licences
09/09/2021,10008663,"£3,868.00",Thomson Ecology Ltd,Planning Development,Consultants - projects
10/09/2021,10008989,"£6,086.20",Basingstoke & Deane B C,Basingstoke Waste Contract,Recovery of costs
10/09/2021,10008675,£467.25,SMS Environmental Limited,Admin Bldgs - R & M,R & M - plant & equipment
10/09/2021,10008683,£409.00,Protective Wear Supplies Ltd,Admin Bldgs - R & M,Purchase of equipment
10/09/2021,10008689,"£2,219.61",Southern Counties Building Solutions Ltd,Disabled Facs - Mandatory,Capital grants other - Expend
10/09/2021,10008691,"£1,500.00",Southern Counties Building Solutions Ltd,Disabled Facs - Mandatory,Capital grants other - Expend
10/09/2021,10008610,"£6,101.00",Redacted personal data,Balance Sheet,
10/09/2021,10008610,"£6,101.00",Redacted personal data,Balance Sheet,
10/09/2021,10008604,"£5,600.00",Adaptec Mobility Ltd,Balance Sheet,
10/09/2021,10008604,"£5,600.00",Adaptec Mobility Ltd,Balance Sheet,
11/09/2021,10008744,"£3,780.12",Portrait Landscapes & Construction,Disabled Facs - Mandatory,Capital grants other - Expend
11/09/2021,10008678,£595.00,Talking Menopause Ltd,HR Contract,Corporate Mgmt training
12/09/2021,10008679,"£1,600.00",Tree Care Associates Ltd,Tree Preservation Orders,Consultation costs
13/09/2021,10008772,£744.96,Vip-System,Hackney Carriages,Purchase of equipment
13/09/2021,10008681,"£12,583.36",Willmott Dixon Holdings Limited,Leisure Centres,Fees and hired services
13/09/2021,10008690,£383.18,BJC Design (Southeast) Ltd,Disabled Facs - Mandatory,Capital grants other - Expend
13/09/2021,10008719,"£1,615.00",Handicare Accessibility Ltd,Disabled Facs - Mandatory,Capital grants other - Expend
13/09/2021,10008802,"£1,500.00",Portrait Landscapes & Construction,Disabled Facs - Mandatory,Capital grants other - Expend
13/09/2021,10008917,£0.00,Portrait Landscapes & Construction,Disabled Facs - Mandatory,Capital grants other - Expend
14/09/2021,10009155,"£2,494.00",Hampshire County Council,Leadership Team,Grants
14/09/2021,10008668,"£10,824.50",JDB Contractors & Son Ltd,Churchyards,Sub-contracted work non-rechar
14/09/2021,10008752,"£10,125.00",Top Notch Building Services,Disabled Facs - Mandatory,Capital grants other - Expend
14/09/2021,10008750,"£8,532.00",Everyone Active (SLM Ltd),Rechargeable Elections,Rental costs
14/09/2021,10008670,£341.67,MAS Seeds Ltd,Environment Promotion Strategy,Purchase of equipment
15/09/2021,10008692,"£5,721.00",Southampton City Council,Property Services,Consultation costs
15/09/2021,10008705,"£1,665.00",The Oyster Partnership,Planning Policy,Agency staff
15/09/2021,10008695,£820.00,JDB Contractors & Son Ltd,Tree Preservation Orders,Grounds maintenance services
15/09/2021,30001082,"£1,560.00",Foster Properties Fleet Ltd,Housing Needs Service,Wayleaves
15/09/2021,10008706,£299.00,Warrens Office Limited,Admin Bldgs - R & M,Purchase of equipment
15/09/2021,30001083,"£3,914.46",HMRC 120PS00764403,Balance Sheet,Payroll Deduct & Pay - PAYE
15/09/2021,10008696,£462.00,Oakwood OH Consultancy Ltd,Hackney Carriages,Fees and hired services
15/09/2021,10008682,£903.38,Vivid Resourcing Limited,Planning Development,Consultation costs
15/09/2021,10008759,"£1,193.60",Vivid Resourcing Limited,Planning Development,Consultation costs
15/09/2021,10008694,£250.00,Redacted personal data,Disabled Facs - Mandatory,Capital grants other - Expend
15/09/2021,10008714,£280.00,NP Tree Management Ltd,Tree Preservation Orders,Grounds maintenance services
15/09/2021,10008751,£911.25,ARCHITECTURAL Survey Services,Disabled Facs - Mandatory,Capital grants other - Expend
15/09/2021,10008757,"£1,221.00",G2 Recruitment Solutions,Planning Development,Consultation costs
15/09/2021,10009281,"£1,091.25",Buckingham Futures,Env Health Commercial,Agency staff
15/09/2021,10009126,"£1,496.00",Varnom & Ross Ltd.,Planning Development,Consultation costs
16/09/2021,10008732,"£1,010.00",Simon Hutchings Building And Maintenance,Disabled Facs - Mandatory,Capital grants other - Expend
16/09/2021,30001086,"£4,620.00",Airport Lodge,Housing Needs Service,Wayleaves
16/09/2021,10008722,£654.30,BJC Design (Southeast) Ltd,Disabled Facs - Mandatory,Capital grants other - Expend
16/09/2021,10008789,£415.08,BJC Design (Southeast) Ltd,Disabled Facs - Mandatory,Capital grants other - Expend
16/09/2021,10008721,"£7,270.00",A and E Builders Limited,Disabled Facs - Mandatory,Capital grants other - Expend
16/09/2021,10008704,"£5,000.00",Francis Taylor Building,Planning Development,Tech consult - Legal advice
16/09/2021,10008743,£385.18,Flowbird Smart City UK,Off Street Parking,Ticket machines
16/09/2021,10008713,"£6,005.70",Rev Solutions Limited,Corporate Finance,Consultants - projects
16/09/2021,30001087,£325.00,SUNDRY SUPPLIER BACS,Bramshot Farm,Employee training
17/09/2021,10008763,"£1,524.25",Quadient UK Ltd,Print Room & Photocopying,Printing
17/09/2021,10008720,"£23,099.23",Basingstoke & Deane B C,Basingstoke Waste Contract,Recovery of costs
17/09/2021,10008725,"£35,847.43",Civica UK Ltd,Housing Needs Service,Software purchase and licences
17/09/2021,10008728,£343.60,Hampshire Media Ltd,Planning Development,Advertising
17/09/2021,10008718,£820.00,NP Tree Management Ltd,Bramshot Farm,Sub-contracted work non-rechar
17/09/2021,10008730,£354.80,Flowbird Smart City UK,Off Street Parking,Ticket machines
17/09/2021,40002302,£500.00,SUNDRY SUPPLIER BACS,Covid19,Grants
20/09/2021,10008754,"£1,149.00",Vistar Construction Ltd,Disabled Facs - Mandatory,Capital grants other - Expend
20/09/2021,10008739,"£9,979.00",Southern Counties Building Solutions Ltd,Disabled Facs - Mandatory,Capital grants other - Expend
20/09/2021,10009170,"£1,200.00",Carbon Footprint Ltd,Climate Change,Software purchase and licences
20/09/2021,10008783,£839.89,ARCHITECTURAL Survey Services,Disabled Facs - Mandatory,Capital grants other - Expend
21/09/2021,10008733,"£4,640.00",Fleet Town Council,Covid19,Room & office rents
21/09/2021,10008734,"£5,800.00",Fleet Town Council,Covid19,Room & office rents
21/09/2021,30001089,"£1,860.00",Annies Guest House,Housing Needs Service,B & BR allowance payments
21/09/2021,10008753,£463.41,BJC Design (Southeast) Ltd,Disabled Facs - Mandatory,Capital grants other - Expend
21/09/2021,10009172,£473.65,Westway Nissan Ltd,Edenbrook Country Park,Vehicle servicing and maint.
21/09/2021,10008731,"£5,730.00",R L Surveys Ltd,Housing Needs Service,Homelessness Costs
21/09/2021,30001090,"£1,000.00",SUNDRY SUPPLIER BACS,Housing Needs Service,HB - Local Scheme Rent Rebates
22/09/2021,10008765,"£1,665.00",The Oyster Partnership,Planning Policy,Agency staff
22/09/2021,10009323,£995.00,Core Technology Systems,IT Upgrade,Improvement works
22/09/2021,10008760,£779.63,Vivid Resourcing Limited,Planning Development,Consultation costs
22/09/2021,10008761,"£1,343.20",Vivid Resourcing Limited,Planning Development,Consultation costs
22/09/2021,10008951,"£1,221.00",G2 Recruitment Solutions,Planning Development,Consultation costs
22/09/2021,10009125,"£1,617.00",Varnom & Ross Ltd.,Planning Development,Consultation costs
23/09/2021,10008808,£276.00,Pegasus Building Services (Herriard) Ltd,Admin Bldgs - R & M,R & M - plant & equipment
23/09/2021,30001098,"£1,450.00",Foster Properties Fleet Ltd,Housing Needs Service,Homelessness Costs
23/09/2021,10008768,"£21,186.00",Havant Borough Council,5 Council Contract - Capita,Payments to South -Client Team
23/09/2021,10008762,£250.00,Redacted personal data,Disabled Facs - Mandatory,Capital grants other - Expend
23/09/2021,30001092,"£1,000.00",SUNDRY SUPPLIER BACS,Housing Needs Service,Homelessness Costs
23/09/2021,40002303,£500.00,SUNDRY SUPPLIER BACS,Covid19,Grants
24/09/2021,10009304,"£4,100.00",Hampshire County Council,Local Land Charges,Fees and hired services
24/09/2021,10009305,"£3,895.00",Hampshire County Council,Local Land Charges,Fees and hired services
24/09/2021,10008788,"£4,612.00",Vistar Construction Ltd,Disabled Facs - Mandatory,Capital grants other - Expend
24/09/2021,10008786,"£2,995.00",Amb Tree Services,Tree Preservation Orders,Grounds maintenance services
24/09/2021,10009171,"£1,700.00",Destination Basingstoke Ltd,EconomicDevelopment,Publicity
24/09/2021,10008787,"£4,500.00",Francis Taylor Building,Planning Policy,Consultants - projects
24/09/2021,10009077,"£3,725.00",University of Chester,Hart Drainage,Employee training
25/09/2021,10008776,"£3,698.25",Npower,Admin Bldgs - R & M,Electricity
25/09/2021,10008777,"£3,456.31",Npower,Admin Bldgs - R & M,Electricity
27/09/2021,10008847,"£2,768.64",YBC Cleaning Services Ltd,Admin Bldgs - R & M,Contract cleaning
27/09/2021,10008813,"£11,626.32",Southern Counties Building Solutions Ltd,Disabled Facs - Mandatory,Capital grants other - Expend
28/09/2021,10008778,"£2,510.16",Elmdale Maintenance Ltd,Print Room & Photocopying,Photocopying
28/09/2021,10008779,£306.55,Elmdale Maintenance Ltd,Print Room & Photocopying,Photocopying
28/09/2021,10008926,£836.55,Software ONE UK Ltd,IT Contract,Software purchase and licences
28/09/2021,10008814,"£1,046.37",BJC Design (Southeast) Ltd,Disabled Facs - Mandatory,Capital grants other - Expend
28/09/2021,10008835,"£1,386.00",Urban Design Doctor Limited,Planning Development,Consultants - projects
28/09/2021,40002309,"£1,848.00",Urban Design Doctor Limited,Planning Development,Consultants - projects
28/09/2021,40002310,"£2,579.50",Urban Design Doctor Limited,Planning Development,Consultants - projects
28/09/2021,10008770,£427.50,Redacted personal data,Corporate Finance,Agency staff
28/09/2021,30001097,£650.00,SUNDRY SUPPLIER BACS,Housing Needs Service,Rent deposit payments
28/09/2021,40002304,£500.00,SUNDRY SUPPLIER BACS,Covid19,Grants
28/09/2021,40002305,£500.00,SUNDRY SUPPLIER BACS,Covid19,Grants
28/09/2021,40002306,£500.00,SUNDRY SUPPLIER BACS,Covid19,Grants
28/09/2021,40002307,£500.00,SUNDRY SUPPLIER BACS,Covid19,Grants
29/09/2021,10009563,"£20,000.00",Hampshire County Council,Hart Development,Subscriptions
29/09/2021,10008803,"£1,350.00",The Oyster Partnership,Planning Policy,Agency staff
29/09/2021,10008820,"£170,775.00",Basingstoke & Deane B C,Street Cleaning,Fees and hired services
29/09/2021,10008821,"£123,875.00",Basingstoke & Deane B C,Grounds Mtn Contract,Fees and hired services
29/09/2021,10008822,"£38,500.00",Basingstoke & Deane B C,Customer Services Contracts,Sub-contracted work non-rechar
29/09/2021,10008859,£510.30,PSTAX,Commercialisation,Employee training
29/09/2021,10008862,"£2,398.00",Liftability Ltd,Disabled Facs - Mandatory,Capital grants other - Expend
29/09/2021,10008784,"£1,266.80",Vivid Resourcing Limited,Planning Development,Consultation costs
29/09/2021,40002314,£804.38,Vivid Resourcing Limited,Planning Development,Consultation costs
29/09/2021,10008952,"£1,221.00",G2 Recruitment Solutions,Planning Development,Consultation costs
29/09/2021,10008775,"£1,958.66",Khipu Networks Limited,IT Upgrade,Improvement works
29/09/2021,10009124,"£1,584.00",Varnom & Ross Ltd.,Planning Development,Consultation costs
29/09/2021,30001099,"£5,000.00",SUNDRY SUPPLIER BACS,Off Street Parking,Insurance premiums
30/09/2021,10008805,"£5,724.97",Sci Print Ltd,Register Of Electors,Printing
30/09/2021,10008806,"£1,165.72",Sci Print Ltd,Register Of Electors,Postage costs
30/09/2021,10008809,£950.87,Sci Print Ltd,Rechargeable Elections,Printing
30/09/2021,10009359,"£1,137.71",Chipside Ltd,Off Street Parking,Software purchase and licences
30/09/2021,10008888,£715.00,Astor-Bannerman (Medical) Ltd,Disabled Facs - Mandatory,Capital grants other - Expend
30/09/2021,10008796,"£2,166.67",SDK Environmental Ltd,Dog Warden,Sub-contracted work non-rechar
30/09/2021,10008828,"£3,000.00",Fleet Town Council,Hart Development,Contributions to vol org
30/09/2021,10008874,£720.00,Artelia UK,Leisure Centres,Fees and hired services
30/09/2021,10008798,"£10,792.79",Havant Borough Council,FleetPondGreenGridEng,Other professional services
30/09/2021,10008799,"£5,471.77",Havant Borough Council,FleetPondGreenGridEng,Other professional services
30/09/2021,10008845,"£1,166.15",Jade Security Services Ltd,Customer Services Contracts,Sub-contracted work non-rechar
30/09/2021,10008793,"£5,057.00",LDA Design Consulting Ltd,Planning Development,Consultants - projects
30/09/2021,10008870,"£3,366.50",i-Transport LLP,Planning Policy,Consultants - projects
30/09/2021,10009182,£337.00,Collard Environmental Ltd,Bramshot Farm,Purchase of equipment
30/09/2021,10008817,"£36,894.51",WMP Contracting Limited T/A WM Longreach,Bramshot Farm,Sub-contracted work non-rechar
30/09/2021,10008818,"£5,840.00",WMP Contracting Limited T/A WM Longreach,Bramshot Farm,Sub-contracted work non-rechar
30/09/2021,10009270,"£7,703.50",Troy Hayes Planning Limited,Planning Policy,Consultants - projects
30/09/2021,10008875,"£1,728.00",Blencowe Scaffolding Ltd,Commercialisation,Fees and hired services
01/10/2021,10009302,"£4,182.00",Hampshire County Council,Local Land Charges,Fees and hired services
01/10/2021,10009303,"£3,444.00",Hampshire County Council,Local Land Charges,Fees and hired services
01/10/2021,10009533,"£6,507.91",BT Redcare,CCTV,Sub-contracted work non-rechar
01/10/2021,10009233,"£2,567.46",Sci Print Ltd,Register Of Electors,Postage costs
01/10/2021,10008794,"£4,580.00",Green Leaves Countryside Contractors Ltd,Environment Promotion Strategy,Sub-contracted work non-rechar
03/10/2021,10008790,"£1,600.00",Tree Care Associates Ltd,Tree Preservation Orders,Consultation costs
03/10/2021,10009137,£412.50,East Hampshire D C,New Settlement,Consultants - projects
03/10/2021,10008927,"£1,160.00",Centerprise International,IT Contract,Software purchase and licences
04/10/2021,10008853,£256.89,Royal Mail Group Ltd,Rechargeable Elections,Postage costs
04/10/2021,10008982,£800.00,NTA Monitor Ltd,IT Contract,Maintenance of equipment
04/10/2021,10008816,"£10,736.00",Penna Plc,Corporate Finance,Consultants - projects
04/10/2021,10008829,"£1,141.60",Prism Medical UK,Disabled Facs - Mandatory,Capital grants other - Expend
04/10/2021,10009542,"£3,807.50",Hampshire County Council,Planning Policy,Payments to other LA's
04/10/2021,10008812,"£2,100.00",NP Tree Management Ltd,Tree Preservation Orders,Grounds maintenance services
04/10/2021,10008855,"£3,250.00",Francis Taylor Building,Planning Development,Tech consult - Legal advice
04/10/2021,10008867,£680.00,Wildscapes Countryside Contractors,Odiham Common,Sub-contracted work non-rechar
04/10/2021,30001103,£810.00,SUNDRY SUPPLIER BACS,Housing Needs Service,Rent deposit payments
05/10/2021,10008839,"£3,255.00",Winchfield Parish Council,S106 Leisure Parish,Third Party Payments
05/10/2021,30001104,£500.00,Bracknell Forest Council,Planning Development,Fees and hired services
05/10/2021,10008877,"£7,500.00",Destin Solutions Limited,Revenues & Benefits Contract,Software purchase and licences
05/10/2021,10008830,"£10,309.60",Rev Solutions Limited,Corporate Finance,Consultants - projects
06/10/2021,10008871,£566.43,Signway Supplies (Datchet) Ltd,Highways Traffic Management,Sub-contracted work non-rechar
06/10/2021,10008823,"£1,500.00",Pegasus Building Services (Herriard) Ltd,Property Services,Sub-contracted work non-rechar
06/10/2021,10008834,£425.00,Ricardo -Aea Ltd,Environmental Protection,Employee training
06/10/2021,10008833,"£2,090.00",Capita Business Services Ltd,Corporate Finance,Sub-contracted work non-rechar
06/10/2021,10008887,"£8,480.35",Simon Hutchings Building And Maintenance,Disabled Facs - Mandatory,Capital grants other - Expend
06/10/2021,10008831,"£1,480.00",Vivid Resourcing Limited,Planning Development,Consultation costs
06/10/2021,10008832,"£1,435.50",Vivid Resourcing Limited,Planning Development,Consultation costs
06/10/2021,10008873,£290.00,NP Tree Management Ltd,Tree Preservation Orders,Grounds maintenance services
06/10/2021,10009052,"£1,221.00",G2 Recruitment Solutions,Planning Development,Consultation costs
06/10/2021,10009123,"£1,628.00",Varnom & Ross Ltd.,Planning Development,Consultation costs
06/10/2021,30001107,"£1,884,920.77","Department for Business, Energy",Covid19,Grants
06/10/2021,30001108,"£1,122.00",SUNDRY SUPPLIER BACS,FleetPondGreenGridEng,Third Party Payments
06/10/2021,30001109,£560.00,SUNDRY SUPPLIER BACS,Tree Preservation Orders,Consultants - projects
07/10/2021,10008922,"£5,756.00",Dolphin Mobility Ltd,Disabled Facs - Mandatory,Capital grants other - Expend
07/10/2021,10008864,"£1,580.00",1st Call Trees Ltd,Tree Preservation Orders,Grounds maintenance services
07/10/2021,40002315,£500.00,SUNDRY SUPPLIER BACS,Covid19,Grants
07/10/2021,40002316,£500.00,SUNDRY SUPPLIER BACS,Covid19,Grants
07/10/2021,40002317,£500.00,SUNDRY SUPPLIER BACS,Covid19,Grants
07/10/2021,40002318,£500.00,SUNDRY SUPPLIER BACS,Covid19,Grants
07/10/2021,40002319,£500.00,SUNDRY SUPPLIER BACS,Covid19,Grants
07/10/2021,40002320,£500.00,SUNDRY SUPPLIER BACS,Covid19,Grants
07/10/2021,40002321,£500.00,SUNDRY SUPPLIER BACS,Covid19,Grants
07/10/2021,40002322,£500.00,SUNDRY SUPPLIER BACS,Covid19,Grants
07/10/2021,40002323,£500.00,SUNDRY SUPPLIER BACS,Covid19,Grants
07/10/2021,40002324,£500.00,SUNDRY SUPPLIER BACS,Covid19,Grants
08/10/2021,10008840,"£78,542.56",Hampshire County Council,Non Distributed Costs,Pensions - past service costs
08/10/2021,10008861,£415.57,Basingstoke & Deane B C,Waste Education & Comms,Printing
08/10/2021,10009252,"£3,711.80",East Hampshire D C,Street Cleaning,Payments to other LA's
08/10/2021,10008823,"£1,500.00",Pegasus Building Services (Herriard) Ltd,Balance Sheet,Error Suspense
08/10/2021,10008823,"£1,500.00",Pegasus Building Services (Herriard) Ltd,Balance Sheet,Error Suspense
08/10/2021,10008849,"£3,700.00",Liftech Systems (SE) Ltd,Disabled Facs - Mandatory,Capital grants other - Expend
08/10/2021,10008907,£274.10,Hampshire Media Ltd,Planning Development,Advertising
08/10/2021,30001116,"£1,000.00",Redacted personal data,Housing Needs Service,Rent deposit payments
08/10/2021,10008851,£430.00,NP Tree Management Ltd,Tree Preservation Orders,Grounds maintenance services
08/10/2021,10008858,£385.00,NP Tree Management Ltd,Tree Preservation Orders,Grounds maintenance services
09/10/2021,10008898,"£1,285.22",PHS Group Plc,Admin Bldgs - R & M,Laundry
11/10/2021,10008925,"£19,600.00",Hampshire County  Council,Environment Promotion Strategy,Contributions to vol org
11/10/2021,10008884,"£7,000.00",Southern Counties Building Solutions Ltd,Disabled Facs - Mandatory,Capital grants other - Expend
11/10/2021,10008885,"£6,025.20",Southern Counties Building Solutions Ltd,Disabled Facs - Mandatory,Capital grants other - Expend
11/10/2021,10008886,"£1,000.00",ARCHITECTURAL Survey Services,Disabled Facs - Mandatory,Capital grants other - Expend
11/10/2021,30001111,"£22,718.86",SUNDRY SUPPLIER BACS,Small SANG Sites,Developers Contributions
12/10/2021,10008897,"£79,687.68",Rushmoor Borough Council,Building Control - Fee Earning,Fees and hired services
12/10/2021,10008846,£467.25,SMS Environmental Limited,Admin Bldgs - R & M,R & M - plant & equipment
12/10/2021,10008857,£955.00,Play Safety Ltd,Environment Promotion Strategy,Employee training
12/10/2021,10008856,£950.00,Cooper & Withycombe Ltd,Property Services,Sub-contracted work non-rechar
13/10/2021,10008881,"£1,710.00",The Oyster Partnership,Planning Policy,Agency staff
13/10/2021,10008921,"£110,528.46",Idox Software Limited,Business Support Staff,Software purchase and licences
13/10/2021,10008879,"£1,995.00",Socitm Ltd,IT Contract,Maintenance of equipment
13/10/2021,10008896,£297.00,Oakwood OH Consultancy Ltd,Hackney Carriages,Fees and hired services
13/10/2021,10008894,£965.25,Vivid Resourcing Limited,Planning Development,Consultants - projects
13/10/2021,10008895,"£1,480.00",Vivid Resourcing Limited,Planning Development,Consultation costs
13/10/2021,10009053,"£1,221.00",G2 Recruitment Solutions,Planning Development,Consultation costs
13/10/2021,10009122,"£1,628.00",Varnom & Ross Ltd.,Planning Development,Consultation costs
14/10/2021,10008920,"£30,924.00",Hampshire County Council,Environment Promotion Strategy,Contributions to vol org
14/10/2021,10008901,"£1,001.28",Quadient UK Ltd,Business Support Staff,Postage costs
14/10/2021,10009294,"£8,685.00",Hampshire Biodiversity Info Centre,Biodiversity,Sub-contracted work non-rechar
14/10/2021,10008889,£750.00,LMS Design,Planning Development,Consultation costs
14/10/2021,10008891,£440.00,1st Call Trees Ltd,Tree Preservation Orders,Grounds maintenance services
14/10/2021,10008890,"£2,750.00",Home Connections Lettings Limited,Housing Needs Service,Homelessness Costs
15/10/2021,10008936,"£1,725.00",Liftech Systems (SE) Ltd,Disabled Facs - Mandatory,Capital grants other - Expend
15/10/2021,10008773,"£167,987.00",South Oxfordshire District Council,5 Council Contract - Capita,Payments to South -Capita
15/10/2021,10008774,"£192,860.00",South Oxfordshire District Council,5 Council Contract - Capita,Payments to South -Capita
15/10/2021,10008949,"£152,978.00",South Oxfordshire District Council,5 Council Contract - Capita,Payments to South -Capita
15/10/2021,10008968,"£122,881.00",South Oxfordshire District Council,5 Council Contract - Capita,Payments to South -Capita
15/10/2021,10008933,"£1,700.00",Bounce Back Films LTD,FleetPondGreenGridEng,Third Party Payments
15/10/2021,10009076,"£3,060.00",University of Chester,Hart Drainage,Employee training
18/10/2021,10008929,"£2,868.22",Rocon Contractors Ltd,Disabled Facs - Mandatory,Capital grants other - Expend
18/10/2021,10008980,"£1,584.00",The open University,IT Contract,Employee training
18/10/2021,10008981,£833.33,parkrun Limited,Health and Wellbeing,Fees and hired services
18/10/2021,30001119,£454.80,SUNDRY SUPPLIER BACS,Leadership Team,Employee training
19/10/2021,30001149,£396.00,Ashbee Guest House,Housing Needs Service,B & BR allowance payments
19/10/2021,30001150,"£1,452.00",Ashbee Guest House,Housing Needs Service,B & BR allowance payments
19/10/2021,10008930,£258.14,BJC Design (Southeast) Ltd,Disabled Facs - Mandatory,Capital grants other - Expend
19/10/2021,10008948,£460.00,J A Tangye (Farm),Environment Promotion Strategy,Employee training
19/10/2021,30001120,£801.00,SUNDRY SUPPLIER BACS,Balance Sheet,CT Debtor - Billing Auth share
19/10/2021,40002353,£500.00,SUNDRY SUPPLIER BACS,Covid19,Grants
19/10/2021,40002354,£500.00,SUNDRY SUPPLIER BACS,Covid19,Grants
20/10/2021,10008947,"£1,710.00",The Oyster Partnership,Planning Policy,Agency staff
20/10/2021,10008970,"£1,480.00",Vivid Resourcing Limited,Planning Development,Consultation costs
20/10/2021,10008935,"£49,998.70",Fleet BID Company,Balance Sheet,Fleet Business Improvement Dis
20/10/2021,10009227,"£1,221.00",G2 Recruitment Solutions,Planning Development,Consultation costs
20/10/2021,10009121,"£1,628.00",Varnom & Ross Ltd.,Planning Development,Consultation costs
20/10/2021,30001128,"£4,975.00",SUNDRY SUPPLIER BACS,Disabled Facs - Mandatory,Capital grants other - Expend
21/10/2021,10008967,"£1,262.79",Quadient UK Ltd,Business Support Staff,Postage costs
21/10/2021,10008950,"£2,591.72",Pegasus Building Services (Herriard) Ltd,Community Safety ,Fees and hired services
21/10/2021,10009232,"£1,201.18",Sci Print Ltd,Register Of Electors,Postage costs
21/10/2021,10010110,£492.37,Sci Print Ltd,Register Of Electors,Printing
21/10/2021,10008937,"£10,367.25",Ernst & Young Llp,External Audit,Audit fees
21/10/2021,10008938,"£10,367.25",Ernst & Young Llp,External Audit,Audit fees
22/10/2021,10008934,"£1,217.23",Havant Borough Council,FleetPondGreenGridEng,Planning and design fees
22/10/2021,10009258,"£1,835.50",English Sports Council t/a Sport England,Health and Wellbeing,Fees and hired services
24/10/2021,10008963,"£1,082.88",Quadient UK Ltd,Business Support Staff,Postage costs
24/10/2021,10008943,£582.85,AEWC Ltd,Hartley Wintney Commons,Sub-contracted work non-rechar
25/10/2021,10009673,"£3,000.00",Hampshire County Council,Planning Policy,Payments to other LA's
25/10/2021,30001124,"£22,718.86",SUNDRY SUPPLIER BACS,Small SANG Sites,Developers Contributions
26/10/2021,10009068,£390.00,Pegasus Building Services (Herriard) Ltd,Admin Bldgs - R & M,R & M - plant & equipment
26/10/2021,10008942,"£4,375.00",JDB Contractors & Son Ltd,Edenbrook Country Park,Other services
26/10/2021,10009000,"£1,790.00",Capita Business Services Ltd,Revenues & Benefits Contract,Sub-contracted work non-rechar
26/10/2021,10009050,£250.00,Landmark Information Group Limited,Business Support Staff,Fees and hired services
26/10/2021,10009349,£250.00,Landmark Information Group Limited,Business Support Staff,Fees and hired services
26/10/2021,10009430,£500.00,Oxford Web Applications,Corporate Communication,Software purchase and licences
26/10/2021,10008986,£804.74,Software ONE UK Ltd,IT Contract,Software purchase and licences
26/10/2021,10008940,£269.95,Acumen Waste Services Ltd,Fleet Pond,R & M - land and buildings
26/10/2021,10009027,£375.00,Cooper & Withycombe Ltd,Commercialisation,Sub-contracted work non-rechar
26/10/2021,10009028,£360.00,Cooper & Withycombe Ltd,Commercialisation,Sub-contracted work non-rechar
26/10/2021,10009029,£390.00,Cooper & Withycombe Ltd,Commercialisation,Sub-contracted work non-rechar
26/10/2021,10009405,"£4,800.00",RPT Consulting Limited,Corporate Finance,Consultants - projects
26/10/2021,40002367,£500.00,SUNDRY SUPPLIER BACS,Covid19,Grants
26/10/2021,40002368,£500.00,SUNDRY SUPPLIER BACS,Covid19,Grants
26/10/2021,40002369,£500.00,SUNDRY SUPPLIER BACS,Covid19,Grants
27/10/2021,10009009,"£1,665.00",The Oyster Partnership,Planning Policy,Agency staff
27/10/2021,10009135,"£2,768.64",YBC Cleaning Services Ltd,Admin Bldgs - R & M,Contract cleaning
27/10/2021,10008999,"£9,547.90",Capita Business Services Ltd,Revenues & Benefits Contract,Sub-contracted work non-rechar
27/10/2021,10008964,"£5,250.00",Vivid Resourcing Limited,Corporate Finance,Consultants - projects
27/10/2021,10008965,"£1,237.50",Vivid Resourcing Limited,Planning Development,Consultants - projects
27/10/2021,10008985,£960.00,1st Call Trees Ltd,Tree Preservation Orders,Grounds maintenance services
27/10/2021,10009228,"£1,221.00",G2 Recruitment Solutions,Planning Development,Consultation costs
27/10/2021,10009120,"£1,628.00",Varnom & Ross Ltd.,Planning Development,Consultation costs
28/10/2021,10008997,£390.06,BJC Design (Southeast) Ltd,Disabled Facs - Mandatory,Capital grants other - Expend
28/10/2021,10008996,"£4,334.00",A and E Builders Limited,Disabled Facs - Mandatory,Capital grants other - Expend
28/10/2021,10009021,"£11,860.00",A and E Builders Limited,Disabled Facs - Mandatory,Capital grants other - Expend
28/10/2021,10009177,"£5,991.07",MTI Technology Limited,IT Contract,Maintenance of equipment
28/10/2021,10009001,£288.00,Hartley Design & Print Ltd,OdihamWelcomeBackFund,Fees and hired services
29/10/2021,10009087,£595.00,Quality Leisure Management Ltd,Leisure Centres,Sub-contracted work non-rechar
29/10/2021,10009231,"£1,079.15",Sci Print Ltd,Register Of Electors,Printing
29/10/2021,10009073,£329.70,Hampshire Media Ltd,Planning Development,Advertising
29/10/2021,10008998,"£1,260.00",Artelia UK,Edenbrook Apartments,Sub-contracted work non-rechar
29/10/2021,10009192,"£11,120.00",A and E Builders Limited,Disabled Facs - Mandatory,Capital grants other - Expend
29/10/2021,10009026,"£3,913.00",RA Information Systems,Tree Preservation Orders,Purchase of equipment
29/10/2021,10009178,£698.00,MTI Technology Limited,IT Contract,Maintenance of equipment
29/10/2021,10008995,"£1,009.61",Nominet UK,IT Contract,Purchase of hardware
29/10/2021,10009007,£710.00,Ashby Welding & Fabrication Ltd,Edenbrook Country Park,Sub-contracted work non-rechar
29/10/2021,10008993,"£1,590.00",CTP Consulting Engineers,Leisure Centres,Fees and hired services
30/10/2021,10009045,"£1,842.75",FT Leisure Ltd,Leisure Centres,Fees and hired services
31/10/2021,10009130,"£1,273.95",Chipside Ltd,On Street Parking,Software purchase and licences
31/10/2021,10009031,"£1,250.00",Civica UK Ltd,Register Of Electors,Software purchase and licences
31/10/2021,10009032,£300.00,Civica UK Ltd,Register Of Electors,Employee training
31/10/2021,10009014,£810.00,Artelia UK,Leisure Centres,Fees and hired services
31/10/2021,10009051,"£1,206.91",Jade Security Services Ltd,Customer Services Contracts,Sub-contracted work non-rechar
31/10/2021,10009667,£650.00,Mike Garwood Ltd,Environment Promotion Strategy,Vehicle servicing and maint.
31/10/2021,10009006,"£1,420.00",Scofell Commercial landscapes,Bramshot Farm,Sub-contracted work non-rechar
31/10/2021,10009054,"£1,494.50",i-Transport LLP,Planning Policy,Consultants - projects
31/10/2021,10009005,"£1,232.40",Indeed Ireland Operations Ltd,HR Contract,Recruitment advertising
31/10/2021,10009095,£780.00,Sequoia Arboricultural Services Limited,Hazeley Heath Grazing Project ,Sub-contracted work non-rechar
31/10/2021,10009096,"£2,700.00",Sequoia Arboricultural Services Limited,Hazeley Heath Grazing Project ,Sub-contracted work non-rechar
31/10/2021,30001141,"£2,150.00",SUNDRY SUPPLIER BACS,Disabled Facs - Mandatory,Capital grants other - Expend
01/11/2021,10008991,"£1,375.00",Liftech Systems (SE) Ltd,Disabled Facs - Mandatory,Capital grants other - Expend
01/11/2021,10009043,"£2,335.56",Royal Mail Group Ltd,Corporate Communication,Postage costs
01/11/2021,10009642,£394.50,Centerprise International,IT Contract,Software purchase and licences
01/11/2021,10009090,"£2,214.61",Virgin Media Business,IT Contract,Mobile phone costs
01/11/2021,10009322,"£2,166.67",SDK Environmental Ltd,Dog Warden,Sub-contracted work non-rechar
01/11/2021,10009046,"£4,900.00",Astun Technology Ltd,Business Support Staff,Fees and hired services
01/11/2021,10009179,"£1,429.00",MTI Technology Limited,IT Contract,Maintenance of equipment
02/11/2021,10009078,"£3,200.00",NTA Monitor Ltd,IT Contract,Maintenance of equipment
02/11/2021,10009283,"£9,272.00",Penna Plc,Corporate Finance,Consultants - projects
02/11/2021,10009284,£976.00,Penna Plc,Corporate Finance,Consultants - projects
02/11/2021,10009004,"£16,000.00",Havant Borough Council,5 Council Contract - Capita,Payments to South -Client Team
02/11/2021,10009251,"£162,971.00",South Oxfordshire District Council,5 Council Contract - Capita,Payments to South -Capita
02/11/2021,10009003,£430.00,NP Tree Management Ltd,Tree Preservation Orders,Grounds maintenance services
02/11/2021,10009015,"£1,200.00",Black Architecture Limited,Disabled Facs - Mandatory,Capital grants other - Expend
02/11/2021,10009022,£775.00,The Langtons Design Consultancy,OdihamWelcomeBackFund,Fees and hired services
02/11/2021,10009019,"£2,219.50",GPK Mayfield Ltd t/a Peachy Projects,Commercialisation,Fees and hired services
02/11/2021,10009013,£360.00,Hoey Ainscough Associates Ltd,Leadership Team,Employee training
02/11/2021,10009318,"£2,000.00",Beauhurst (Business Funding Research Ltd,EconomicDevelopment,Publicity
03/11/2021,10009042,"£2,000.00",Tree Care Associates Ltd,Tree Preservation Orders,Consultation costs
03/11/2021,10008950,"£2,591.72",Pegasus Building Services (Herriard) Ltd,Balance Sheet,Error Suspense
03/11/2021,10008950,"£2,591.72",Pegasus Building Services (Herriard) Ltd,Balance Sheet,Error Suspense
03/11/2021,10009394,£789.00,Centerprise International,IT Contract,Software purchase and licences
03/11/2021,30001135,£850.00,Redacted personal data,Housing Needs Service,Rent deposit payments
03/11/2021,10009023,£963.20,Vivid Resourcing Limited,Planning Development,Consultation costs
03/11/2021,10009024,"£2,625.00",Vivid Resourcing Limited,Corporate Finance,Consultants - projects
03/11/2021,10009025,£928.13,Vivid Resourcing Limited,Planning Development,Consultants - projects
03/11/2021,10009229,"£1,221.00",G2 Recruitment Solutions,Planning Development,Consultation costs
04/11/2021,10009039,£829.00,Complete Audio Visual Equipment Ltd,Admin Bldgs - R & M,Audio visual equipment
04/11/2021,10009351,"£29,430.00",RSM UK Risk Assurance Services LLP,Corporate Finance,Consultants - projects
04/11/2021,40002390,£500.00,SUNDRY SUPPLIER BACS,Covid19,Grants
04/11/2021,40002391,£500.00,SUNDRY SUPPLIER BACS,Covid19,Grants
04/11/2021,40002392,£500.00,SUNDRY SUPPLIER BACS,Covid19,Grants
04/11/2021,40002393,£500.00,SUNDRY SUPPLIER BACS,Covid19,Grants
04/11/2021,40002394,£500.00,SUNDRY SUPPLIER BACS,Covid19,Grants
04/11/2021,40002395,£500.00,SUNDRY SUPPLIER BACS,Covid19,Grants
04/11/2021,40002396,£500.00,SUNDRY SUPPLIER BACS,Covid19,Grants
04/11/2021,40002397,£500.00,SUNDRY SUPPLIER BACS,Covid19,Grants
04/11/2021,40002398,£500.00,SUNDRY SUPPLIER BACS,Covid19,Grants
04/11/2021,40002399,£500.00,SUNDRY SUPPLIER BACS,Covid19,Grants
05/11/2021,10009165,"£1,308.34",Quadient UK Ltd,Business Support Staff,Postage costs
05/11/2021,10009067,£399.20,Hampshire Media Ltd,Planning Development,Advertising
05/11/2021,10009033,"£63,530.30",Willmott Dixon Holdings Limited,Leisure Centres,Fees and hired services
05/11/2021,10009893,"£1,000.00",Hampshire County Council,EconomicDevelopment,Publicity
05/11/2021,10009706,"£2,968.30",Rocon Contractors Ltd,Disabled Facs - Mandatory,Capital grants other - Expend
05/11/2021,10009034,"£1,905.00",NP Tree Management Ltd,Tree Preservation Orders,Grounds maintenance services
05/11/2021,10009038,"£7,654.80",Rev Solutions Limited,Corporate Finance,Consultants - projects
05/11/2021,10009036,£590.00,Girling Pipeworks,Hartley Wintney Commons,Sub-contracted work non-rechar
05/11/2021,10009055,"£2,200.00",FT Leisure Ltd,Leisure Centres,Fees and hired services
05/11/2021,10009108,"£1,875.00",JGP Resourcing Ltd,Planning Development,Recruitment advertising
07/11/2021,10009239,"£2,640.13",Trinity Mirror Publishing Ltd(Reach Plc),Corporate Communication,Printing
08/11/2021,10009175,"£10,800.00",Idox Software Limited,Business Support Staff,Software purchase and licences
08/11/2021,30001155,"£1,213.00",Foster Properties Fleet Ltd,Housing Needs Service,Rent deposit payments
09/11/2021,10009404,"£3,102.60",East Hampshire D C,Street Cleaning,Payments to other LA's
09/11/2021,10009048,"£4,220.00",Knight Land Management Ltd,Elvetham Heath Nature Reserve,Sub-contracted work non-rechar
09/11/2021,10009047,"£10,000.00",Southern Counties Building Solutions Ltd,Disabled Facs - Mandatory,Capital grants other - Expend
09/11/2021,30001157,£499.55,Romans Estate Agents,PRSAccessFund,Homelessness Costs
09/11/2021,10009103,£340.54,Vail Williams LLP,Commercialisation,Fees and hired services
09/11/2021,40002400,£500.00,SUNDRY SUPPLIER BACS,Covid19,Grants
09/11/2021,40002401,£500.00,SUNDRY SUPPLIER BACS,Covid19,Grants
10/11/2021,10009127,"£3,310.26",Npower,Admin Bldgs - R & M,Electricity
10/11/2021,10009075,"£1,966.00",Signway Supplies (Datchet) Ltd,Street Furniture,Purchase of equipment
10/11/2021,10009091,"£3,207.61",Royal Mail Group Ltd,Corporate Communication,Postage costs
10/11/2021,10009081,"£1,435.00",Odiham Parish Council,Environment Promotion Strategy,Purchase of equipment
10/11/2021,10009511,£328.50,Brown Advertising And Design,Off Street Parking,Printing
10/11/2021,10009056,"£2,625.00",Vivid Resourcing Limited,Corporate Finance,Consultants - projects
10/11/2021,10009057,£767.25,Vivid Resourcing Limited,Planning Development,Consultation costs
10/11/2021,10009058,"£1,556.40",Vivid Resourcing Limited,Planning Development,Consultation costs
10/11/2021,10009158,£500.00,Government Events,Community Safety ,Employee training
10/11/2021,10009166,"£2,800.00",Francis Taylor Building,Planning Development,Tech consult - Legal advice
10/11/2021,30001136,"£1,000.00",Bracknell Forest Council,Planning Development,Fees and hired services
10/11/2021,10009060,"£1,014.75",G2 Recruitment Solutions,Planning Development,Consultation costs
10/11/2021,10009059,"£1,300.00",Home Connections Lettings Limited,Housing Needs Service,Software development
10/11/2021,10009119,"£2,596.00",Varnom & Ross Ltd.,Planning Development,Consultation costs
10/11/2021,30001145,"£2,069.17",SUNDRY SUPPLIER BACS,Disabled Facs - Mandatory,Capital grants other - Expend
11/11/2021,30001154,£600.00,Tindle Newspapers Surrey Hampshire Ltd,OdihamWelcomeBackFund,Fees and hired services
11/11/2021,10009080,£467.25,SMS Environmental Limited,Admin Bldgs - R & M,R & M - plant & equipment
11/11/2021,10009088,£808.00,Cirrus Research Plc,Environmental Protection,Software purchase and licences
11/11/2021,10009099,£796.00,Warrens Office Limited,Admin Bldgs - R & M,R & M - plant & equipment
11/11/2021,10009105,"£3,074.17",BJC Design (Southeast) Ltd,Disabled Facs - Mandatory,Capital grants other - Expend
11/11/2021,10009085,"£7,580.00",1st Call Trees Ltd,FleetPondGreenGridEng,Third Party Payments
11/11/2021,10009086,£280.00,1st Call Trees Ltd,Tree Preservation Orders,Grounds maintenance services
11/11/2021,10009074,"£15,460.00",M.E.D. Planning Limited,Planning Policy,Consultants - projects
11/11/2021,40002402,£500.00,SUNDRY SUPPLIER BACS,Covid19,Grants
11/11/2021,40002403,£500.00,SUNDRY SUPPLIER BACS,Covid19,Grants
11/11/2021,40002404,£500.00,SUNDRY SUPPLIER BACS,Covid19,Grants
11/11/2021,40002405,£500.00,SUNDRY SUPPLIER BACS,Covid19,Grants
11/11/2021,40002406,£500.00,SUNDRY SUPPLIER BACS,Covid19,Grants
11/11/2021,40002407,£500.00,SUNDRY SUPPLIER BACS,Covid19,Grants
11/11/2021,40002408,£500.00,SUNDRY SUPPLIER BACS,Covid19,Grants
11/11/2021,40002409,£500.00,SUNDRY SUPPLIER BACS,Covid19,Grants
11/11/2021,40002410,£500.00,SUNDRY SUPPLIER BACS,Covid19,Grants
11/11/2021,40002411,£500.00,SUNDRY SUPPLIER BACS,Covid19,Grants
11/11/2021,40002412,£500.00,SUNDRY SUPPLIER BACS,Covid19,Grants
11/11/2021,40002413,£500.00,SUNDRY SUPPLIER BACS,Covid19,Grants
11/11/2021,40002414,£500.00,SUNDRY SUPPLIER BACS,Covid19,Grants
11/11/2021,40002415,£500.00,SUNDRY SUPPLIER BACS,Covid19,Grants
11/11/2021,40002416,£500.00,SUNDRY SUPPLIER BACS,Covid19,Grants
11/11/2021,40002417,£500.00,SUNDRY SUPPLIER BACS,Covid19,Grants
12/11/2021,10009089,"£1,766.21",Community Action Hampshire,Strategic Housing Services,Consultants - projects
12/11/2021,10009117,£315.80,Hampshire Media Ltd,Planning Development,Advertising
12/11/2021,10009567,"£2,626.25",Architrail Velosolutions UK Ltd,Edenbrook Country Park,Sub-contracted work non-rechar
15/11/2021,10009151,£680.80,South East Water Ltd,Hartley Wintney Commons,Sub-contracted work non-rechar
15/11/2021,10009153,"£2,375.00",Bentley Mobility Services,Disabled Facs - Mandatory,Capital grants other - Expend
15/11/2021,10009097,"£9,000.00",St John's Chambers,Planning Development,Legal services
15/11/2021,10009203,£342.00,Redacted personal data,Corporate Finance,Agency staff
16/11/2021,10009235,£454.68,Siemens Financial Services Ltd,Admin Bldgs - R & M,R & M - plant & equipment
16/11/2021,10009173,"£2,911.00",Hampshire County Council,Local Land Charges,Fees and hired services
16/11/2021,10009174,"£3,649.00",Hampshire County Council,Local Land Charges,Fees and hired services
16/11/2021,10009110,£255.00,Basingstoke & Deane B C,Planning Development,Legal services
16/11/2021,10009139,"£8,000.00",Vistar Construction Ltd,Disabled Facs - Mandatory,Capital grants other - Expend
16/11/2021,10009106,"£5,307.69",Bridges Lettings,Commercialisation,Fees and hired services
16/11/2021,10009107,"£6,634.61",Bridges Lettings,Commercialisation,Fees and hired services
16/11/2021,30001142,"£1,000.00",Redacted personal data,Housing Needs Service,Homelessness Costs
16/11/2021,10009431,"£3,620.00",Handicare Accessibility Ltd,Disabled Facs - Mandatory,Capital grants other - Expend
16/11/2021,10009109,£500.00,Moore & Moore Carp,Fleet Pond,Sub-contracted work non-rechar
16/11/2021,10009104,"£2,931.50",UK Training (Worldwide) Limited,Commercialisation,Employee training
16/11/2021,10009244,"£1,600.00",Redactive Publishing Ltd,Planning Development,Recruitment advertising
16/11/2021,30001143,"£3,600.00",SUNDRY SUPPLIER BACS,Housing Needs Service,Grant income - projects
16/11/2021,40002428,£500.00,SUNDRY SUPPLIER BACS,Covid19,Grants
16/11/2021,40002429,£500.00,SUNDRY SUPPLIER BACS,Covid19,Grants
17/11/2021,10009152,£698.48,Signway Supplies (Datchet) Ltd,Highways Traffic Management,Sub-contracted work non-rechar
17/11/2021,30001144,"£1,280.00",Redacted personal data,Housing Needs Service,Rent deposit payments
17/11/2021,10009118,"£1,014.75",Vivid Resourcing Limited,Planning Development,Consultants - projects
17/11/2021,10009111,"£1,237.50",G2 Recruitment Solutions,Planning Development,Consultation costs
17/11/2021,10009150,"£1,628.00",Varnom & Ross Ltd.,Planning Development,Consultation costs
17/11/2021,10009168,"£5,622.50",Unity Street Chambers,Community Safety ,Fees and hired services
17/11/2021,10009169,"£2,130.00",Unity Street Chambers,Community Safety ,Fees and hired services
18/11/2021,10009140,£668.00,British Parking Association,Off Street Parking,Subscriptions
18/11/2021,10009148,£429.00,Oakwood OH Consultancy Ltd,Hackney Carriages,Fees and hired services
19/11/2021,10009297,"£1,400.00",JDB Contractors & Son Ltd,Hartley Wintney Commons,Sub-contracted work non-rechar
19/11/2021,10009298,£288.00,Hampshire Media Ltd,Planning Development,Advertising
19/11/2021,10009292,£500.00,St John's Chambers,Legal Services,Fees and hired services
19/11/2021,10009388,£308.42,Tooled-Up.com,Environment Promotion Strategy,Purchase of equipment
19/11/2021,10009138,"£2,500.00",CACI Ltd,Planning Policy,Consultants - projects
19/11/2021,30001146,"£1,800.00",SUNDRY SUPPLIER BACS,PRSAccessFund,Homelessness Costs
19/11/2021,30001151,"£3,684.57",SUNDRY SUPPLIER BACS,Covid19,Homelessness Costs
21/11/2021,10009330,£257.85,AEWC Ltd,Hartley Wintney Commons,Sub-contracted work non-rechar
22/11/2021,10009157,"£31,181.00",Ernst & Young Llp,External Audit,Audit fees
22/11/2021,10009424,£830.17,Software ONE UK Ltd,IT Contract,Software purchase and licences
22/11/2021,10009156,"£1,248.87",Ashley Services,Bramshot Farm,Purchase of equipment
22/11/2021,30001156,£900.00,SUNDRY SUPPLIER BACS,Housing Needs Service,Rent deposit payments
23/11/2021,10009207,"£2,910.72",Capita Business Services Ltd,Revenues & Benefits Contract,Sub-contracted work non-rechar
23/11/2021,10009159,"£28,462.00",LDA Design Consulting Ltd,Planning Development,Consultants - projects
23/11/2021,10009176,£600.00,Ministry of Design,Environment Promotion Strategy,Consultation costs
23/11/2021,40002431,£500.00,SUNDRY SUPPLIER BACS,Covid19,Grants
23/11/2021,40002432,£500.00,SUNDRY SUPPLIER BACS,Covid19,Grants
23/11/2021,40002433,£500.00,SUNDRY SUPPLIER BACS,Covid19,Grants
23/11/2021,40002434,£500.00,SUNDRY SUPPLIER BACS,Covid19,Grants
23/11/2021,40002435,£500.00,SUNDRY SUPPLIER BACS,Covid19,Grants
23/11/2021,40002436,£500.00,SUNDRY SUPPLIER BACS,Covid19,Grants
23/11/2021,40002437,£500.00,SUNDRY SUPPLIER BACS,Covid19,Grants
23/11/2021,40002441,£500.00,SUNDRY SUPPLIER BACS,Covid19,Grants
24/11/2021,10009596,"£2,494.00",Hampshire County Council,Leadership Team,Grants
24/11/2021,10009200,"£5,800.00",Fleet Town Council,Covid19,Room & office rents
24/11/2021,10009185,"£5,250.00",Vivid Resourcing Limited,Corporate Finance,Consultants - projects
24/11/2021,10009186,"£1,051.88",Vivid Resourcing Limited,Planning Development,Consultants - projects
24/11/2021,10009187,"£2,966.00",Vivid Resourcing Limited,Planning Development,Consultation costs
24/11/2021,10009188,£762.17,Natural England,FleetPondGreenGridEng,Third Party Payments
24/11/2021,10009184,"£1,237.50",G2 Recruitment Solutions,Planning Development,Consultation costs
24/11/2021,10009194,"£1,628.00",Varnom & Ross Ltd.,Planning Development,Consultation costs
24/11/2021,10009238,£385.00,Unity Street Chambers,Community Safety ,Fees and hired services
24/11/2021,30001158,£800.00,SUNDRY SUPPLIER BACS,Housing Needs Service,Rent deposit payments
25/11/2021,10009193,"£1,083.60",BJC Design (Southeast) Ltd,Disabled Facs - Mandatory,Capital grants other - Expend
25/11/2021,10009197,£250.00,Redacted personal data,Disabled Facs - Mandatory,Capital grants other - Expend
25/11/2021,10009191,£920.00,A and E Builders Limited,Disabled Facs - Mandatory,Capital grants other - Expend
26/11/2021,30001162,"£335,048.73",Hampshire County Council,Balance Sheet,Developer Cons - County SAMM
26/11/2021,30001163,"£651,123.74",Hampshire County Council,Balance Sheet,Performance Bonds
26/11/2021,10009189,£596.70,Lister Wilder Ltd,Environment Promotion Strategy,Purchase of equipment
26/11/2021,10009225,£837.34,Flowbird Smart City UK,Off Street Parking,Ticket machines
29/11/2021,10009221,"£2,007.81",Southern Counties Building Solutions Ltd,Disabled Facs - Mandatory,Capital grants other - Expend
29/11/2021,10009222,"£8,631.22",Southern Counties Building Solutions Ltd,Disabled Facs - Mandatory,Capital grants other - Expend
29/11/2021,10009212,"£3,465.00",McKenzie Human Resources LLP,HR Contract,Corporate Mgmt training
29/11/2021,10009226,£370.00,Winning Print Ltd,Social Inclusion & Partnership,Purchase of equipment
29/11/2021,10009215,"£1,920.00",Redacted personal data,Environment Promotion Strategy,Employee training
30/11/2021,10009289,£262.07,Lister Wilder Ltd,Environment Promotion Strategy,Purchase of equipment
30/11/2021,10009379,"£3,130.89",Sci Print Ltd,Register Of Electors,Postage costs
30/11/2021,10009381,"£1,340.35",Sci Print Ltd,Register Of Electors,Postage costs
30/11/2021,10009355,"£1,357.30",Chipside Ltd,Off Street Parking,Software purchase and licences
30/11/2021,10009423,£264.00,Nowmedical,Housing Needs Service,Medical fees
30/11/2021,10009224,"£2,166.67",SDK Environmental Ltd,Dog Warden,Sub-contracted work non-rechar
30/11/2021,10009490,"£4,400.00",Blake & Morgan LLP,FleetPondGreenGridEng,Third Party Payments
30/11/2021,10009263,"£42,267.31",AON UK Ltd,Corporate Finance,Insurance premiums
30/11/2021,10009230,"£5,342.00",Haymarket Business Media,Planning Development,Recruitment advertising
30/11/2021,10009291,"£1,163.44",Jade Security Services Ltd,Customer Services Contracts,Sub-contracted work non-rechar
30/11/2021,10009213,£340.00,NP Tree Management Ltd,Tree Preservation Orders,Grounds maintenance services
30/11/2021,10009665,£636.00,Mike Garwood Ltd,Bramshot Farm,Purchase of equipment
30/11/2021,10009277,"£3,798.00",i-Transport LLP,Planning Policy,Consultants - projects
30/11/2021,10009208,£725.00,Enforcement Bailiffs Ltd,Revenues & Benefits Contract,Bailiffs fees
30/11/2021,10009320,£342.00,Redacted personal data,Corporate Finance,Agency staff
30/11/2021,30001229,£950.00,SUNDRY SUPPLIER BACS,Commercialisation,Legal services
30/11/2021,40002442,£500.00,SUNDRY SUPPLIER BACS,Covid19,Grants
30/11/2021,40002443,£500.00,SUNDRY SUPPLIER BACS,Covid19,Grants
30/11/2021,40002444,£500.00,SUNDRY SUPPLIER BACS,Covid19,Grants
30/11/2021,40002445,£500.00,SUNDRY SUPPLIER BACS,Covid19,Grants
30/11/2021,40002446,£500.00,SUNDRY SUPPLIER BACS,Covid19,Grants
30/11/2021,40002447,£500.00,SUNDRY SUPPLIER BACS,Covid19,Grants
30/11/2021,40002448,£500.00,SUNDRY SUPPLIER BACS,Covid19,Grants
01/12/2021,10009217,"£453,506.48",Basingstoke & Deane B C,Waste Contract,Fees and hired services
01/12/2021,10009218,"£81,703.44",Basingstoke & Deane B C,Waste Client Team,Fees and hired services
01/12/2021,10009640,£394.50,Centerprise International,IT Contract,Software purchase and licences
01/12/2021,10009326,"£2,293.86",Virgin Media Business,IT Contract,Mobile phone costs
01/12/2021,10009445,£370.00,NTA Monitor Ltd,IT Contract,Maintenance of equipment
01/12/2021,10009271,£843.85,RAC Motoring Services,Environment Promotion Strategy,Vehicle servicing and maint.
01/12/2021,10009219,"£2,625.00",Vivid Resourcing Limited,Corporate Finance,Consultants - projects
01/12/2021,10009220,"£1,453.60",Vivid Resourcing Limited,Planning Development,Consultation costs
01/12/2021,10009582,"£1,237.50",Vivid Resourcing Limited,Planning Development,Consultants - projects
01/12/2021,10009223,"£2,690.00",BJC Design (Southeast) Ltd,Disabled Facs - Mandatory,Capital grants other - Expend
01/12/2021,10009246,"£1,628.00",Varnom & Ross Ltd.,Planning Development,Consultation costs
02/12/2021,30001165,£571.28,Siemens Financial Services Ltd,Print Room & Photocopying,Photocopying
02/12/2021,10009245,"£1,600.00",Tree Care Associates Ltd,Tree Preservation Orders,Consultation costs
02/12/2021,10009256,£500.00,Association Of Electoral Administrators,Register Of Electors,Employee training
02/12/2021,10009264,"£3,925.50",Closomat Limited,Disabled Facs - Mandatory,Capital grants other - Expend
02/12/2021,10009241,"£10,126.00",Penna Plc,Corporate Finance,Consultants - projects
02/12/2021,10009262,"£2,346.00",Prism Medical UK,Disabled Facs - Mandatory,Capital grants other - Expend
02/12/2021,40002453,£500.00,SUNDRY SUPPLIER BACS,Covid19,Grants
02/12/2021,40002454,£500.00,SUNDRY SUPPLIER BACS,Covid19,Grants
02/12/2021,40002455,£500.00,SUNDRY SUPPLIER BACS,Covid19,Grants
02/12/2021,40002456,£500.00,SUNDRY SUPPLIER BACS,Covid19,Grants
02/12/2021,40002457,£500.00,SUNDRY SUPPLIER BACS,Covid19,Grants
02/12/2021,40002458,£500.00,SUNDRY SUPPLIER BACS,Covid19,Grants
02/12/2021,40002459,£500.00,SUNDRY SUPPLIER BACS,Covid19,Grants
02/12/2021,40002460,£500.00,SUNDRY SUPPLIER BACS,Covid19,Grants
02/12/2021,40002461,£500.00,SUNDRY SUPPLIER BACS,Covid19,Grants
03/12/2021,10009249,"£1,490.00",Scofell Commercial landscapes,Edenbrook Country Park,Sub-contracted work non-rechar
03/12/2021,10009250,£720.00,Scofell Commercial landscapes,Edenbrook Country Park,Sub-contracted work non-rechar
03/12/2021,10009384,"£264,631.75",NHS Frimley Clinical Commissioning Group,Balance Sheet,General Fund Earmarked Reserve
03/12/2021,10009242,"£1,995.00",GPK Mayfield Ltd t/a Peachy Projects,Commercialisation,Fees and hired services
03/12/2021,30001167,"£22,591.91",SUNDRY SUPPLIER BACS,Bramshot Farm,Developers Contributions
04/12/2021,10009350,"£50,839.00",Arcus Global Ltd,Business Support Staff,Software purchase and licences
05/12/2021,10009253,£696.00,The Risk Busters Ltd,Env Health Commercial,Agency staff
06/12/2021,10009316,"£2,330.07",Vip-System,Hackney Carriages,Purchase of equipment
06/12/2021,10009462,"£4,344.69",Civica UK Ltd,Register Of Electors,Postage costs
06/12/2021,10009310,"£30,981.00",South Oxfordshire District Council,HR Contract,Payments to other LA's
07/12/2021,10009321,"£11,750.00",Civica UK Ltd,Legal Services,Consultants - projects
07/12/2021,10009261,"£12,116.96",Southern Counties Building Solutions Ltd,Disabled Facs - Mandatory,Capital grants other - Expend
07/12/2021,10009335,"£3,882.70",Southern Counties Building Solutions Ltd,Disabled Facs - Mandatory,Capital grants other - Expend
07/12/2021,10009334,£401.27,BJC Design (Southeast) Ltd,Disabled Facs - Mandatory,Capital grants other - Expend
07/12/2021,10009260,"£87,160.80",SLC Southern Landscape & Construction Lt,Allotments at Edenbrook,Improvement works
07/12/2021,10009259,"£3,610.00",Green Leaves Countryside Contractors Ltd,Land Repossessions,Sub-contracted work non-rechar
07/12/2021,40002462,£500.00,SUNDRY SUPPLIER BACS,Covid19,Grants
08/12/2021,10009311,"£1,057.50",Hampshire Biodiversity Info Centre,Environment Promotion Strategy,Consultation costs
08/12/2021,30001175,£453.00,Redacted personal data,Housing Needs Service,Rent deposit payments
08/12/2021,10009332,"£165,072.00",South Oxfordshire District Council,5 Council Contract - Capita,Payments to South -Capita
08/12/2021,10009306,"£2,625.00",Vivid Resourcing Limited,Corporate Finance,Consultants - projects
08/12/2021,10009307,"£1,503.20",Vivid Resourcing Limited,Planning Development,Consultation costs
08/12/2021,10009308,"£1,076.63",Vivid Resourcing Limited,Planning Development,Consultants - projects
08/12/2021,10009309,£380.00,1st Call Trees Ltd,Tree Preservation Orders,Grounds maintenance services
08/12/2021,10009282,"£1,342.00",Varnom & Ross Ltd.,Planning Development,Consultation costs
09/12/2021,10009315,"£4,227.03",Quadient UK Ltd,Business Support Staff,Postage costs
09/12/2021,10009278,£500.00,SUNDRY SUPPLIER BACS,Covid19,Grants
09/12/2021,10009279,£500.00,SUNDRY SUPPLIER BACS,Covid19,Grants
09/12/2021,10009280,£500.00,SUNDRY SUPPLIER BACS,Covid19,Grants
09/12/2021,30001178,£600.00,SUNDRY SUPPLIER BACS,Housing Needs Service,Rent deposit payments
09/12/2021,40002464,£500.00,SUNDRY SUPPLIER BACS,Covid19,Grants
09/12/2021,40002465,£500.00,SUNDRY SUPPLIER BACS,Covid19,Grants
09/12/2021,40002466,£500.00,SUNDRY SUPPLIER BACS,Covid19,Grants
09/12/2021,40002467,£500.00,SUNDRY SUPPLIER BACS,Covid19,Grants
09/12/2021,40002468,£500.00,SUNDRY SUPPLIER BACS,Covid19,Grants
09/12/2021,40002469,£500.00,SUNDRY SUPPLIER BACS,Covid19,Grants
09/12/2021,40002470,£500.00,SUNDRY SUPPLIER BACS,Covid19,Grants
09/12/2021,40002471,£500.00,SUNDRY SUPPLIER BACS,Covid19,Grants
09/12/2021,40002472,£500.00,SUNDRY SUPPLIER BACS,Covid19,Grants
10/12/2021,10009290,£536.00,Community Action Hampshire,Housing Needs Service,Homelessness Costs
10/12/2021,10009319,"£2,000.00",Knight Land Management Ltd,Hartley Wintney Commons,Sub-contracted work non-rechar
10/12/2021,10009376,£413.10,Hampshire Media Ltd,Planning Development,Advertising
10/12/2021,10009286,"£11,404.80",Rev Solutions Limited,Corporate Finance,Consultants - projects
10/12/2021,30001176,£250.00,SUNDRY SUPPLIER BACS,Housing Needs Service,Rent deposit payments
11/12/2021,10009928,£382.72,ADT Fire & Security PlC,Admin Bldgs - R & M,R & M - plant & equipment
13/12/2021,10009287,£467.25,SMS Environmental Limited,Admin Bldgs - R & M,R & M - plant & equipment
14/12/2021,10009295,"£1,502.77",Hampshire County Council,Admin Bldgs - R & M,R & M - plant & equipment
14/12/2021,10009296,"£3,680.92",Hampshire County Council,Property Services,Sub-contracted work non-rechar
14/12/2021,10009367,"£5,623.00",Redacted personal data,Disabled Facs - Mandatory,Capital grants other - Expend
15/12/2021,10009608,"£22,500.00",East Hampshire D C,Business Support Staff,Fees and hired services
15/12/2021,10009324,"£4,900.00",Lambert Smith Hampton,Planning Development,Consultants - projects
15/12/2021,10009341,"£2,625.00",Vivid Resourcing Limited,Corporate Finance,Consultants - projects
15/12/2021,10009342,"£1,493.60",Vivid Resourcing Limited,Planning Development,Consultation costs
15/12/2021,10009463,£990.00,G2 Recruitment Solutions,Planning Development,Consultants - projects
15/12/2021,10009461,"£1,562.00",Varnom & Ross Ltd.,Planning Development,Consultation costs
15/12/2021,10009369,"£1,200.00",Gascoignes Chartered Surveyors,Commercialisation,Fees and hired services
16/12/2021,10009586,"£2,048.00",East Hampshire D C,Street Cleaning,Payments to other LA's
16/12/2021,10009402,"£19,954.69",Rocon Contractors Ltd,Disabled Facs - Mandatory,Capital grants other - Expend
16/12/2021,10009791,"£1,250.00",Ecology Solutions Ltd,Commercialisation,Sub-contracted work non-rechar
16/12/2021,10009792,"£3,514.96",Ecology Solutions Ltd,Commercialisation,Sub-contracted work non-rechar
16/12/2021,10009327,"£2,600.00",Home Connections Lettings Limited,Housing Needs Service,Software development
16/12/2021,40002473,£500.00,SUNDRY SUPPLIER BACS,Covid19,Grants
16/12/2021,40002474,£500.00,SUNDRY SUPPLIER BACS,Covid19,Grants
16/12/2021,40002475,£500.00,SUNDRY SUPPLIER BACS,Covid19,Grants
17/12/2021,10009391,£477.00,Elmdale Maintenance Ltd,Admin Bldgs - R & M,R & M - plant & equipment
17/12/2021,10009390,"£3,491.61",Npower,Admin Bldgs - R & M,Electricity
17/12/2021,10009897,£355.00,Drain & Sewer Services,Hartley Wintney Commons,Sub-contracted work non-rechar
17/12/2021,10009328,"£170,775.00",Basingstoke & Deane B C,Street Cleaning,Fees and hired services
17/12/2021,10009329,"£123,875.00",Basingstoke & Deane B C,Grounds Mtn Contract,Fees and hired services
17/12/2021,10009345,"£39,225.00",Basingstoke & Deane B C,Customer Services Contracts,Sub-contracted work non-rechar
17/12/2021,10009346,"£39,225.00",Basingstoke & Deane B C,Customer Services Contracts,Sub-contracted work non-rechar
17/12/2021,10009347,"£39,225.00",Basingstoke & Deane B C,Customer Services Contracts,Sub-contracted work non-rechar
17/12/2021,10009375,£593.80,Hampshire Media Ltd,Planning Development,Advertising
17/12/2021,10009425,£806.29,Software ONE UK Ltd,IT Contract,Software purchase and licences
17/12/2021,10009325,£750.00,GPK Mayfield Ltd t/a Peachy Projects,Commercialisation,Fees and hired services
17/12/2021,10009344,"£64,864.00",Maxx Shoring BV,FleetPondGreenGridEng,Major repairs and alterations
17/12/2021,10009333,"£9,232.40",Infrastructure Managed Services Ltd,Grounds Mtn Contract,Fees and hired services
20/12/2021,10009380,£816.08,Sci Print Ltd,Register Of Electors,Postage costs
20/12/2021,10009348,£308.88,Seton,Bramshot Farm,Purchase of equipment
20/12/2021,10009396,"£16,317.83",Redacted personal data,Env Health Commercial,Recovery of costs
20/12/2021,30001188,£462.00,Planning Portal,Planning Development,Planning - application fees
